Workbook

Sheet Macros Instructions
B8: Important information: download this Excel file to a computer desktop or document folder and enable the macros. If the macros are not enabled, follow these steps:
B9: • Close the file.
B10: • Find the file in the saved location/folder.
B11: • Right click on the file and select Properties.
B12: • At the bottom of the General tab, tick the Unblock checkbox and select Apply and then OK.
B13: • Open the file.
B15: If the above did not enable the macros, follow these steps:
B16: • Open the file.
B17: • Go to File > Options > Trust Center > Trust Center Settings > Trusted Locations.
B18: • Add the saved location/folder (this tells Excel that it is safe to run macros from that location).

Sheet EMCI2
B2: Early Milk Collection Index 2 | W2: Temperature | X2: S.aureus | Z2: B.cereus | AB2: Pseudomonas
W3: Rate | X3: GR | Y3: Time to NMTL (h) | Z3: GR | AA3: Time to NMTL (h) | AB3: GR | AC3: Time to NMTL (h)
B4: DATA ENTRY | W4: =C15 -> 5 | X4: =IF(W4>$E$9,(0.00033*(W4-5.6)*((6.5-2.8)*(1-EXP(0.5*(6.5-9.8)))*(36.7-0.9324)*(1-EXP(0.42*(-5-0.9324)))))^2,0) -> 0 | Y4: =IF(C15>E9,(D9-C9)/X4,"no growth") -> no growth | Z4: =IF(W4>$E$10,(((0.175*(W4-1.5)*SQRT(0.995-0.92)*(1-EXP(0.4395*(W4-45)))))^2)/2.3,0) -> 0.01223335541 | AA4: =(D10-C10)/Z4 -> 326.9748867 | AB4: =IF(W4>$E$11,((0.1709*(W4+6.1)*SQRT(0.995-0.947)*(1-EXP(0.1723*(W4-41.2))))^2)/2.3,0) -> 0.07480722627 | AC4: =(D11-C11)/AB4 -> 66.83846267
B6: 1) Microorganism levels (log cfu/ml):
C8: Initial | D8: NMTL | E8: Tmin
B9: S. aureus | C9: 2 | D9: 5 | E9: 5.6
B10: B. cereus | C10: 1 | D10: 5 | E10: 1.5
B11: Pseudomonas | C11: 1 | D11: 6 | E11: -6.1
B13: 2) Milk temperature
B15: At pick up | C15: 5
B18: Time to NMTL:
C19: S. aureus | D19: B. cereus | E19: Pseudomonas | F19: All | G19: Food Safety
C20: =Y4 -> no growth | D20: =AA4 -> 326.9748867 | E20: =AC4 -> 66.83846267 | F20: =MIN(C20:E20) -> 66.83846267 | G20: =MIN(C20:D20) -> 326.9748867
N85: Storage1
N127: Storage2
N169: Storage3
N211: Storage4

Sheet EMCI3
W1: Temperature | Y1: Time | AB1: S.aureus | AG1: B.cereus | AL1: Pseudomonas | AT1: INTERACTIVE CHART | BA1: FALSE | BB1: FALSE | BC1: FALSE | BD1: FALSE | BE1: TRUE
B2: Early Milk Collection Index 3 | W2: Rate | X2: Accumulated | Y2: Rate | AA2: Accumulated | AB2: GR (cooling) | AC2: GR (to NMTL) | AD2: Growth (logs) | AE2: Time calc | AF2: Time to NMTL (h) | AG2: GR (cooling) | AH2: GR (to NMTL) | AI2: Growth(logs) | AJ2: Time calc | AK2: Time to NMTL (h) | AL2: GR (cooling) | AM2: GR (to NMTL) | AN2: Growth (logs) | AO2: Time calc | AP2: Time to NMTL (h) | AT2: Time | AU2: S | AV2: B | AW2: P | AX2: ALL | AY2: FS | BA2: S | BB2: B | BC2: P | BD2: ALL | BE2: FS
AA3: 0 | AB3: 0 | AC3: 0 | AD3: =C9 -> 2 | AG3: 0 | AH3: 0 | AI3: =C10 -> 1 | AL3: 0 | AM3: 0 | AN3: =C11 -> 1 | AT3: =AA3 -> 0 | AU3: =AD3 -> 2 | AV3: =AI3 -> 1 | AW3: =AN3 -> 1 | AX3: =MAX(AU3:AW3) -> 2 | AY3: =MAX(AU3:AV3) -> 2 | BA3: =IF($BA$1=TRUE,AU3,NA()) ->  | BB3: =IF($BB$1=TRUE,AV3,NA()) ->  | BC3: =IF($BC$1=TRUE,AW3,NA()) ->  | BD3: =IF($BD$1=TRUE,AX3,NA()) ->  | BE3: =IF($BE$1=TRUE,AY3,NA()) -> 2
B4: DATA ENTRY | X4: =C20 -> 25 | Y4: =D20 -> 0 | Z4: =Y4 -> 0 | AA4: =Z4 -> 0 | AB4: =IF(X4>$E$9,(0.00033*(X4-5.6)*((6.5-2.8)*(1-EXP(0.5*(6.5-9.8)))*(36.7-0.9324)*(1-EXP(0.42*(-5-0.9324)))))^2,(0.00033*(5.61-5.6)*((6.5-2.8)*(1-EXP(0.5*(6.5-9.8)))*(36.7-0.9324)*(1-EXP(0.42*(-5-0.9324)))))^2) -> 0.3942153782 | AC4: =IF(X4>$E$9,(0.00033*(X4-5.6)*((6.5-2.8)*(1-EXP(0.5*(6.5-9.8)))*(36.7-0.9324)*(1-EXP(0.42*(-5-0.9324)))))^2,(0.00033*(5.61-5.6)*((6.5-2.8)*(1-EXP(0.5*(6.5-9.8)))*(36.7-0.9324)*(1-EXP(0.42*(-5-0.9324)))))^2) -> 0.3942153782 | AD4: =(Y4*AB4)+C9 -> 2 | AE4: =IF(AB4=0,AE3,($D$9-AD4)/AC4) -> 7.610053198 | AF4: =IF(AE4>0,AE4,0) -> 7.610053198 | AG4: =IF(X4>$E$10,(((0.175*(X4-1.5)*SQRT(0.995-0.92)*(1-EXP(0.4395*(X4-45)))))^2)/2.3,0) -> 0.5513317437 | AH4: =IF(X4>$E$10,(((0.175*(X4-1.5)*SQRT(0.995-0.92)*(1-EXP(0.4395*(X4-45)))))^2)/2.3,0) -> 0.5513317437 | AI4: =(Y4*AG4)+C10 -> 1 | AJ4: =IF(AG4=0,AJ3,($D$10-AI4)/AH4) -> 7.255159975 | AK4: =IF(AJ4>0,AJ4,0) -> 7.255159975 | AL4: =IF(X4>$E$11,((0.1709*(X4+6.1)*SQRT(0.995-0.947)*(1-EXP(0.1723*(X4-41.2))))^2)/2.3,0) -> 0.5194351615 | AM4: =IF(X4>$E$11,((0.1709*(X4+6.1)*SQRT(0.995-0.947)*(1-EXP(0.1723*(X4-41.2))))^2)/2.3,0) -> 0.5194351615 | AN4: =(Y4*AL4)+C11 -> 1 | AO4: =IF(AL4=0,AO3,($D$11-AN4)/AM4) -> 9.625840471 | AP4: =IF(AO4>0,AO4,0) -> 9.625840471 | AT4: 0 | AU4: =AD4 -> 2 | AV4: =AI4 -> 1 | AW4: =AN4 -> 1 | AX4: =MAX(AU4:AW4) -> 2 | AY4: =MAX(AU4:AV4) -> 2 | BE4: 2
W5: =IF(X4=$C$21,0,0.25) -> 0.25 | X5: =IF(OR(X4=$C$21,X4=0),0,X4-W5) -> 24.75 | Y5: =IF(W5=0,0,$Z$6-$Z$5) -> 0.02941176471 | Z5: =IF(W5=0,0,(X5-$C$20)/-$C$15) -> 0.02941176471 | AA5: =Y5+AA4 -> 0.02941176471 | AB5: =IF(X5>$E$9,(0.00033*(((X4+X5)/2)-5.6)*((6.5-2.8)*(1-EXP(0.5*(6.5-9.8)))*(36.7-0.9324)*(1-EXP(0.42*(-5-0.9324)))))^2,0) -> 0.3891516494 | AC5: =IF(X5>$E$9,(0.00033*(X5-5.6)*((6.5-2.8)*(1-EXP(0.5*(6.5-9.8)))*(36.7-0.9324)*(1-EXP(0.42*(-5-0.9324)))))^2,(0.00033*(5.61-5.6)*((6.5-2.8)*(1-EXP(0.5*(6.5-9.8)))*(36.7-0.9324)*(1-EXP(0.42*(-5-0.9324)))))^2) -> 0.3841206532 | AD5: =(Y5*AB5)+AD4 -> 2.011445637 | AE5: =IF(AB5=0,AE4,($D$9-AD5)/AC5) -> 7.780249091 | AF5: =IF(AE5>0,AE5,0) -> 7.780249091 | AG5: =IF(X5>$E$10,(((0.175*(((X5+X4)/2)-1.5)*SQRT(0.995-0.92)*(1-EXP(0.4395*(((X5+X4)/2)-45))))))^2)/2.3 -> 0.5454909916 | AH5: =IF(X5>$E$10,(((0.175*(X5-1.5)*SQRT(0.995-0.92)*(1-EXP(0.4395*(X5-45)))))^2)/2.3,0) -> 0.5396807786 | AI5: =(Y5*AG5)+AI4 -> 1.016043853 | AJ5: =IF(AG5=0,AJ4,($D$10-AI5)/AH5) -> 7.38206048 | AK5: =IF(AJ5>0,AJ5,0) -> 7.38206048 | AL5: =IF(AND(X5>$E$11,OR(X5>0,X5<0)),((0.1709*(((X5+X4)/2)+6.1)*SQRT(0.995-0.947)*(1-EXP(0.1723*(((X5+X4)/2)-41.2))))^2)/2.3,0) -> 0.5167040375 | AM5: =IF(X5>$E$11,((0.1709*(X5+6.1)*SQRT(0.995-0.947)*(1-EXP(0.1723*(X5-41.2))))^2)/2.3,0) -> 0.5139381312 | AN5: =(Y5*AL5)+AN4 -> 1.015197178 | AO5: =IF(AL5=0,AO4,($D$11-AN5)/AM5) -> 9.699227437 | AP5: =IF(AO5>0,AO5,0) -> 9.699227437 | AT5: 0.02941176471 | AU5: =AD5 -> 2.011445637 | AV5: =AI5 -> 1.016043853 | AW5: =AN5 -> 1.015197178 | AX5: 2.011445637 | AY5: 2.011445637 | BE5: 2.011445637
B6: 1) Microorganism levels (log cfu/ml): | W6: =IF(OR(X5=$C$21,W5=0),0,0.25) -> 0.25 | X6: 24.5 | Y6: =IF(W6=0,0,$Z$6-$Z$5) -> 0.02941176471 | Z6: =IF(W6=0,0,(X6-$C$20)/-$C$15) -> 0.05882352941 | AA6: =Y6+AA5 -> 0.05882352941 | AB6: =IF(X6>$E$9,(0.00033*(((X5+X6)/2)-5.6)*((6.5-2.8)*(1-EXP(0.5*(6.5-9.8)))*(36.7-0.9324)*(1-EXP(0.42*(-5-0.9324)))))^2,0) -> 0.3791223896 | AC6: =IF(X6>$E$9,(0.00033*(X6-5.6)*((6.5-2.8)*(1-EXP(0.5*(6.5-9.8)))*(36.7-0.9324)*(1-EXP(0.42*(-5-0.9324)))))^2,(0.00033*(5.61-5.6)*((6.5-2.8)*(1-EXP(0.5*(6.5-9.8)))*(36.7-0.9324)*(1-EXP(0.42*(-5-0.9324)))))^2) -> 0.3741568585 | AD6: =(Y6*AB6)+AD5 -> 2.022596295 | AE6: 7.957634979 | AF6: 7.957634979 | AG6: =IF(X6>$E$10,(((0.175*(((X6+X5)/2)-1.5)*SQRT(0.995-0.92)*(1-EXP(0.4395*(((X6+X5)/2)-45))))))^2)/2.3 -> 0.533901146 | AH6: 0.5281521328 | AI6: 1.031746828 | AJ6: =IF(AG6=0,AJ5,($D$10-AI6)/AH6) -> 7.51346615 | AK6: 7.51346615 | AL6: 0.5111387932 | AM6: =IF(X6>$E$11,((0.1709*(X6+6.1)*SQRT(0.995-0.947)*(1-EXP(0.1723*(X6-41.2))))^2)/2.3,0) -> 0.5083073442 | AN6: 1.030230671 | AO6: =IF(AL6=0,AO5,($D$11-AN6)/AM6) -> 9.777095265 | AP6: 9.777095265 | AT6: 0.05882352941 | AU6: 2.022596295 | AV6: 1.031746828 | AW6: 1.030230671 | AX6: 2.022596295 | AY6: 2.022596295 | BE6: 2.022596295
W7: 0.25 | X7: 24.25 | Y7: 0.02941176471 | Z7: 0.08823529412 | AA7: 0.08823529412 | AB7: 0.36922406 | AC7: 0.364323994 | AD7: 2.033455826 | AE7: 8.142598956 | AF7: 8.142598956 | AG7: 0.5224337756 | AH7: 0.5167461085 | AI7: 1.047112527 | AJ7: =IF(AG7=0,AJ6,($D$10-AI7)/AH7) -> 7.649573762 | AK7: 7.649573762 | AL7: 0.5054450752 | AM7: 0.502553248 | AN7: 1.045096703 | AO7: 9.859459305 | AP7: 9.859459305 | AT7: 0.08823529412 | AU7: 2.033455826 | AV7: 1.047112527 | AW7: 1.045096703 | AX7: 2.033455826 | AY7: 2.033455826 | BE7: 2.033455826
C8: Initial | D8: NMTL | E8: Tmin | W8: 0.25 | X8: 24 | Y8: 0.02941176471 | Z8: 0.1176470588 | AA8: 0.1176470588 | AB8: 0.3594566607 | AC8: 0.3546220599 | AD8: 2.044028081 | AE8: 8.335555661 | AF8: 8.335555661 | AG8: 0.5110891638 | AH8: 0.5054629716 | AI8: 1.062144561 | AJ8: 7.79059132 | AK8: 7.79059132 | AL8: 0.4996330956 | AM8: 0.4966858232 | AN8: 1.059791794 | AO8: 9.946344298 | AP8: 9.946344298 | AT8: 0.1176470588 | AU8: 2.044028081 | AV8: 1.062144561 | AW8: 1.059791794 | AX8: 2.044028081 | AY8: 2.044028081 | BE8: 2.044028081
B9: S. aureus | C9: 2 | D9: 5 | E9: 5.6 | W9: 0.25 | X9: 23.75 | Y9: 0.02941176471 | Z9: 0.1470588235 | AA9: 0.1470588235 | AB9: 0.3498201917 | AC9: 0.345051056 | AD9: 2.05431691 | AE9: 8.536948484 | AF9: 8.536948484 | AG9: 0.4998675603 | AH9: 0.4943029564 | AI9: 1.076846548 | AJ9: 7.936738798 | AK9: 7.936738798 | AL9: 0.4937126081 | AM9: 0.4907146006 | AN9: 1.074312753 | AO9: 10.03778416 | AP9: 10.03778416 | AT9: 0.1470588235 | AU9: 2.05431691 | AV9: 1.076846548 | AW9: 1.074312753 | AX9: 2.05431691 | AY9: 2.05431691 | BE9: 2.05431691
B10: B. cereus | C10: 1 | D10: 5 | E10: 1.5 | W10: 0.25 | X10: 23.5 | Y10: 0.02941176471 | Z10: 0.1764705882 | AA10: 0.1764705882 | AB10: 0.3403146529 | AC10: 0.3356109824 | AD10: 2.064326165 | AE10: 8.747251994 | AF10: 8.747251994 | AG10: 0.4887691849 | AH10: 0.4832662692 | AI10: 1.091222112 | AJ10: 8.088248935 | AK10: 8.088248935 | AL10: 0.4876929244 | AM10: 0.4846486768 | AN10: 1.088656663 | AO10: 10.13382182 | AP10: 10.13382182 | AT10: 0.1764705882 | AU10: 2.064326165 | AV10: 1.091222112 | AW10: 1.088656663 | AX10: 2.064326165 | AY10: 2.064326165 | BE10: 2.064326165
B11: Pseudomonas | C11: 1 | D11: 6 | E11: -6.1 | W11: 0.25 | X11: 23.25 | Y11: 0.02941176471 | Z11: 0.2058823529 | AA11: 0.2058823529 | AB11: 0.3309400445 | AC11: 0.3263018391 | AD11: 2.074059696 | AE11: 8.966974604 | AF11: 8.966974604 | AG11: 0.4777942313 | AH11: 0.4723530917 | AI11: 1.105274884 | AJ11: 8.245368104 | AK11: 8.245368104 | AL11: 0.4815829297 | AM11: 0.47849673 | AN11: 1.102820867 | AO11: 10.23450909 | AP11: 10.23450909 | AT11: 0.2058823529 | AU11: 2.074059696 | AV11: 1.105274884 | AW11: 1.102820867 | AX11: 2.074059696 | AY11: 2.074059696 | BE11: 2.074059696
W12: 0.25 | X12: 23 | Y12: 0.02941176471 | Z12: 0.2352941176 | AA12: 0.2352941176 | AB12: 0.3216963663 | AC12: 0.3171236261 | AD12: 2.083521353 | AE12: 9.196661512 | AF12: 9.196661512 | AG12: 0.4669428698 | AH12: 0.4615635837 | AI12: 1.119008498 | AJ12: 8.408357243 | AK12: 8.408357243 | AL12: 0.4753910995 | AM12: 0.4722670362 | AN12: 1.116802958 | AO12: 10.3399066 | AP12: 10.3399066 | AT12: 0.2352941176 | AU12: 2.083521353 | AV12: 1.119008498 | AW12: 1.116802958 | AX12: 2.083521353 | AY12: 2.083521353 | BE12: 2.083521353
B13: 2) Cooling rate (°C/h) | W13: 0.25 | X13: 22.75 | Y13: 0.02941176471 | Z13: 0.2647058824 | AA13: 0.2647058824 | AB13: 0.3125836184 | AC13: 0.3080763434 | AD13: 2.092714989 | AE13: 9.436897942 | AF13: 9.436897942 | AG13: 0.4562152505 | AH13: 0.450897886 | AI13: 1.132426593 | AJ13: 8.577492879 | AK13: 8.577492879 | AL13: 0.4691255141 | AM13: 0.4659674843 | AN13: 1.130600767 | AO13: 10.45008374 | AP13: 10.45008374 | AT13: 0.2647058824 | AU13: 2.092714989 | AV13: 1.132426593 | AW13: 1.130600767 | AX13: 2.092714989 | AY13: 2.092714989 | BE13: 2.092714989
W14: 0.25 | X14: 22.5 | Y14: 0.02941176471 | Z14: 0.2941176471 | AA14: 0.2941176471 | AB14: 0.3036018009 | AC14: 0.2991599909 | AD14: 2.101644454 | AE14: 9.688312723 | AF14: 9.688312723 | AG14: 0.4456115053 | AH14: 0.4403561224 | AI14: 1.145532814 | AJ14: 8.753068232 | AK14: 8.753068232 | AL14: 0.4627938749 | AM14: 0.4596055917 | AN14: 1.144212352 | AO14: 10.56511874 | AP14: 10.56511874 | AT14: 0.2941176471 | AU14: 2.101644454 | AV14: 1.145532814 | AW14: 1.144212352 | AX14: 2.101644454 | AY14: 2.101644454 | BE14: 2.101644454
B15: 1st milking | C15: 8.5 | D15: 3rd milking | E15: 4.25 | W15: 0.25 | X15: 22.25 | Y15: 0.02941176471 | Z15: 0.3235294118 | AA15: 0.3235294118 | AB15: 0.2947509135 | AC15: 0.2903745688 | AD15: 2.110313598 | AE15: 9.951582241 | AF15: 9.951582241 | AG15: 0.4351317505 | AH15: 0.4299384019 | AI15: 1.158330807 | AJ15: 8.935394411 | AK15: 8.935394411 | AL15: 0.4564035187 | AM15: 0.4531885186 | AN15: 1.157635984 | AO15: 10.68509862 | AP15: 10.68509862 | AT15: 0.3235294118 | AU15: 2.110313598 | AV15: 1.158330807 | AW15: 1.157635984 | AX15: 2.110313598 | AY15: 2.110313598 | BE15: 2.110313598
B16: 2nd milking | C16: 4.25 | D16: 4th milking | E16: 4.25 | W16: 0.25 | X16: 22 | Y16: 0.02941176471 | Z16: 0.3529411765 | AA16: 0.3529411765 | AB16: 0.2860309565 | AC16: 0.2817200769 | AD16: 2.118726274 | AE16: 10.22743483 | AF16: 10.22743483 | AG16: 0.4247760882 | AH16: 0.4196448202 | AI16: 1.170824221 | AJ16: 9.124801723 | AK16: 9.124801723 | AL16: 0.449961433 | AM16: 0.4467230831 | AN16: 1.170870144 | AO16: 10.81011938 | AP16: 10.81011938 | AT16: 0.3529411765 | AU16: 2.118726274 | AV16: 1.170824221 | AW16: 1.170870144 | AX16: 2.118726274 | AY16: 2.118726274 | BE16: 2.118726274
W17: 0.25 | X17: 21.75 | Y17: 0.02941176471 | Z17: 0.3823529412 | AA17: 0.3823529412 | AB17: 0.2774419298 | AC17: 0.2731965153 | AD17: 2.12688633 | AE17: 10.51665563 | AF17: 10.51665563 | AG17: 0.4145446083 | AH17: 0.4094754618 | AI17: 1.18301671 | AJ17: 9.321641091 | AK17: 9.321641091 | AL17: 0.44347427 | AM17: 0.4402157751 | AN17: 1.183913505 | AO17: 10.94028603 | AP17: 10.94028603 | AT17: 0.3823529412 | AU17: 2.12688633 | AV17: 1.18301671 | AW17: 1.183913505 | AX17: 2.12688633 | AY17: 2.12688633 | BE17: 2.12688633
B18: 3) Process | H18: Time to NMTL: | W18: 0.25 | X18: 21.5 | Y18: 0.02941176471 | Z18: 0.4117647059 | AA18: 0.4117647059 | AB18: 0.2689838333 | AC18: 0.264803884 | AD18: 2.13479762 | AE18: 10.82009198 | AF18: 10.82009198 | AG18: 0.4044373898 | AH18: 0.3994304007 | AI18: 1.194911927 | AJ18: 9.526285597 | AK18: 9.526285597 | AL18: 0.4369483608 | AM18: 0.4336727703 | AN18: 1.196764927 | AO18: 11.07571285 | AP18: 11.07571285 | AT18: 0.4117647059 | AU18: 2.13479762 | AV18: 1.194911927 | AW18: 1.196764927 | AX18: 2.13479762 | AY18: 2.13479762 | BE18: 2.13479762
C19: Temperature | D19: Time (h) | E19: Time (min) | F19: Time elapsed (h) | H19: Process | I19: S. aureus | J19: B. cereus | K19: Pseudomonas | L19: All | M19: Food Safety | W19: 0.25 | X19: 21.25 | Y19: 0.02941176471 | Z19: 0.4411764706 | AA19: 0.4411764706 | AB19: 0.2606566672 | AC19: 0.256542183 | AD19: 2.142463992 | AE19: 11.13865944 | AF19: 11.13865944 | AG19: 0.3944545023 | AH19: 0.3895097021 | AI19: 1.20651353 | AJ19: 9.739132169 | AK19: 9.739132169 | AL19: 0.4303897288 | AM19: 0.4270999432 | AN19: 1.209423449 | AO19: 11.2165235 | AP19: 11.2165235 | AT19: 0.4411764706 | AU19: 2.142463992 | AV19: 1.20651353 | AW19: 1.209423449 | AX19: 2.142463992 | AY19: 2.142463992 | BE19: 2.142463992
B20: First milk cooling start | C20: 25 | D20: 0 | E20: =D20*60 -> 0 | F20: =D20 -> 0 | H20: First milk cooling start | I20: =AF4 -> 7.610053198 | J20: =AK4 -> 7.255159975 | K20: =AP4 -> 9.625840471 | L20: =MIN(I20:K20) -> 7.255159975 | M20: =MIN(I20:J20) -> 7.255159975 | W20: 0.25 | X20: 21 | Y20: 0.02941176471 | Z20: 0.4705882353 | AA20: 0.4705882353 | AB20: 0.2524604313 | AC20: 0.2484114122 | AD20: 2.149889299 | AE20: 11.47334849 | AF20: 11.47334849 | AG20: 0.384596007 | AH20: 0.3797134233 | AI20: 1.217825177 | AJ20: 9.960603419 | AK20: 9.960603419 | AL20: 0.423804103 | AM20: 0.4205028805 | AN20: 1.221888275 | AO20: 11.36285135 | AP20: 11.36285135 | AT20: 0.4705882353 | AU20: 2.149889299 | AV20: 1.217825177 | AW20: 1.221888275 | AX20: 2.149889299 | AY20: 2.149889299 | BE20: 2.149889299
B21: First milk cooling end | C21: 5 | D21: =((C20-C21)/C15) -> 2.352941176 | E21: =D21*60 -> 141.1764706 | F21: =F20+D21 -> 2.352941176 | H21: First milk cooling end | I21: =AF84 -> 114569.0118 | J21: =AK84 -> 285.5703513 | K21: =AP84 -> 58.11393007 | L21: =MIN(I21:K21) -> 58.11393007 | M21: =MIN(I21:J21) -> 285.5703513 | W21: 0.25 | X21: 20.75 | Y21: 0.02941176471 | Z21: 0.5 | AA21: 0.5 | AB21: 0.2443951257 | AC21: 0.2404115718 | AD21: 2.157077391 | AE21: 11.82523199 | AF21: 11.82523199 | AG21: 0.3748619574 | AH21: 0.3700416147 | AI21: 1.228850529 | AJ21: 10.19114965 | AK21: 10.19114965 | AL21: 0.417196931 | AM21: 0.4138868935 | AN21: 1.234158773 | AO21: 11.51483968 | AP21: 11.51483968 | AT21: 0.5 | AU21: 2.157077391 | AV21: 1.228850529 | AW21: 1.234158773 | AX21: 2.157077391 | AY21: 2.157077391 | BE21: 2.157077391
B22: Storage | C22: =C21 -> 5 | D22: =12-(D21) -> 9.647058824 | E22: 578.8235294 | F22: =F21+D22 -> 12 | H22: Storage | I22: =AF125 -> 114569.0118 | J22: =AK125 -> 275.9232925 | K22: =AP125 -> 48.46687124 | L22: 48.46687124 | M22: 275.9232925 | W22: 0.25 | X22: 20.5 | Y22: 0.02941176471 | Z22: 0.5294117647 | AA22: 0.5294117647 | AB22: 0.2364607504 | AC22: 0.2325426616 | AD22: 2.164032119 | AE22: 12.19547356 | AF22: 12.19547356 | AG22: 0.3652524008 | AH22: 0.3604943205 | AI22: 1.239593247 | AJ22: 10.43125103 | AK22: 10.43125103 | AL22: 0.4105733909 | AM22: 0.4072570303 | AN22: 1.246234461 | AO22: 11.67264205 | AP22: 11.67264205 | AT22: 0.5294117647 | AU22: 2.164032119 | AV22: 1.239593247 | AW22: 1.246234461 | AX22: 2.164032119 | AY22: 2.164032119 | BE22: 2.164032119
B23: Second milk cooling start | C23: 15 | D23: 0 | E23: 0 | F23: 12 | H23: Second milk cooling start | I23: =AF126 -> 29.17385469 | J23: =AK126 -> 18.54635323 | K23: =AP126 -> 13.65812565 | L23: =MIN(I23:K23) -> 13.65812565 | M23: =MIN(I23:J23) -> 18.54635323 | W23: 0.25 | X23: 20.25 | Y23: 0.02941176471 | Z23: 0.5588235294 | AA23: 0.5588235294 | AB23: 0.2286573054 | AC23: 0.2248046817 | AD23: 2.170757334 | AE23: 12.58533694 | AF23: 12.58533694 | AG23: 0.3557673787 | AH23: 0.3510715796 | AI23: 1.250056993 | AJ23: 10.68142004 | AK23: 10.68142004 | AL23: 0.4039384036 | AM23: 0.4006180875 | AN23: 1.258115003 | AO23: 11.83642263 | AP23: 11.83642263 | AT23: 0.5588235294 | AU23: 2.170757334 | AV23: 1.250056993 | AW23: 1.258115003 | AX23: 2.170757334 | AY23: 2.170757334 | BE23: 2.170757334
B24: Second milk cooling end | C24: 5 | D24: =((C23-C24)/C16) -> 2.352941176 | E24: =D24*60 -> 141.1764706 | F24: 14.35294118 | H24: Second milk cooling end | I24: =AF166 -> 111674.2026 | J24: =AK166 -> 260.4461224 | K24: =AP166 -> 43.39996869 | L24: 43.39996869 | M24: 260.4461224 | W24: 0.25 | X24: 20 | Y24: 0.02941176471 | Z24: 0.5882352941 | AA24: 0.5882352941 | AB24: 0.2209847907 | AC24: 0.2171976321 | AD24: 2.177256886 | AE24: 12.99619653 | AF24: 12.99619653 | AG24: 0.3464069275 | AH24: 0.3417734261 | AI24: 1.260245432 | AJ24: 10.94220405 | AK24: 10.94220405 | AL24: 0.3972966443 | AM24: 0.3939746217 | AN24: 1.269800198 | AO24: 12.00635661 | AP24: 12.00635661 | AT24: 0.5882352941 | AU24: 2.177256886 | AV24: 1.260245432 | AW24: 1.269800198 | AX24: 2.177256886 | AY24: 2.177256886 | BE24: 2.177256886
B25: Storage | C25: =C24 -> 5 | D25: =12-(D24) -> 9.647058824 | E25: 578.8235294 | F25: 24 | H25: Storage | I25: =AF247 -> 111674.2026 | J25: =AK247 -> 250.7990636 | K25: =AP247 -> 33.75290987 | L25: 33.75290987 | M25: 250.7990636 | W25: 0.25 | X25: 19.75 | Y25: 0.02941176471 | Z25: 0.6176470588 | AA25: 0.6176470588 | AB25: 0.2134432062 | AC25: 0.2097215128 | AD25: 2.183534628 | AE25: 13.42954919 | AF25: 13.42954919 | AG25: 0.3371710792 | AH25: 0.3325998901 | AI25: 1.270162228 | AJ25: 11.21418823 | AK25: 11.21418823 | AL25: 0.3906525536 | AM25: 0.3873309601 | AN25: 1.281289979 | AO25: 12.18263064 | AP25: 12.18263064 | AT25: 0.6176470588 | AU25: 2.183534628 | AV25: 1.270162228 | AW25: 1.281289979 | AX25: 2.183534628 | AY25: 2.183534628 | BE25: 2.183534628
B26: Third milk cooling start | C26: 15 | D26: 0 | E26: 0 | F26: 24 | H26: Third milk cooling start | I26: =AF248 -> 28.43672016 | J26: =AK248 -> 16.85761278 | K26: =AP248 -> 9.511682353 | L26: 9.511682353 | M26: 16.85761278 | W26: 0.25 | X26: 19.5 | Y26: 0.02941176471 | Z26: 0.6470588235 | AA26: 0.6470588235 | AB26: 0.206032552 | AC26: 0.2023763238 | AD26: 2.189594409 | AE26: 13.88702758 | AF26: 13.88702758 | AG26: 0.3280598619 | AH26: 0.3235509978 | AI26: 1.279811048 | AJ26: 11.4979987 | AK26: 11.4979987 | AL26: 0.3840103482 | AM26: 0.3806912115 | AN26: 1.292584401 | AO26: 12.36544332 | AP26: 12.36544332 | AT26: 0.6470588235 | AU26: 2.189594409 | AV26: 1.279811048 | AW26: 1.292584401 | AX26: 2.189594409 | AY26: 2.189594409 | BE26: 2.189594409
B27: Third milk cooling end | C27: 5 | D27: =((C26-C27)/E15) -> 2.352941176 | E27: 141.1764706 | F27: 26.35294118 | H27: Third milk cooling end | I27: =AF288 -> 108779.3933 | J27: =AK288 -> 235.3218935 | K27: =AP288 -> 28.68600732 | L27: 28.68600732 | M27: 235.3218935 | W27: 0.25 | X27: 19.25 | Y27: 0.02941176471 | Z27: 0.6764705882 | AA27: 0.6764705882 | AB27: 0.1987528282 | AC27: 0.1951620651 | AD27: 2.19544008 | AE27: 14.37041527 | AF27: 14.37041527 | AG27: 0.3190733003 | AH27: 0.3146267723 | AI27: 1.289195557 | AJ27: 11.79430605 | AK27: 11.79430605 | AL27: 0.3773740313 | AM27: 0.3740592761 | AN27: 1.303683637 | AO27: 12.55500575 | AP27: 12.55500575 | AT27: 0.6764705882 | AU27: 2.19544008 | AV27: 1.289195557 | AW27: 1.303683637 | AX27: 2.19544008 | AY27: 2.19544008 | BE27: 2.19544008
B28: Storage | C28: =C27 -> 5 | D28: =12-(D27) -> 9.647058824 | E28: 578.8235294 | F28: 36 | H28: Storage | I28: =AF369 -> 108779.3933 | J28: =AK369 -> 225.6748347 | K28: =AP369 -> 19.0389485 | L28: 19.0389485 | M28: 225.6748347 | W28: 0.25 | X28: 19 | Y28: 0.02941176471 | Z28: 0.7058823529 | AA28: 0.7058823529 | AB28: 0.1916040346 | AC28: 0.1880787366 | AD28: 2.201075493 | AE28: 14.8816637 | AF28: 14.8816637 | AG28: 0.3102114161 | AH28: 0.305827234 | AI28: 1.298319422 | AJ28: 12.10382911 | AK28: 12.10382911 | AL28: 0.3707474025 | AM28: 0.3674388551 | AN28: 1.314587973 | AO28: 12.75154209 | AP28: 12.75154209 | AT28: 0.7058823529 | AU28: 2.201075493 | AV28: 1.298319422 | AW28: 1.314587973 | AX28: 2.201075493 | AY28: 2.201075493 | BE28: 2.201075493
B29: Fourth milk cooling start | C29: 15 | D29: 0 | E29: 0 | F29: 36 | H29: Fourth milk cooling start | I29: =AF370 -> 27.69958562 | J29: =AK370 -> 15.16887234 | K29: =AP370 -> 5.365239061 | L29: 5.365239061 | M29: 15.16887234 | W29: 0.25 | X29: 18.75 | Y29: 0.02941176471 | Z29: 0.7352941176 | AA29: 0.7352941176 | AB29: 0.1845861713 | AC29: 0.1811263385 | AD29: 2.206504498 | AE29: 15.42291158 | AF29: 15.42291158 | AG29: 0.3014742282 | AH29: 0.2971524006 | AI29: 1.307186311 | AJ29: 12.42733924 | AK29: 12.42733924 | AL29: 0.3641340672 | AM29: 0.3608334606 | AN29: 1.325297798 | AO29: 12.95529022 | AP29: 12.95529022 | AT29: 0.7352941176 | AU29: 2.206504498 | AV29: 1.307186311 | AW29: 1.325297798 | AX29: 2.206504498 | AY29: 2.206504498 | BE29: 2.206504498
B30: Fourth milk cooling end | C30: 5 | D30: =((C29-C30)/E16) -> 2.352941176 | E30: 141.1764706 | F30: 38.35294118 | H30: Fourth milk cooling end | I30: =AF410 -> 105884.5841 | J30: =AK410 -> 210.1976646 | K30: =AP410 -> 13.97204595 | L30: 13.97204595 | M30: 210.1976646 | W30: 0.25 | X30: 18.5 | Y30: 0.02941176471 | Z30: 0.7647058824 | AA30: 0.7647058824 | AB30: 0.1776992382 | AC30: 0.1743048706 | AD30: 2.211730946 | AE30: 15.99650684 | AF30: 15.99650684 | AG30: 0.2928617533 | AH30: 0.2886022878 | AI30: 1.315799892 | AJ30: 12.76566494 | AK30: 12.76566494 | AL30: 0.3575374461 | AM30: 0.354246424 | AN30: 1.335813605 | AO30: 13.16650241 | AP30: 13.16650241 | AT30: 0.7647058824 | AU30: 2.211730946 | AV30: 1.315799892 | AW30: 1.335813605 | AX30: 2.211730946 | AY30: 2.211730946 | BE30: 2.211730946
B31: Storage | C31: =C30 -> 5 | D31: =12-(D30) -> 9.647058824 | E31: 578.8235294 | F31: 48 | H31: Storage | I31: =AF491 -> 105884.5841 | J31: =AK491 -> 200.5506058 | K31: =AP491 -> 4.324987126 | L31: 4.324987126 | M31: 200.5506058 | W31: 0.25 | X31: 18.25 | Y31: 0.02941176471 | Z31: 0.7941176471 | AA31: 0.7941176471 | AB31: 0.1709432355 | AC31: 0.167614333 | AD31: 2.216758688 | AE31: 16.60503169 | AF31: 16.60503169 | AG31: 0.284374006 | AH31: 0.2801769093 | AI31: 1.324163833 | AJ31: 13.11969704 | AK31: 13.11969704 | AL31: 0.3509607837 | AM31: 0.3476809048 | AN31: 1.346135981 | AO31: 13.38544612 | AP31: 13.38544612 | AT31: 0.7941176471 | AU31: 2.216758688 | AV31: 1.324163833 | AW31: 1.346135981 | AX31: 2.216758688 | AY31: 2.216758688 | BE31: 2.216758688
W32: 0.25 | X32: 18 | Y32: 0.02941176471 | Z32: 0.8235294118 | AA32: 0.8235294118 | AB32: 0.1643181631 | AC32: 0.1610547257 | AD32: 2.221591576 | AE32: 17.25133126 | AF32: 17.25133126 | AG32: 0.2760109992 | AH32: 0.271876277 | AI32: 1.332281804 | AJ32: 13.49039437 | AK32: 13.49039437 | AL32: 0.3444071566 | AM32: 0.341139899 | AN32: 1.356265604 | AO32: 13.61240479 | AP32: 13.61240479 | AT32: 0.8235294118 | AU32: 2.221591576 | AV32: 1.332281804 | AW32: 1.356265604 | AX32: 2.221591576 | AY32: 2.221591576 | BE32: 2.221591576
W33: 0.25 | X33: 17.75 | Y33: 0.02941176471 | Z33: 0.8529411765 | AA33: 0.8529411765 | AB33: 0.1578240209 | AC33: 0.1546260487 | AD33: 2.226233458 | AE33: 17.93854635 | AF33: 17.93854635 | AG33: 0.267772744 | AH33: 0.2637004015 | AI33: 1.340157473 | AJ33: 13.87879012 | AK33: 13.87879012 | AL33: 0.3378794821 | AM33: 0.3346262469 | AN33: 1.366203236 | AO33: 13.84767874 | AP33: 13.84767874 | AT33: 0.8529411765 | AU33: 2.226233458 | AV33: 1.340157473 | AW33: 1.366203236 | AX33: 2.226233458 | AY33: 2.226233458 | BE33: 2.226233458
W34: 0.25 | X34: 17.5 | Y34: 0.02941176471 | Z34: 0.8823529412 | AA34: 0.8823529412 | AB34: 0.151460809 | AC34: 0.1483283019 | AD34: 2.230688188 | AE34: 18.67015112 | AF34: 18.67015112 | AG34: 0.2596592504 | AH34: 0.255649292 | AI34: 1.34779451 | AJ34: 14.28599885 | AK34: 14.28599885 | AL34: 0.3313805253 | AM34: 0.3281426405 | AN34: 1.375949722 | AO34: 14.09158612 | AP34: 14.09158612 | AT34: 0.8823529412 | AU34: 2.230688188 | AV34: 1.34779451 | AW34: 1.375949722 | AX34: 2.230688188 | AY34: 2.230688188 | BE34: 2.230688188
W35: 0.25 | X35: 17.25 | Y35: 0.02941176471 | Z35: 0.9117647059 | AA35: 0.9117647059 | AB35: 0.1452285274 | AC35: 0.1421614855 | AD35: 2.234959615 | AE35: 19.44999643 | AF35: 19.44999643 | AG35: 0.251670527 | AH35: 0.2477229565 | AI35: 1.355196584 | AJ35: 14.71322427 | AK35: 14.71322427 | AL35: 0.324912907 | AM35: 0.321691631 | AN35: 1.385505984 | AO35: 14.34446399 | AP35: 14.34446399 | AT35: 0.9117647059 | AU35: 2.234959615 | AV35: 1.355196584 | AW35: 1.385505984 | AX35: 2.234959615 | AY35: 2.234959615 | BE35: 2.234959615
W36: 0.25 | X36: 17 | Y36: 0.02941176471 | Z36: 0.9411764706 | AA36: 0.9411764706 | AB36: 0.1391271761 | AC36: 0.1361255993 | AD36: 2.239051591 | AE36: 20.28235999 | AF36: 20.28235999 | AG36: 0.2438065814 | AH36: 0.2399214023 | AI36: 1.362367366 | AJ36: 15.16176798 | AK36: 15.16176798 | AL36: 0.3184791105 | AM36: 0.3152756356 | AN36: 1.394873016 | AO36: 14.60666942 | AP36: 14.60666942 | AT36: 0.9411764706 | AU36: 2.239051591 | AV36: 1.362367366 | AW36: 1.394873016 | AX36: 2.239051591 | AY36: 2.239051591 | BE36: 2.239051591
W37: 0.25 | X37: =IF(OR(X36=$C$21,X36=0),0,X36-W37) -> 16.75 | Y37: 0.02941176471 | Z37: 0.9705882353 | AA37: 0.9705882353 | AB37: 0.1331567551 | AC37: 0.1302206434 | AD37: 2.242967966 | AE37: 21.17200438 | AF37: 21.17200438 | AG37: 0.2360674201 | AH37: 0.2322446354 | AI37: 1.369310525 | AJ37: 15.63303914 | AK37: =IF(AJ37>0,AJ37,0) -> 15.63303914 | AL37: 0.3120814885 | AM37: 0.308896944 | AN37: 1.404051883 | AO37: 14.87858072 | AP37: 14.87858072 | AT37: 0.9705882353 | AU37: 2.242967966 | AV37: 1.369310525 | AW37: 1.404051883 | AX37: 2.242967966 | AY37: 2.242967966 | BE37: 2.242967966
W38: =IF(OR(X37=$C$21,W37=0),0,0.25) -> 0.25 | X38: 16.5 | Y38: 0.02941176471 | Z38: 1 | AA38: 1 | AB38: 0.1273172643 | AC38: 0.1244466178 | AD38: 2.246712592 | AE38: 22.12424456 | AF38: 22.12424456 | AG38: 0.228453049 | AH38: 0.2246926613 | AI38: 1.376029733 | AJ38: 16.12856533 | AK38: 16.12856533 | AL38: 0.3057222694 | AM38: 0.3025577248 | AN38: 1.413043715 | AO38: 15.16059882 | AP38: 15.16059882 | AT38: 1 | AU38: 2.246712592 | AV38: 1.376029733 | AW38: 1.413043715 | AX38: 2.246712592 | AY38: 2.246712592 | BE38: 2.246712592
W39: 0.25 | X39: 16.25 | Y39: 0.02941176471 | Z39: 1.029411765 | AA39: 1.029411765 | AB39: 0.1216087039 | AC39: 0.1188035225 | AD39: 2.250289318 | AE39: 23.14502654 | AF39: 23.14502654 | AG39: 0.2209634731 | AH39: 0.2172654848 | AI39: 1.382528658 | AJ39: 16.65000469 | AK39: 16.65000469 | AL39: 0.2994035635 | AM39: 0.2962600318 | AN39: 1.421849702 | AO39: 15.45314861 | AP39: 15.45314861 | AT39: 1.029411765 | AU39: 2.250289318 | AV39: 1.382528658 | AW39: 1.421849702 | AX39: 2.250289318 | AY39: 2.250289318 | BE39: 2.250289318
W40: 0.25 | X40: 16 | Y40: 0.02941176471 | Z40: 1.058823529 | AA40: 1.058823529 | AB40: 0.1160310737 | AC40: =IF(X40>$E$9,(0.00033*(X40-5.6)*((6.5-2.8)*(1-EXP(0.5*(6.5-9.8)))*(36.7-0.9324)*(1-EXP(0.42*(-5-0.9324)))))^2,(0.00033*(5.61-5.6)*((6.5-2.8)*(1-EXP(0.5*(6.5-9.8)))*(36.7-0.9324)*(1-EXP(0.42*(-5-0.9324)))))^2) -> 0.1132913575 | AD40: 2.253701997 | AE40: 24.24101947 | AF40: 24.24101947 | AG40: 0.2135986969 | AH40: 0.20996311 | AI40: 1.388810973 | AJ40: 17.19915955 | AK40: 17.19915955 | AL40: 0.2931273694 | AM40: 0.2900058093 | AN40: 1.430471095 | AO40: 15.75668058 | AP40: 15.75668058 | AT40: 1.058823529 | AU40: 2.253701997 | AV40: 1.388810973 | AW40: 1.430471095 | AX40: 2.253701997 | AY40: 2.253701997 | BE40: 2.253701997
W41: 0.25 | X41: 15.75 | Y41: 0.02941176471 | Z41: 1.088235294 | AA41: 1.088235294 | AB41: 0.1105843739 | AC41: =IF(X41>$E$9,(0.00033*(X41-5.6)*((6.5-2.8)*(1-EXP(0.5*(6.5-9.8)))*(36.7-0.9324)*(1-EXP(0.42*(-5-0.9324)))))^2,(0.00033*(5.61-5.6)*((6.5-2.8)*(1-EXP(0.5*(6.5-9.8)))*(36.7-0.9324)*(1-EXP(0.42*(-5-0.9324)))))^2) -> 0.1079101228 | AD41: 2.256954479 | AE41: 25.41972385 | AF41: 25.41972385 | AG41: 0.2063587244 | AH41: 0.2027855405 | AI41: 1.394880347 | AJ41: 17.77799169 | AK41: 17.77799169 | AL41: 0.2868955786 | AM41: 0.2837968979 | AN41: 1.438909201 | AO41: 16.0716725 | AP41: 16.0716725 | AT41: 1.088235294 | AU41: 2.256954479 | AV41: 1.394880347 | AW41: 1.438909201 | AX41: 2.256954479 | AY41: 2.256954479 | BE41: 2.256954479
W42: 0.25 | X42: 15.5 | Y42: 0.02941176471 | Z42: 1.117647059 | AA42: 1.117647059 | AB42: 0.1052686043 | AC42: =IF(X42>$E$9,(0.00033*(X42-5.6)*((6.5-2.8)*(1-EXP(0.5*(6.5-9.8)))*(36.7-0.9324)*(1-EXP(0.42*(-5-0.9324)))))^2,(0.00033*(5.61-5.6)*((6.5-2.8)*(1-EXP(0.5*(6.5-9.8)))*(36.7-0.9324)*(1-EXP(0.42*(-5-0.9324)))))^2) -> 0.1026598183 | AD42: 2.260050614 | AE42: 26.68959902 | AF42: 26.68959902 | AG42: 0.1992435588 | AH42: 0.1957327795 | AI42: 1.400740452 | AJ42: 18.38863964 | AK42: 18.38863964 | AL42: 0.280709982 | AM42: 0.2776350396 | AN42: 1.447165377 | AO42: 16.3986312 | AP42: 16.3986312 | AT42: 1.117647059 | AU42: 2.260050614 | AV42: 1.400740452 | AW42: 1.447165377 | AX42: 2.260050614 | AY42: 2.260050614 | BE42: 2.260050614
W43: 0.25 | X43: 15.25 | Y43: 0.02941176471 | Z43: 1.147058824 | AA43: 1.147058824 | AB43: 0.1000837649 | AC43: 0.09754044415 | AD43: 2.262994254 | AE43: 28.0602141 | AF43: 28.0602141 | AG43: 0.1922532031 | AH43: 0.1888048299 | AI43: 1.406394958 | AJ43: 19.0334381 | AK43: 19.0334381 | AL43: 0.274572274 | AM43: 0.2715218829 | AN43: 1.455241032 | AO43: 16.73809463 | AP43: 16.73809463 | AT43: 1.147058824 | AU43: 2.262994254 | AV43: 1.406394958 | AW43: 1.455241032 | AX43: 2.262994254 | AY43: 2.262994254 | BE43: 2.262994254
W44: 0.25 | X44: 15 | Y44: 0.02941176471 | Z44: 1.176470588 | AA44: 1.176470588 | AB44: 0.09502985592 | AC44: 0.09255200027 | AD44: 2.26578925 | AE44: 29.54242742 | AF44: 29.54242742 | AG44: 0.18538766 | AH44: 0.1820016939 | AI44: 1.411847536 | AJ44: 19.71493994 | AK44: 19.71493994 | AL44: 0.2684840583 | AM44: 0.2654589874 | AN44: 1.463137622 | AO44: 17.09063394 | AP44: 17.09063394 | AT44: 1.176470588 | AU44: 2.26578925 | AV44: 1.411847536 | AW44: 1.463137622 | AX44: 2.26578925 | AY44: 2.26578925 | BE44: 2.26578925
W45: 0.25 | X45: 14.75 | Y45: 0.02941176471 | Z45: 1.205882353 | AA45: 1.205882353 | AB45: 0.09010687719 | AC45: 0.08769448668 | AD45: 2.268439452 | AE45: 31.14860069 | AF45: 31.14860069 | AG45: 0.1786469318 | AH45: 0.1753233738 | AI45: 1.417101857 | AJ45: 20.43594111 | AK45: 20.43594111 | AL45: 0.2624468518 | AM45: 0.2594478286 | AN45: 1.470856647 | AO45: 17.45685589 | AP45: 17.45685589 | AT45: 1.205882353 | AU45: 2.268439452 | AV45: 1.417101857 | AW45: 1.470856647 | AX45: 2.268439452 | AY45: 2.268439452 | BE45: 2.268439452
W46: 0.25 | X46: 14.5 | Y46: 0.02941176471 | Z46: 1.235294118 | AA46: 1.235294118 | AB46: 0.08531482873 | AC46: 0.08296790337 | AD46: 2.270948712 | AE46: 32.89285588 | AF46: 32.89285588 | AG46: 0.1720310203 | AH46: 0.1687698714 | AI46: 1.422161593 | AJ46: 21.19950899 | AK46: 21.19950899 | AL46: 0.2564620895 | AM46: 0.2534898019 | AN46: 1.478399649 | AO46: 17.83740536 | AP46: 17.83740536 | AT46: 1.235294118 | AU46: 2.270948712 | AV46: 1.422161593 | AW46: 1.478399649 | AX46: 2.270948712 | AY46: 2.270948712 | BE46: 2.270948712
W47: 0.25 | X47: 14.25 | Y47: 0.02941176471 | Z47: 1.264705882 | AA47: 1.264705882 | AB47: 0.08065371057 | AC47: 0.07837225034 | AD47: 2.27332088 | AE47: 34.79138481 | AF47: 34.79138481 | AG47: 0.1655399274 | AH47: 0.1623411884 | AI47: 1.427030415 | AJ47: 22.0090146 | AK47: 22.0090146 | AL47: 0.2505311284 | AM47: 0.2475862272 | AN47: 1.485768212 | AO47: 18.23296813 | AP47: 18.23296813 | AT47: 1.264705882 | AU47: 2.27332088 | AV47: 1.427030415 | AW47: 1.485768212 | AX47: 2.27332088 | AY47: 2.27332088 | BE47: 2.27332088
W48: 0.25 | X48: 14 | Y48: 0.02941176471 | Z48: 1.294117647 | AA48: 1.294117647 | AB48: 0.07612352269 | AC48: 0.0739075276 | AD48: 2.275559807 | AE48: 36.86282415 | AF48: 36.86282415 | AG48: 0.1591736545 | AH48: 0.156037326 | AI48: 1.431711993 | AJ48: 22.86816942 | AK48: 22.86816942 | AL48: 0.2446552518 | AM48: 0.241738352 | AN48: 1.492963955 | AO48: 18.6442739 | AP48: 18.6442739 | AT48: 1.294117647 | AU48: 2.275559807 | AV48: 1.431711993 | AW48: 1.492963955 | AX48: 2.275559807 | AY48: 2.275559807 | BE48: 2.275559807
W49: 0.25 | X49: 13.75 | Y49: 0.02941176471 | Z49: 1.323529412 | AA49: 1.323529412 | AB49: 0.07172426509 | AC49: 0.06957373515 | AD49: 2.277669344 | AE49: 39.12871215 | AF49: 39.12871215 | AG49: 0.152932203 | AH49: 0.1498582857 | AI49: 1.436209999 | AJ49: 23.78106746 | AK49: 23.78106746 | AL49: 0.2388356729 | AM49: 0.235947356 | AN49: 1.499988533 | AO49: 19.07209957 | AP49: 19.07209957 | AT49: 1.323529412 | AU49: 2.277669344 | AV49: 1.436209999 | AW49: 1.499988533 | AX49: 2.277669344 | AY49: 2.277669344 | BE49: 2.277669344
W50: 0.25 | X50: 13.5 | Y50: 0.02941176471 | Z50: 1.352941176 | AA50: 1.352941176 | AB50: 0.06745593778 | AC50: 0.06537087298 | AD50: 2.279653342 | AE50: 41.61404818 | AF50: 41.61404818 | AG50: 0.1468155741 | AH50: 0.1438040684 | AI50: 1.440528104 | AJ50: 24.75223362 | AK50: 24.75223362 | AL50: 0.2330735386 | AM50: 0.2302143542 | AN50: 1.506843637 | AO50: 19.51727284 | AP50: 19.51727284 | AT50: 1.352941176 | AU50: 2.279653342 | AV50: 1.440528104 | AW50: 1.506843637 | AX50: 2.279653342 | AY50: 2.279653342 | BE50: 2.279653342
W51: 0.25 | X51: 13.25 | Y51: 0.02941176471 | Z51: 1.382352941 | AA51: 1.382352941 | AB51: 0.06331854076 | AC51: 0.0612989411 | AD51: 2.281515652 | AE51: 44.34798218 | AF51: 44.34798218 | AG51: 0.1408237686 | AH51: 0.137874675 | AI51: 1.444669979 | AJ51: 25.78667924 | AK51: 25.78667924 | AL51: 0.2273699327 | AM51: 0.2245404003 | AN51: 1.513530988 | AO51: 19.98067611 | AP51: 19.98067611 | AT51: 1.382352941 | AU51: 2.281515652 | AV51: 1.444669979 | AW51: 1.513530988 | AX51: 2.281515652 | AY51: 2.281515652 | BE51: 2.281515652
W52: 0.25 | X52: 13 | Y52: 0.02941176471 | Z52: 1.411764706 | AA52: 1.411764706 | AB52: 0.05931207402 | AC52: 0.05735793951 | AD52: 2.283260125 | AE52: 47.36466997 | AF52: 47.36466997 | AG52: 0.1349567876 | AH52: 0.1320701065 | AI52: 1.448639297 | AJ52: 26.88996623 | AK52: 26.88996623 | AL52: 0.2217258796 | AM52: 0.2189264899 | AN52: 1.520052338 | AO52: 20.46325076 | AP52: 20.46325076 | AT52: 1.411764706 | AU52: 2.283260125 | AV52: 1.448639297 | AW52: 1.520052338 | AX52: 2.283260125 | AY52: 2.283260125 | BE52: 2.283260125
W53: 0.25 | X53: 12.75 | Y53: 0.02941176471 | Z53: 1.441176471 | AA53: 1.441176471 | AB53: 0.05543653757 | AC53: 0.0535478682 | AD53: 2.284890612 | AE53: 50.70434137 | AF53: 50.70434137 | AG53: 0.1292146317 | AH53: 0.1263903634 | AI53: 1.452439727 | AJ53: 28.06828129 | AK53: 28.06828129 | AL53: 0.2161423471 | AM53: 0.2133735637 | AN53: 1.526409465 | AO53: 20.96600187 | AP53: 20.96600187 | AT53: 1.441176471 | AU53: 2.284890612 | AV53: 1.452439727 | AW53: 1.526409465 | AX53: 2.284890612 | AY53: 2.284890612 | BE53: 2.284890612
W54: 0.25 | X54: 12.5 | Y54: 0.02941176471 | Z54: 1.470588235 | AA54: 1.470588235 | AB54: 0.0516919314 | AC54: 0.04986872717 | AD54: 2.286410962 | AE54: 54.41464404 | AF54: 54.41464404 | AG54: 0.1235973017 | AH54: 0.1208354465 | AI54: 1.456074942 | AJ54: 29.32852206 | AK54: 29.32852206 | AL54: 0.2106202492 | AM54: 0.2078825101 | AN54: 1.532604179 | AO54: 21.49000326 | AP54: 21.49000326 | AT54: 1.470588235 | AU54: 2.286410962 | AV54: 1.456074942 | AW54: 1.532604179 | AX54: 2.286410962 | AY54: 2.286410962 | BE54: 2.286410962
W55: 0.25 | X55: 12.25 | Y55: 0.02941176471 | Z55: 1.5 | AA55: 1.5 | AB55: 0.04807825552 | AC55: 0.04632051643 | AD55: 2.287825029 | AE55: 58.55234743 | AF55: 58.55234743 | AG55: 0.118104798 | AH55: 0.1154053563 | AI55: 1.459548612 | AJ55: 30.67839745 | AK55: 30.67839745 | AL55: 0.2051604497 | AM55: 0.2024541685 | AN55: 1.53863831 | AO55: 22.03640322 | AP55: 22.03640322 | AT55: 1.5 | AU55: 2.287825029 | AV55: 1.459548612 | AW55: 1.53863831 | AX55: 2.287825029 | AY55: 2.287825029 | BE55: 2.287825029
W56: 0.25 | X56: 12 | Y56: 0.02941176471 | Z56: 1.529411765 | AA56: 1.529411765 | AB56: 0.04459550992 | AC56: 0.04290323598 | AD56: 2.289136661 | AE56: 63.18552148 | AF56: 63.18552148 | AG56: 0.1127371213 | AH56: 0.1101000931 | AI56: 1.46286441 | AJ56: 32.12654494 | AK56: 32.12654494 | AL56: 0.199763764 | AM56: 0.1970893311 | AN56: 1.544513714 | AO56: 22.6064306 | AP56: 22.6064306 | AT56: 1.529411765 | AU56: 2.289136661 | AV56: 1.46286441 | AW56: 1.544513714 | AX56: 2.289136661 | AY56: 2.289136661 | BE56: 2.289136661
W57: 0.25 | X57: 11.75 | Y57: 0.02941176471 | Z57: 1.558823529 | AA57: 1.558823529 | AB57: 0.04124369461 | AC57: 0.03961688581 | AD57: 2.290349711 | AE57: 68.3963475 | AF57: 68.3963475 | AG57: 0.1074942719 | AH57: 0.1049196575 | AI57: 1.466026006 | AJ57: 33.68266802 | AK57: 33.68266802 | AL57: 0.194430962 | AM57: 0.1917887462 | AN57: 1.550232272 | AO57: 23.20140163 | AP57: 23.20140163 | AT57: 1.558823529 | AU57: 2.290349711 | AV57: 1.466026006 | AW57: 1.550232272 | AX57: 2.290349711 | AY57: 2.290349711 | BE57: 2.290349711
W58: 0.25 | X58: 11.5 | Y58: 0.02941176471 | Z58: 1.588235294 | AA58: 1.588235294 | AB58: 0.03802280958 | AC58: =IF(X58>$E$9,(0.00033*(X58-5.6)*((6.5-2.8)*(1-EXP(0.5*(6.5-9.8)))*(36.7-0.9324)*(1-EXP(0.42*(-5-0.9324)))))^2,(0.00033*(5.61-5.6)*((6.5-2.8)*(1-EXP(0.5*(6.5-9.8)))*(36.7-0.9324)*(1-EXP(0.42*(-5-0.9324)))))^2) -> 0.03646146593 | AD58: 2.291468029 | AE58: 74.28477989 | AF58: 74.28477989 | AG58: 0.1023762502 | AH58: 0.09986404986 | AI58: 1.469037072 | AJ58: 35.35769812 | AK58: 35.35769812 | AL58: 0.1891627707 | AM58: 0.1865531201 | AN58: 1.555795883 | AO58: 23.82272736 | AP58: 23.82272736 | AT58: 1.588235294 | AU58: 2.291468029 | AV58: 1.469037072 | AW58: 1.555795883 | AX58: 2.291468029 | AY58: 2.291468029 | BE58: 2.291468029
W59: 0.25 | X59: 11.25 | Y59: 0.02941176471 | Z59: 1.617647059 | AA59: 1.617647059 | AB59: 0.03493285484 | AC59: =IF(X59>$E$9,(0.00033*(X59-5.6)*((6.5-2.8)*(1-EXP(0.5*(6.5-9.8)))*(36.7-0.9324)*(1-EXP(0.42*(-5-0.9324)))))^2,(0.00033*(5.61-5.6)*((6.5-2.8)*(1-EXP(0.5*(6.5-9.8)))*(36.7-0.9324)*(1-EXP(0.42*(-5-0.9324)))))^2) -> 0.03343697633 | AD59: 2.292495466 | AE59: 80.97336634 | AF59: 80.97336634 | AG59: 0.09738305657 | AH59: 0.09493327037 | AI59: 1.47190128 | AJ59: 37.16398589 | AK59: 37.16398589 | AL59: 0.1839598764 | AM59: 0.1813831193 | AN59: 1.561206468 | AO59: 24.47192191 | AP59: 24.47192191 | AT59: 1.617647059 | AU59: 2.292495466 | AV59: 1.47190128 | AW59: 1.561206468 | AX59: 2.292495466 | AY59: 2.292495466 | BE59: 2.292495466
W60: 0.25 | X60: 11 | Y60: 0.02941176471 | Z60: =IF(W60=0,0,(X60-$C$20)/-$C$15) -> 1.647058824 | AA60: 1.647058824 | AB60: 0.03197383039 | AC60: =IF(X60>$E$9,(0.00033*(X60-5.6)*((6.5-2.8)*(1-EXP(0.5*(6.5-9.8)))*(36.7-0.9324)*(1-EXP(0.42*(-5-0.9324)))))^2,(0.00033*(5.61-5.6)*((6.5-2.8)*(1-EXP(0.5*(6.5-9.8)))*(36.7-0.9324)*(1-EXP(0.42*(-5-0.9324)))))^2) -> 0.03054341702 | AD60: 2.293435873 | AE60: 88.61366511 | AF60: 88.61366511 | AG60: 0.09251469128 | AH60: 0.09012731934 | AI60: 1.4746223 | AJ60: 39.11552818 | AK60: 39.11552818 | AL60: 0.1788229265 | AM60: 0.176279373 | AN60: 1.566465965 | AO60: 25.15061155 | AP60: 25.15061155 | AT60: 1.647058824 | AU60: 2.293435873 | AV60: 1.4746223 | AW60: 1.566465965 | AX60: 2.293435873 | AY60: 2.293435873 | BE60: 2.293435873
W61: 0.25 | X61: 10.75 | Y61: 0.02941176471 | Z61: 1.676470588 | AA61: 1.676470588 | AB61: 0.02914573622 | AC61: 0.02778078799 | AD61: 2.2942931 | AE61: 97.39489392 | AF61: 97.39489392 | AG61: 0.08777115458 | AH61: 0.08544619702 | AI61: 1.477203805 | AJ61: 41.22823856 | AK61: 41.22823856 | AL61: 0.1737525321 | AM61: 0.1712424747 | AN61: 1.571576334 | AO61: 25.86054466 | AP61: 25.86054466 | AT61: 1.676470588 | AU61: 2.2942931 | AV61: 1.477203805 | AW61: 1.571576334 | AX61: 2.2942931 | AY61: 2.2942931 | BE61: 2.2942931
W62: 0.25 | X62: 10.5 | Y62: 0.02941176471 | Z62: 1.705882353 | AA62: 1.705882353 | AB62: 0.02644857234 | AC62: 0.02514908925 | AD62: 2.295071 | AE62: 107.5557438 | AF62: 107.5557438 | AG62: 0.08315244668 | AH62: 0.0808899036 | AI62: 1.479649465 | AJ62: 43.52027111 | AK62: 43.52027111 | AL62: 0.1687492698 | AM62: 0.1662729844 | AN62: 1.576539548 | AO62: 26.60360291 | AP62: 26.60360291 | AT62: 1.705882353 | AU62: 2.295071 | AV62: 1.479649465 | AW62: 1.576539548 | AX62: 2.295071 | AY62: 2.295071 | BE62: 2.295071
W63: 0.25 | X63: 10.25 | Y63: 0.02941176471 | Z63: 1.735294118 | AA63: 1.735294118 | AB63: 0.02388233874 | AC63: 0.0226483208 | AD63: 2.295773421 | AE63: 119.4007539 | AF63: 119.4007539 | AG63: 0.07865856778 | AH63: 0.07645843925 | AI63: 1.481962952 | AJ63: 46.01240991 | AK63: 46.01240991 | AL63: 0.1638136835 | AM63: 0.1613714302 | AN63: 1.581357597 | AO63: 27.38181348 | AP63: 27.38181348 | AT63: 1.735294118 | AU63: 2.295773421 | AV63: 1.481962952 | AW63: 1.581357597 | AX63: 2.295773421 | AY63: 2.295773421 | BE63: 2.295773421
W64: 0.25 | X64: 10 | Y64: 0.02941176471 | Z64: 1.764705882 | AA64: 1.764705882 | AB64: 0.02144703543 | AC64: 0.02027848263 | AD64: 2.296404216 | AE64: 133.3233769 | AF64: 133.3233769 | AG64: 0.07428951803 | AH64: 0.07215180413 | AI64: 1.484147938 | AJ64: 48.72853984 | AK64: 48.72853984 | AL64: 0.158946286 | AM64: 0.1565383103 | AN64: 1.586032488 | AO64: 28.19736271 | AP64: 28.19736271 | AT64: 1.764705882 | AU64: 2.296404216 | AV64: 1.484147938 | AW64: 1.586032488 | AX64: 2.296404216 | AY64: 2.296404216 | BE64: 2.296404216
W65: 0.25 | X65: 9.75 | Y65: 0.02941176471 | Z65: 1.794117647 | AA65: 1.794117647 | AB65: 0.0191426624 | AC65: 0.01803957475 | AD65: 2.296967236 | AE65: 149.8390512 | AF65: 149.8390512 | AG65: 0.07004529757 | AH65: 0.06796999836 | AI65: 1.486208094 | AJ65: 51.69621878 | AK65: 51.69621878 | AL65: 0.1541475609 | AM65: 0.1517740942 | AN65: 1.59056624 | AO65: 29.05261128 | AP65: 29.05261128 | AT65: 1.794117647 | AU65: 2.296967236 | AV65: 1.486208094 | AW65: 1.59056624 | AX65: 2.296967236 | AY65: 2.296967236 | BE65: 2.296967236
W66: 0.25 | X66: 9.5 | Y66: 0.02941176471 | Z66: 1.823529412 | AA66: 1.823529412 | AB66: 0.01696921966 | AC66: 0.01593159715 | AD66: 2.297466331 | AE66: 169.6335681 | AF66: 169.6335681 | AG66: 0.06592590652 | AH66: 0.06391302207 | AI66: 1.488147091 | AJ66: 54.94737684 | AK66: 54.94737684 | AL66: 0.1494179645 | AM66: 0.1470792247 | AN66: 1.594960886 | AO66: 29.95011105 | AP66: 29.95011105 | AT66: 1.823529412 | AU66: 2.297466331 | AV66: 1.488147091 | AW66: 1.594960886 | AX66: 2.297466331 | AY66: 2.297466331 | BE66: 2.297466331
W67: 0.25 | X67: 9.25 | Y67: 0.02941176471 | Z67: 1.852941176 | AA67: 1.852941176 | AB67: 0.01492670721 | AC67: 0.01395454984 | AD67: 2.297905351 | AE67: 193.6353863 | AF67: 193.6353863 | AG67: 0.061931345 | AH67: 0.05998087534 | AI67: 1.489968601 | AJ67: 58.51917597 | AK67: 58.51917597 | AL67: 0.1447579264 | AM67: 0.1424541193 | AN67: 1.599218472 | AO67: 30.89262388 | AP67: 30.89262388 | AT67: =AA67 -> 1.852941176 | AU67: 2.297905351 | AV67: 1.489968601 | AW67: 1.599218472 | AX67: 2.297905351 | AY67: 2.297905351 | BA67: =IF($BA$1=TRUE,AU67,NA()) ->  | BC67: =IF($BC$1=TRUE,AW67,NA()) ->  | BD67: =IF($BD$1=TRUE,AX67,NA()) ->  | BE67: =IF($BE$1=TRUE,AY67,NA()) -> 2.297905351
W68: 0.25 | X68: 9 | Y68: 0.02941176471 | Z68: 1.882352941 | AA68: 1.882352941 | AB68: 0.01301512504 | AC68: 0.01210843281 | AD68: 2.298288149 | AE68: 223.1264684 | AF68: 223.1264684 | AG68: 0.05806161309 | AH68: 0.05617355826 | AI68: 1.491676296 | AJ68: 62.45507339 | AK68: 62.45507339 | AL68: 0.1401678519 | AM68: 0.1378991712 | AN68: 1.603341056 | AO68: 31.88314262 | AP68: 31.88314262 | AT68: 1.882352941 | AU68: 2.298288149 | AV68: 1.491676296 | AW68: 1.603341056 | AX68: =MAX(AU68:AW68) -> 2.298288149 | AY68: =MAX(AU68:AV68) -> 2.298288149 | BB68: =IF($BB$1=TRUE,AV68,NA()) ->  | BE68: 2.298288149
W69: 0.25 | X69: =IF(OR(X68=$C$21,X68=0),0,X68-W69) -> 8.75 | Y69: 0.02941176471 | Z69: 1.911764706 | AA69: 1.911764706 | AB69: 0.01123447315 | AC69: 0.01039324607 | AD69: =(Y69*AB69)+AD68 -> 2.298618575 | AE69: =IF(AB69=0,AE68,($D$9-AD69)/AC69) -> 259.9170083 | AF69: =IF(AE69>0,AE69,0) -> 259.9170083 | AG69: 0.05431671087 | AH69: =IF(X69>$E$10,(((0.175*(X69-1.5)*SQRT(0.995-0.92)*(1-EXP(0.4395*(X69-45)))))^2)/2.3,0) -> 0.05249107091 | AI69: =(Y69*AG69)+AI68 -> 1.493273846 | AJ69: 66.80614613 | AK69: =IF(AJ69>0,AJ69,0) -> 66.80614613 | AL69: =IF(AND(X69>$E$11,OR(X69>0,X69<0)),((0.1709*(((X69+X68)/2)+6.1)*SQRT(0.995-0.947)*(1-EXP(0.1723*(((X69+X68)/2)-41.2))))^2)/2.3,0) -> 0.1356481229 | AM69: 0.1334147511 | AN69: =(Y69*AL69)+AN68 -> 1.607330707 | AO69: 32.92491466 | AP69: =IF(AO69>0,AO69,0) -> 32.92491466 | AT69: 1.911764706 | AU69: =AD69 -> 2.298618575 | AV69: =AI69 -> 1.493273846 | AW69: =AN69 -> 1.607330707 | AX69: 2.298618575 | AY69: 2.298618575 | BE69: 2.298618575
W70: =IF(OR(X69=$C$21,W69=0),0,0.25) -> 0.25 | X70: 8.5 | Y70: =IF(W70=0,0,$Z$6-$Z$5) -> 0.02941176471 | Z70: =IF(W70=0,0,(X70-$C$20)/-$C$15) -> 1.941176471 | AA70: =Y70+AA69 -> 1.941176471 | AB70: =IF(X70>$E$9,(0.00033*(((X69+X70)/2)-5.6)*((6.5-2.8)*(1-EXP(0.5*(6.5-9.8)))*(36.7-0.9324)*(1-EXP(0.42*(-5-0.9324)))))^2,0) -> 0.009584751556 | AC70: 0.008808989614 | AD70: 2.298900479 | AE70: 306.6298905 | AF70: 306.6298905 | AG70: =IF(X70>$E$10,(((0.175*(((X70+X69)/2)-1.5)*SQRT(0.995-0.92)*(1-EXP(0.4395*(((X70+X69)/2)-45))))))^2)/2.3 -> 0.0506966384 | AH70: 0.04893341335 | AI70: 1.494764924 | AJ70: 71.63275227 | AK70: 71.63275227 | AL70: 0.1311990989 | AM70: =IF(X70>$E$11,((0.1709*(X70+6.1)*SQRT(0.995-0.947)*(1-EXP(0.1723*(X70-41.2))))^2)/2.3,0) -> 0.129001208 | AN70: 1.611189504 | AO70: =IF(AL70=0,AO69,($D$11-AN70)/AM70) -> 34.0214682 | AP70: 34.0214682 | AT70: 1.941176471 | AU70: 2.298900479 | AV70: 1.494764924 | AW70: 1.611189504 | AX70: 2.298900479 | AY70: 2.298900479 | BE70: 2.298900479
W71: 0.25 | X71: 8.25 | Y71: 0.02941176471 | Z71: 1.970588235 | AA71: 1.970588235 | AB71: 0.008065960243 | AC71: 0.007355663444 | AD71: 2.299137714 | AE71: 367.18133 | AF71: 367.18133 | AG71: 0.04720139576 | AH71: 0.04550058563 | AI71: 1.4961532 | AJ71: =IF(AG71=0,AJ70,($D$10-AI71)/AH71) -> 77.00663082 | AK71: 77.00663082 | AL71: 0.126821119 | AM71: 0.124658871 | AN71: 1.614919537 | AO71: 35.1766419 | AP71: 35.1766419 | AT71: 1.970588235 | AU71: 2.299137714 | AV71: 1.4961532 | AW71: 1.614919537 | AX71: 2.299137714 | AY71: 2.299137714 | BE71: 2.299137714
W72: 0.25 | X72: 8 | Y72: 0.02941176471 | Z72: 2 | AA72: 2 | AB72: 0.006678099216 | AC72: 0.006033267559 | AD72: 2.299334128 | AE72: 447.6290576 | AF72: 447.6290576 | AG72: 0.04383098297 | AH72: 0.0421925878 | AI72: 1.497442347 | AJ72: 83.01357741 | AK72: 83.01357741 | AL72: 0.1225145022 | AM72: 0.1203880496 | AN72: 1.618522904 | AO72: 36.39461817 | AP72: 36.39461817 | AT72: 2 | AU72: 2.299334128 | AV72: 1.497442347 | AW72: 1.618522904 | AX72: 2.299334128 | AY72: 2.299334128 | BE72: 2.299334128
W73: 0.25 | X73: 7.75 | Y73: 0.02941176471 | Z73: 2.029411765 | AA73: 2.029411765 | AB73: 0.005421168474 | AC73: 0.004841801961 | AD73: 2.299493574 | AE73: 557.7482201 | AF73: 557.7482201 | AG73: 0.0405854001 | AH73: 0.03900941989 | AI73: 1.498636035 | AJ73: 89.75688371 | AK73: 89.75688371 | AL73: 0.1182795491 | AM73: 0.1161890355 | AN73: 1.622001714 | AO73: 37.67996065 | AP73: 37.67996065 | AT73: 2.029411765 | AU73: 2.299493574 | AV73: 1.498636035 | AW73: 1.622001714 | AX73: 2.299493574 | AY73: 2.299493574 | BE73: 2.299493574
W74: 0.25 | X74: 7.5 | Y74: 0.02941176471 | Z74: 2.058823529 | AA74: 2.058823529 | AB74: 0.004295168018 | AC74: 0.003781266648 | AD74: 2.299619903 | AE74: 714.1469642 | AF74: 714.1469642 | AG74: 0.03746464718 | AH74: 0.03595108196 | AI74: 1.499737936 | AJ74: 97.36180035 | AK74: 97.36180035 | AL74: 0.1141165426 | AM74: 0.1120621033 | AN74: 1.625358083 | AO74: 39.03765669 | AP74: 39.03765669 | AT74: 2.058823529 | AU74: 2.299619903 | AV74: 1.499737936 | AW74: 1.625358083 | AX74: 2.299619903 | AY74: 2.299619903 | BE74: 2.299619903
W75: 0.25 | X75: 7.25 | Y75: 0.02941176471 | Z75: 2.088235294 | AA75: 2.088235294 | AB75: 0.003300097848 | AC75: 0.00285166162 | AD75: 2.299716964 | AE75: 946.9156567 | AF75: 946.9156567 | AG75: 0.03446872423 | AH75: 0.03301757401 | AI75: 1.500751722 | AJ75: 105.9813867 | AK75: 105.9813867 | AL75: 0.1100257492 | AM75: 0.1080075113 | AN75: 1.628594135 | AO75: 40.47316535 | AP75: 40.47316535 | AT75: 2.088235294 | AU75: 2.299716964 | AV75: 1.500751722 | AW75: 1.628594135 | AX75: 2.299716964 | AY75: 2.299716964 | BE75: 2.299716964
W76: 0.25 | X76: 7 | Y76: 0.02941176471 | Z76: 2.117647059 | AA76: 2.117647059 | AB76: 0.002435957963 | AC76: 0.002052986878 | AD76: 2.29978861 | AE76: 1315.259936 | AF76: 1315.259936 | AG76: 0.03159763129 | AH76: 0.03020889608 | AI76: 1.501681064 | AJ76: 115.8042626 | AK76: 115.8042626 | AL76: 0.1060074195 | AM76: 0.1040255028 | AN76: 1.631712 | AO76: 41.99247186 | AP76: 41.99247186 | AT76: 2.117647059 | AU76: 2.29978861 | AV76: 1.501681064 | AW76: 1.631712 | AX76: 2.29978861 | AY76: 2.29978861 | BE76: 2.29978861
W77: 0.25 | X77: 6.75 | Y77: 0.02941176471 | Z77: 2.147058824 | AA77: 2.147058824 | AB77: 0.001702748364 | AC77: 0.001385242421 | AD77: 2.299838691 | AE77: 1949.233771 | AF77: 1949.233771 | AG77: 0.02885136838 | AH77: 0.0275250482 | AI77: 1.502529634 | AJ77: 127.0650042 | AK77: 127.0650042 | AL77: 0.1020617894 | AM77: 0.1001163065 | AN77: 1.634713817 | AO77: 43.60214969 | AP77: 43.60214969 | AT77: 2.147058824 | AU77: 2.299838691 | AV77: 1.502529634 | AW77: 1.634713817 | AX77: 2.299838691 | AY77: 2.299838691 | BE77: 2.299838691
W78: 0.25 | X78: 6.5 | Y78: 0.02941176471 | Z78: 2.176470588 | AA78: 2.176470588 | AB78: 0.00110046905 | AC78: =IF(X78>$E$9,(0.00033*(X78-5.6)*((6.5-2.8)*(1-EXP(0.5*(6.5-9.8)))*(36.7-0.9324)*(1-EXP(0.42*(-5-0.9324)))))^2,(0.00033*(5.61-5.6)*((6.5-2.8)*(1-EXP(0.5*(6.5-9.8)))*(36.7-0.9324)*(1-EXP(0.42*(-5-0.9324)))))^2) -> 0.0008484282506 | AD78: 2.299871058 | AE78: 3182.507113 | AF78: 3182.507113 | AG78: 0.02622993553 | AH78: 0.02496603037 | AI78: 1.503301103 | AJ78: 140.058265 | AK78: 140.058265 | AL78: 0.0981890807 | AM78: 0.09628013763 | AN78: 1.637601732 | AO78: 45.30943117 | AP78: 45.30943117 | AT78: 2.176470588 | AU78: 2.299871058 | AV78: 1.503301103 | AW78: 1.637601732 | AX78: 2.299871058 | AY78: 2.299871058 | BE78: 2.299871058
W79: 0.25 | X79: 6.25 | Y79: 0.02941176471 | Z79: 2.205882353 | AA79: 2.205882353 | AB79: 0.0006291200222 | AC79: =IF(X79>$E$9,(0.00033*(X79-5.6)*((6.5-2.8)*(1-EXP(0.5*(6.5-9.8)))*(36.7-0.9324)*(1-EXP(0.42*(-5-0.9324)))))^2,(0.00033*(5.61-5.6)*((6.5-2.8)*(1-EXP(0.5*(6.5-9.8)))*(36.7-0.9324)*(1-EXP(0.42*(-5-0.9324)))))^2) -> 0.0004425443653 | AD79: 2.299889561 | AE79: 6101.332771 | AF79: 6101.332771 | AG79: 0.02373333274 | AH79: 0.02253184262 | AI79: 1.503999142 | AJ79: 155.1582317 | AK79: 155.1582317 | AL79: 0.0943895022 | AM79: 0.09251719858 | AN79: 1.640377893 | AO79: 47.12228833 | AP79: 47.12228833 | AT79: 2.205882353 | AU79: 2.299889561 | AV79: 1.503999142 | AW79: 1.640377893 | AX79: 2.299889561 | AY79: 2.299889561 | BE79: 2.299889561
W80: 0.25 | X80: 6 | Y80: 0.02941176471 | Z80: 2.235294118 | AA80: 2.235294118 | AB80: 0.0002887012797 | AC80: =IF(X80>$E$9,(0.00033*(X80-5.6)*((6.5-2.8)*(1-EXP(0.5*(6.5-9.8)))*(36.7-0.9324)*(1-EXP(0.42*(-5-0.9324)))))^2,(0.00033*(5.61-5.6)*((6.5-2.8)*(1-EXP(0.5*(6.5-9.8)))*(36.7-0.9324)*(1-EXP(0.42*(-5-0.9324)))))^2) -> 0.0001675907655 | AD80: 2.299898053 | AE80: 16111.28118 | AF80: 16111.28118 | AG80: 0.02136156003 | AH80: 0.02022248496 | AI80: 1.504627423 | AJ80: 172.8458488 | AK80: 172.8458488 | AL80: 0.09066325017 | AM80: 0.08882767969 | AN80: 1.64304446 | AO80: 49.04952551 | AP80: 49.04952551 | AT80: 2.235294118 | AU80: 2.299898053 | AV80: 1.504627423 | AW80: 1.64304446 | AX80: 2.299898053 | AY80: 2.299898053 | BE80: 2.299898053
W81: 0.25 | X81: 5.75 | Y81: 0.02941176471 | Z81: 2.264705882 | AA81: 2.264705882 | AB81: 7.921282278e-05 | AC81: 2.35674514e-05 | AD81: 2.299900382 | AE81: 114569.0118 | AF81: 114569.0118 | AG81: 0.01911461741 | AH81: 0.0180379574 | AI81: 1.505189618 | AJ81: 193.7475683 | AK81: 193.7475683 | AL81: 0.08701050913 | AM81: 0.08521175986 | AN81: 1.645603592 | AO81: 51.10088578 | AP81: =IF(AO81>0,AO81,0) -> 51.10088578 | AT81: 2.264705882 | AU81: 2.299900382 | AV81: 1.505189618 | AW81: 1.645603592 | AX81: 2.299900382 | AY81: 2.299900382 | BE81: 2.299900382
W82: 0.25 | X82: 5.5 | Y82: 0.02941176471 | Z82: =IF(W82=0,0,(X82-$C$20)/-$C$15) -> 2.294117647 | AA82: 2.294117647 | AB82: 0 | AC82: 1.047442285e-07 | AD82: 2.299900382 | AE82: 114569.0118 | AF82: 114569.0118 | AG82: 0.01699250491 | AH82: 0.01597825995 | AI82: 1.505689397 | AJ82: 218.6915605 | AK82: 218.6915605 | AL82: 0.08343145255 | AM82: 0.08166960726 | AN82: 1.648057458 | AO82: 53.28717362 | AP82: =IF(AO82>0,AO82,0) -> 53.28717362 | AT82: 2.294117647 | AU82: 2.299900382 | AV82: 1.505689397 | AW82: 1.648057458 | AX82: 2.299900382 | AY82: 2.299900382 | BE82: 2.299900382
W83: 0.25 | X83: 5.25 | Y83: 0.02941176471 | Z83: =IF(W83=0,0,(X83-$C$20)/-$C$15) -> 2.323529412 | AA83: 2.323529412 | AB83: 0 | AC83: 1.047442285e-07 | AD83: 2.299900382 | AE83: 114569.0118 | AF83: 114569.0118 | AG83: 0.01499522252 | AH83: 0.01404339262 | AI83: 1.506130433 | AJ83: 248.7909911 | AK83: 248.7909911 | AL83: 0.07992624344 | AM83: 0.07820137991 | AN83: 1.65040823 | AO83: 55.62039665 | AP83: 55.62039665 | AT83: 2.323529412 | AU83: 2.299900382 | AV83: 1.506130433 | AW83: 1.65040823 | AX83: 2.299900382 | AY83: 2.299900382 | BE83: 2.299900382
W84: 0.25 | X84: 5 | Y84: 0.02941176471 | Z84: 2.352941176 | AA84: 2.352941176 | AB84: 0 | AC84: 1.047442285e-07 | AD84: 2.299900382 | AE84: 114569.0118 | AF84: 114569.0118 | AG84: 0.01312277025 | AH84: 0.01223335541 | AI84: 1.506516397 | AJ84: 285.5703513 | AK84: 285.5703513 | AL84: 0.07649503496 | AM84: 0.07480722627 | AN84: 1.652658084 | AO84: 58.11393007 | AP84: 58.11393007 | AT84: 2.352941176 | AU84: 2.299900382 | AV84: 1.506516397 | AW84: 1.652658084 | AX84: 2.299900382 | AY84: 2.299900382 | BE84: 2.299900382
W85: =IF(OR(X84=$C$21,W84=0),0,0.25) -> 0 | X85: =IF(OR(X84=$C$21,X84=0),0,X84-W85) -> 0 | Y85: =IF(W85=0,0,$Z$6-$Z$5) -> 0 | Z85: =IF(W85=0,0,(X85-$C$20)/-$C$15) -> 0 | AA85: =Y85+AA84 -> 2.352941176 | AB85: =IF(X85>$E$9,(0.00033*(((X84+X85)/2)-5.6)*((6.5-2.8)*(1-EXP(0.5*(6.5-9.8)))*(36.7-0.9324)*(1-EXP(0.42*(-5-0.9324)))))^2,0) -> 0 | AC85: =IF(X85>$E$9,(0.00033*(X85-5.6)*((6.5-2.8)*(1-EXP(0.5*(6.5-9.8)))*(36.7-0.9324)*(1-EXP(0.42*(-5-0.9324)))))^2,(0.00033*(5.61-5.6)*((6.5-2.8)*(1-EXP(0.5*(6.5-9.8)))*(36.7-0.9324)*(1-EXP(0.42*(-5-0.9324)))))^2) -> 1.047442285e-07 | AD85: =(Y85*AB85)+AD84 -> 2.299900382 | AE85: =IF(AB85=0,AE84,($D$9-AD85)/AC85) -> 114569.0118 | AF85: =IF(AE85>0,AE85,0) -> 114569.0118 | AG85: 0 | AH85: =IF(X85>$E$10,(((0.175*(X85-1.5)*SQRT(0.995-0.92)*(1-EXP(0.4395*(X85-45)))))^2)/2.3,0) -> 0 | AI85: =(Y85*AG85)+AI84 -> 1.506516397 | AJ85: =IF(AG85=0,AJ84,($D$10-AI85)/AH85) -> 285.5703513 | AK85: =IF(AJ85>0,AJ85,0) -> 285.5703513 | AL85: =IF(AND(X85>$E$11,OR(X85>0,X85<0)),((0.1709*(((X85+X84)/2)+6.1)*SQRT(0.995-0.947)*(1-EXP(0.1723*(((X85+X84)/2)-41.2))))^2)/2.3,0) -> 0 | AM85: =IF(X85>$E$11,((0.1709*(X85+6.1)*SQRT(0.995-0.947)*(1-EXP(0.1723*(X85-41.2))))^2)/2.3,0) -> 0.02264327985 | AN85: =(Y85*AL85)+AN84 -> 1.652658084 | AO85: =IF(AL85=0,AO84,($D$11-AN85)/AM85) -> 58.11393007 | AP85: =IF(AO85>0,AO85,0) -> 58.11393007 | AT85: =AA85 -> 2.352941176 | AU85: =AD85 -> 2.299900382 | AV85: =AI85 -> 1.506516397 | AW85: =AN85 -> 1.652658084 | AX85: 2.299900382 | AY85: 2.299900382 | BA85: =IF($BA$1=TRUE,AU85,NA()) ->  | BB85: =IF($BB$1=TRUE,AV85,NA()) ->  | BC85: =IF($BC$1=TRUE,AW85,NA()) ->  | BD85: =IF($BD$1=TRUE,AX85,NA()) ->  | BE85: =IF($BE$1=TRUE,AY85,NA()) -> 2.299900382
W86: 0 | X86: 0 | Y86: 0 | Z86: 0 | AA86: 2.352941176 | AB86: 0 | AC86: 1.047442285e-07 | AD86: 2.299900382 | AE86: 114569.0118 | AF86: 114569.0118 | AG86: 0 | AH86: 0 | AI86: 1.506516397 | AJ86: 285.5703513 | AK86: 285.5703513 | AL86: 0 | AM86: 0.02264327985 | AN86: 1.652658084 | AO86: 58.11393007 | AP86: 58.11393007 | AT86: 2.352941176 | AU86: 2.299900382 | AV86: 1.506516397 | AW86: 1.652658084 | AX86: 2.299900382 | AY86: 2.299900382 | BE86: 2.299900382
W87: 0 | X87: 0 | Y87: 0 | Z87: 0 | AA87: 2.352941176 | AB87: 0 | AC87: 1.047442285e-07 | AD87: 2.299900382 | AE87: 114569.0118 | AF87: 114569.0118 | AG87: 0 | AH87: 0 | AI87: 1.506516397 | AJ87: 285.5703513 | AK87: 285.5703513 | AL87: 0 | AM87: 0.02264327985 | AN87: 1.652658084 | AO87: 58.11393007 | AP87: 58.11393007 | AT87: 2.352941176 | AU87: 2.299900382 | AV87: 1.506516397 | AW87: 1.652658084 | AX87: 2.299900382 | AY87: 2.299900382 | BE87: 2.299900382
W88: 0 | X88: 0 | Y88: 0 | Z88: 0 | AA88: 2.352941176 | AB88: 0 | AC88: 1.047442285e-07 | AD88: 2.299900382 | AE88: 114569.0118 | AF88: 114569.0118 | AG88: 0 | AH88: 0 | AI88: 1.506516397 | AJ88: 285.5703513 | AK88: 285.5703513 | AL88: 0 | AM88: 0.02264327985 | AN88: 1.652658084 | AO88: 58.11393007 | AP88: 58.11393007 | AT88: 2.352941176 | AU88: 2.299900382 | AV88: 1.506516397 | AW88: 1.652658084 | AX88: 2.299900382 | AY88: 2.299900382 | BE88: 2.299900382
W89: 0 | X89: 0 | Y89: 0 | Z89: 0 | AA89: 2.352941176 | AB89: 0 | AC89: 1.047442285e-07 | AD89: 2.299900382 | AE89: 114569.0118 | AF89: 114569.0118 | AG89: 0 | AH89: 0 | AI89: 1.506516397 | AJ89: 285.5703513 | AK89: 285.5703513 | AL89: 0 | AM89: 0.02264327985 | AN89: 1.652658084 | AO89: 58.11393007 | AP89: 58.11393007 | AT89: 2.352941176 | AU89: 2.299900382 | AV89: 1.506516397 | AW89: 1.652658084 | AX89: 2.299900382 | AY89: 2.299900382 | BE89: 2.299900382
W90: 0 | X90: 0 | Y90: 0 | Z90: 0 | AA90: 2.352941176 | AB90: 0 | AC90: 1.047442285e-07 | AD90: 2.299900382 | AE90: 114569.0118 | AF90: 114569.0118 | AG90: 0 | AH90: 0 | AI90: 1.506516397 | AJ90: 285.5703513 | AK90: 285.5703513 | AL90: 0 | AM90: 0.02264327985 | AN90: 1.652658084 | AO90: 58.11393007 | AP90: 58.11393007 | AT90: 2.352941176 | AU90: 2.299900382 | AV90: 1.506516397 | AW90: 1.652658084 | AX90: 2.299900382 | AY90: 2.299900382 | BE90: 2.299900382
W91: 0 | X91: 0 | Y91: 0 | Z91: 0 | AA91: 2.352941176 | AB91: 0 | AC91: 1.047442285e-07 | AD91: 2.299900382 | AE91: 114569.0118 | AF91: 114569.0118 | AG91: 0 | AH91: 0 | AI91: 1.506516397 | AJ91: 285.5703513 | AK91: 285.5703513 | AL91: 0 | AM91: 0.02264327985 | AN91: 1.652658084 | AO91: 58.11393007 | AP91: 58.11393007 | AT91: 2.352941176 | AU91: 2.299900382 | AV91: 1.506516397 | AW91: 1.652658084 | AX91: 2.299900382 | AY91: 2.299900382 | BE91: 2.299900382
W92: 0 | X92: 0 | Y92: 0 | Z92: 0 | AA92: 2.352941176 | AB92: 0 | AC92: 1.047442285e-07 | AD92: 2.299900382 | AE92: 114569.0118 | AF92: 114569.0118 | AG92: 0 | AH92: 0 | AI92: 1.506516397 | AJ92: 285.5703513 | AK92: 285.5703513 | AL92: 0 | AM92: 0.02264327985 | AN92: 1.652658084 | AO92: 58.11393007 | AP92: 58.11393007 | AT92: 2.352941176 | AU92: 2.299900382 | AV92: 1.506516397 | AW92: 1.652658084 | AX92: 2.299900382 | AY92: 2.299900382 | BE92: 2.299900382
W93: 0 | X93: 0 | Y93: 0 | Z93: 0 | AA93: 2.352941176 | AB93: 0 | AC93: 1.047442285e-07 | AD93: 2.299900382 | AE93: 114569.0118 | AF93: 114569.0118 | AG93: 0 | AH93: 0 | AI93: 1.506516397 | AJ93: 285.5703513 | AK93: 285.5703513 | AL93: 0 | AM93: 0.02264327985 | AN93: 1.652658084 | AO93: 58.11393007 | AP93: 58.11393007 | AT93: 2.352941176 | AU93: 2.299900382 | AV93: 1.506516397 | AW93: 1.652658084 | AX93: 2.299900382 | AY93: 2.299900382 | BE93: 2.299900382
W94: 0 | X94: 0 | Y94: 0 | Z94: 0 | AA94: 2.352941176 | AB94: 0 | AC94: 1.047442285e-07 | AD94: 2.299900382 | AE94: 114569.0118 | AF94: 114569.0118 | AG94: 0 | AH94: 0 | AI94: 1.506516397 | AJ94: 285.5703513 | AK94: 285.5703513 | AL94: 0 | AM94: 0.02264327985 | AN94: 1.652658084 | AO94: 58.11393007 | AP94: 58.11393007 | AT94: 2.352941176 | AU94: 2.299900382 | AV94: 1.506516397 | AW94: 1.652658084 | AX94: 2.299900382 | AY94: 2.299900382 | BE94: 2.299900382
W95: 0 | X95: 0 | Y95: 0 | Z95: 0 | AA95: 2.352941176 | AB95: 0 | AC95: 1.047442285e-07 | AD95: 2.299900382 | AE95: 114569.0118 | AF95: 114569.0118 | AG95: 0 | AH95: 0 | AI95: 1.506516397 | AJ95: 285.5703513 | AK95: 285.5703513 | AL95: 0 | AM95: 0.02264327985 | AN95: 1.652658084 | AO95: 58.11393007 | AP95: 58.11393007 | AT95: 2.352941176 | AU95: 2.299900382 | AV95: 1.506516397 | AW95: 1.652658084 | AX95: 2.299900382 | AY95: 2.299900382 | BE95: 2.299900382
W96: 0 | X96: 0 | Y96: 0 | Z96: 0 | AA96: 2.352941176 | AB96: 0 | AC96: 1.047442285e-07 | AD96: 2.299900382 | AE96: 114569.0118 | AF96: 114569.0118 | AG96: 0 | AH96: 0 | AI96: 1.506516397 | AJ96: 285.5703513 | AK96: 285.5703513 | AL96: 0 | AM96: 0.02264327985 | AN96: 1.652658084 | AO96: 58.11393007 | AP96: 58.11393007 | AT96: 2.352941176 | AU96: 2.299900382 | AV96: 1.506516397 | AW96: 1.652658084 | AX96: 2.299900382 | AY96: 2.299900382 | BE96: 2.299900382
W97: 0 | X97: 0 | Y97: 0 | Z97: 0 | AA97: 2.352941176 | AB97: 0 | AC97: 1.047442285e-07 | AD97: 2.299900382 | AE97: 114569.0118 | AF97: 114569.0118 | AG97: 0 | AH97: 0 | AI97: 1.506516397 | AJ97: 285.5703513 | AK97: 285.5703513 | AL97: 0 | AM97: 0.02264327985 | AN97: 1.652658084 | AO97: 58.11393007 | AP97: 58.11393007 | AT97: 2.352941176 | AU97: 2.299900382 | AV97: 1.506516397 | AW97: 1.652658084 | AX97: 2.299900382 | AY97: 2.299900382 | BE97: 2.299900382
W98: 0 | X98: 0 | Y98: 0 | Z98: 0 | AA98: 2.352941176 | AB98: 0 | AC98: 1.047442285e-07 | AD98: 2.299900382 | AE98: 114569.0118 | AF98: 114569.0118 | AG98: 0 | AH98: 0 | AI98: 1.506516397 | AJ98: 285.5703513 | AK98: 285.5703513 | AL98: 0 | AM98: 0.02264327985 | AN98: 1.652658084 | AO98: 58.11393007 | AP98: 58.11393007 | AT98: 2.352941176 | AU98: 2.299900382 | AV98: 1.506516397 | AW98: 1.652658084 | AX98: 2.299900382 | AY98: 2.299900382 | BE98: 2.299900382
W99: 0 | X99: 0 | Y99: 0 | Z99: 0 | AA99: 2.352941176 | AB99: 0 | AC99: 1.047442285e-07 | AD99: 2.299900382 | AE99: 114569.0118 | AF99: 114569.0118 | AG99: 0 | AH99: 0 | AI99: 1.506516397 | AJ99: 285.5703513 | AK99: 285.5703513 | AL99: 0 | AM99: 0.02264327985 | AN99: 1.652658084 | AO99: 58.11393007 | AP99: 58.11393007 | AT99: 2.352941176 | AU99: 2.299900382 | AV99: 1.506516397 | AW99: 1.652658084 | AX99: 2.299900382 | AY99: 2.299900382 | BE99: 2.299900382
W100: 0 | X100: 0 | Y100: 0 | Z100: 0 | AA100: 2.352941176 | AB100: 0 | AC100: 1.047442285e-07 | AD100: 2.299900382 | AE100: 114569.0118 | AF100: 114569.0118 | AG100: 0 | AH100: 0 | AI100: 1.506516397 | AJ100: 285.5703513 | AK100: 285.5703513 | AL100: 0 | AM100: 0.02264327985 | AN100: 1.652658084 | AO100: 58.11393007 | AP100: 58.11393007 | AT100: 2.352941176 | AU100: 2.299900382 | AV100: 1.506516397 | AW100: 1.652658084 | AX100: 2.299900382 | AY100: 2.299900382 | BE100: 2.299900382
W101: 0 | X101: 0 | Y101: 0 | Z101: 0 | AA101: 2.352941176 | AB101: 0 | AC101: 1.047442285e-07 | AD101: 2.299900382 | AE101: 114569.0118 | AF101: 114569.0118 | AG101: 0 | AH101: 0 | AI101: 1.506516397 | AJ101: 285.5703513 | AK101: 285.5703513 | AL101: 0 | AM101: 0.02264327985 | AN101: 1.652658084 | AO101: 58.11393007 | AP101: 58.11393007 | AT101: 2.352941176 | AU101: 2.299900382 | AV101: 1.506516397 | AW101: 1.652658084 | AX101: 2.299900382 | AY101: 2.299900382 | BE101: 2.299900382
W102: 0 | X102: 0 | Y102: 0 | Z102: 0 | AA102: 2.352941176 | AB102: 0 | AC102: 1.047442285e-07 | AD102: 2.299900382 | AE102: 114569.0118 | AF102: 114569.0118 | AG102: 0 | AH102: 0 | AI102: 1.506516397 | AJ102: 285.5703513 | AK102: 285.5703513 | AL102: 0 | AM102: 0.02264327985 | AN102: 1.652658084 | AO102: 58.11393007 | AP102: 58.11393007 | AT102: 2.352941176 | AU102: 2.299900382 | AV102: 1.506516397 | AW102: 1.652658084 | AX102: 2.299900382 | AY102: 2.299900382 | BE102: 2.299900382
W103: 0 | X103: 0 | Y103: 0 | Z103: 0 | AA103: 2.352941176 | AB103: 0 | AC103: 1.047442285e-07 | AD103: 2.299900382 | AE103: 114569.0118 | AF103: 114569.0118 | AG103: 0 | AH103: 0 | AI103: 1.506516397 | AJ103: 285.5703513 | AK103: 285.5703513 | AL103: 0 | AM103: 0.02264327985 | AN103: 1.652658084 | AO103: 58.11393007 | AP103: 58.11393007 | AT103: 2.352941176 | AU103: 2.299900382 | AV103: 1.506516397 | AW103: 1.652658084 | AX103: 2.299900382 | AY103: 2.299900382 | BE103: 2.299900382
W104: 0 | X104: 0 | Y104: 0 | Z104: 0 | AA104: 2.352941176 | AB104: 0 | AC104: 1.047442285e-07 | AD104: 2.299900382 | AE104: 114569.0118 | AF104: 114569.0118 | AG104: 0 | AH104: 0 | AI104: 1.506516397 | AJ104: 285.5703513 | AK104: 285.5703513 | AL104: 0 | AM104: 0.02264327985 | AN104: 1.652658084 | AO104: 58.11393007 | AP104: 58.11393007 | AT104: 2.352941176 | AU104: 2.299900382 | AV104: 1.506516397 | AW104: 1.652658084 | AX104: 2.299900382 | AY104: 2.299900382 | BE104: 2.299900382
W105: 0 | X105: 0 | Y105: 0 | Z105: 0 | AA105: 2.352941176 | AB105: 0 | AC105: 1.047442285e-07 | AD105: 2.299900382 | AE105: 114569.0118 | AF105: 114569.0118 | AG105: 0 | AH105: 0 | AI105: 1.506516397 | AJ105: 285.5703513 | AK105: 285.5703513 | AL105: 0 | AM105: 0.02264327985 | AN105: 1.652658084 | AO105: 58.11393007 | AP105: 58.11393007 | AT105: 2.352941176 | AU105: 2.299900382 | AV105: 1.506516397 | AW105: 1.652658084 | AX105: 2.299900382 | AY105: 2.299900382 | BE105: 2.299900382
W106: 0 | X106: 0 | Y106: 0 | Z106: 0 | AA106: 2.352941176 | AB106: 0 | AC106: 1.047442285e-07 | AD106: 2.299900382 | AE106: 114569.0118 | AF106: 114569.0118 | AG106: 0 | AH106: 0 | AI106: 1.506516397 | AJ106: 285.5703513 | AK106: 285.5703513 | AL106: 0 | AM106: 0.02264327985 | AN106: 1.652658084 | AO106: 58.11393007 | AP106: 58.11393007 | AT106: 2.352941176 | AU106: 2.299900382 | AV106: 1.506516397 | AW106: 1.652658084 | AX106: 2.299900382 | AY106: 2.299900382 | BE106: 2.299900382
W107: 0 | X107: 0 | Y107: 0 | Z107: 0 | AA107: 2.352941176 | AB107: 0 | AC107: 1.047442285e-07 | AD107: 2.299900382 | AE107: 114569.0118 | AF107: 114569.0118 | AG107: 0 | AH107: 0 | AI107: 1.506516397 | AJ107: 285.5703513 | AK107: 285.5703513 | AL107: 0 | AM107: 0.02264327985 | AN107: 1.652658084 | AO107: 58.11393007 | AP107: 58.11393007 | AT107: 2.352941176 | AU107: 2.299900382 | AV107: 1.506516397 | AW107: 1.652658084 | AX107: 2.299900382 | AY107: 2.299900382 | BE107: 2.299900382
W108: 0 | X108: 0 | Y108: 0 | Z108: 0 | AA108: 2.352941176 | AB108: 0 | AC108: 1.047442285e-07 | AD108: 2.299900382 | AE108: 114569.0118 | AF108: 114569.0118 | AG108: 0 | AH108: 0 | AI108: 1.506516397 | AJ108: 285.5703513 | AK108: 285.5703513 | AL108: 0 | AM108: 0.02264327985 | AN108: 1.652658084 | AO108: 58.11393007 | AP108: 58.11393007 | AT108: 2.352941176 | AU108: 2.299900382 | AV108: 1.506516397 | AW108: 1.652658084 | AX108: 2.299900382 | AY108: 2.299900382 | BE108: 2.299900382
W109: 0 | X109: 0 | Y109: 0 | Z109: 0 | AA109: 2.352941176 | AB109: 0 | AC109: 1.047442285e-07 | AD109: 2.299900382 | AE109: 114569.0118 | AF109: 114569.0118 | AG109: 0 | AH109: 0 | AI109: 1.506516397 | AJ109: 285.5703513 | AK109: 285.5703513 | AL109: 0 | AM109: 0.02264327985 | AN109: 1.652658084 | AO109: 58.11393007 | AP109: 58.11393007 | AT109: 2.352941176 | AU109: 2.299900382 | AV109: 1.506516397 | AW109: 1.652658084 | AX109: 2.299900382 | AY109: 2.299900382 | BE109: 2.299900382
W110: 0 | X110: 0 | Y110: 0 | Z110: 0 | AA110: 2.352941176 | AB110: 0 | AC110: 1.047442285e-07 | AD110: 2.299900382 | AE110: 114569.0118 | AF110: 114569.0118 | AG110: 0 | AH110: 0 | AI110: 1.506516397 | AJ110: 285.5703513 | AK110: 285.5703513 | AL110: 0 | AM110: 0.02264327985 | AN110: 1.652658084 | AO110: 58.11393007 | AP110: 58.11393007 | AT110: 2.352941176 | AU110: 2.299900382 | AV110: 1.506516397 | AW110: 1.652658084 | AX110: 2.299900382 | AY110: 2.299900382 | BE110: 2.299900382
W111: 0 | X111: 0 | Y111: 0 | Z111: 0 | AA111: 2.352941176 | AB111: 0 | AC111: 1.047442285e-07 | AD111: 2.299900382 | AE111: 114569.0118 | AF111: 114569.0118 | AG111: 0 | AH111: 0 | AI111: 1.506516397 | AJ111: 285.5703513 | AK111: 285.5703513 | AL111: 0 | AM111: 0.02264327985 | AN111: 1.652658084 | AO111: 58.11393007 | AP111: 58.11393007 | AT111: 2.352941176 | AU111: 2.299900382 | AV111: 1.506516397 | AW111: 1.652658084 | AX111: 2.299900382 | AY111: 2.299900382 | BE111: 2.299900382
W112: 0 | X112: 0 | Y112: 0 | Z112: 0 | AA112: 2.352941176 | AB112: 0 | AC112: 1.047442285e-07 | AD112: 2.299900382 | AE112: 114569.0118 | AF112: 114569.0118 | AG112: 0 | AH112: 0 | AI112: 1.506516397 | AJ112: 285.5703513 | AK112: 285.5703513 | AL112: 0 | AM112: 0.02264327985 | AN112: 1.652658084 | AO112: 58.11393007 | AP112: 58.11393007 | AT112: 2.352941176 | AU112: 2.299900382 | AV112: 1.506516397 | AW112: 1.652658084 | AX112: 2.299900382 | AY112: 2.299900382 | BE112: 2.299900382
W113: 0 | X113: 0 | Y113: 0 | Z113: 0 | AA113: 2.352941176 | AB113: 0 | AC113: 1.047442285e-07 | AD113: 2.299900382 | AE113: 114569.0118 | AF113: 114569.0118 | AG113: 0 | AH113: 0 | AI113: 1.506516397 | AJ113: 285.5703513 | AK113: 285.5703513 | AL113: 0 | AM113: 0.02264327985 | AN113: 1.652658084 | AO113: 58.11393007 | AP113: 58.11393007 | AT113: 2.352941176 | AU113: 2.299900382 | AV113: 1.506516397 | AW113: 1.652658084 | AX113: 2.299900382 | AY113: 2.299900382 | BE113: 2.299900382
W114: 0 | X114: 0 | Y114: 0 | Z114: 0 | AA114: 2.352941176 | AB114: 0 | AC114: 1.047442285e-07 | AD114: 2.299900382 | AE114: 114569.0118 | AF114: 114569.0118 | AG114: 0 | AH114: 0 | AI114: 1.506516397 | AJ114: 285.5703513 | AK114: 285.5703513 | AL114: 0 | AM114: 0.02264327985 | AN114: 1.652658084 | AO114: 58.11393007 | AP114: 58.11393007 | AT114: 2.352941176 | AU114: 2.299900382 | AV114: 1.506516397 | AW114: 1.652658084 | AX114: 2.299900382 | AY114: 2.299900382 | BE114: 2.299900382
W115: 0 | X115: 0 | Y115: 0 | Z115: 0 | AA115: 2.352941176 | AB115: 0 | AC115: 1.047442285e-07 | AD115: 2.299900382 | AE115: 114569.0118 | AF115: 114569.0118 | AG115: 0 | AH115: 0 | AI115: 1.506516397 | AJ115: 285.5703513 | AK115: 285.5703513 | AL115: 0 | AM115: 0.02264327985 | AN115: 1.652658084 | AO115: 58.11393007 | AP115: 58.11393007 | AT115: 2.352941176 | AU115: 2.299900382 | AV115: 1.506516397 | AW115: 1.652658084 | AX115: 2.299900382 | AY115: 2.299900382 | BE115: 2.299900382
W116: 0 | X116: 0 | Y116: 0 | Z116: 0 | AA116: 2.352941176 | AB116: 0 | AC116: 1.047442285e-07 | AD116: 2.299900382 | AE116: 114569.0118 | AF116: 114569.0118 | AG116: 0 | AH116: 0 | AI116: 1.506516397 | AJ116: 285.5703513 | AK116: 285.5703513 | AL116: 0 | AM116: 0.02264327985 | AN116: 1.652658084 | AO116: 58.11393007 | AP116: 58.11393007 | AT116: 2.352941176 | AU116: 2.299900382 | AV116: 1.506516397 | AW116: 1.652658084 | AX116: 2.299900382 | AY116: 2.299900382 | BE116: 2.299900382
W117: 0 | X117: 0 | Y117: 0 | Z117: 0 | AA117: 2.352941176 | AB117: 0 | AC117: 1.047442285e-07 | AD117: 2.299900382 | AE117: 114569.0118 | AF117: 114569.0118 | AG117: 0 | AH117: 0 | AI117: 1.506516397 | AJ117: 285.5703513 | AK117: 285.5703513 | AL117: 0 | AM117: 0.02264327985 | AN117: 1.652658084 | AO117: 58.11393007 | AP117: 58.11393007 | AT117: 2.352941176 | AU117: 2.299900382 | AV117: 1.506516397 | AW117: 1.652658084 | AX117: 2.299900382 | AY117: 2.299900382 | BE117: 2.299900382
W118: 0 | X118: 0 | Y118: 0 | Z118: 0 | AA118: 2.352941176 | AB118: 0 | AC118: 1.047442285e-07 | AD118: 2.299900382 | AE118: 114569.0118 | AF118: 114569.0118 | AG118: 0 | AH118: 0 | AI118: 1.506516397 | AJ118: 285.5703513 | AK118: 285.5703513 | AL118: 0 | AM118: 0.02264327985 | AN118: 1.652658084 | AO118: 58.11393007 | AP118: 58.11393007 | AT118: 2.352941176 | AU118: 2.299900382 | AV118: 1.506516397 | AW118: 1.652658084 | AX118: 2.299900382 | AY118: 2.299900382 | BE118: 2.299900382
W119: 0 | X119: 0 | Y119: 0 | Z119: 0 | AA119: 2.352941176 | AB119: 0 | AC119: 1.047442285e-07 | AD119: 2.299900382 | AE119: 114569.0118 | AF119: 114569.0118 | AG119: 0 | AH119: 0 | AI119: 1.506516397 | AJ119: 285.5703513 | AK119: 285.5703513 | AL119: 0 | AM119: 0.02264327985 | AN119: 1.652658084 | AO119: 58.11393007 | AP119: 58.11393007 | AT119: 2.352941176 | AU119: 2.299900382 | AV119: 1.506516397 | AW119: 1.652658084 | AX119: 2.299900382 | AY119: 2.299900382 | BE119: 2.299900382
W120: 0 | X120: 0 | Y120: 0 | Z120: 0 | AA120: 2.352941176 | AB120: 0 | AC120: 1.047442285e-07 | AD120: 2.299900382 | AE120: 114569.0118 | AF120: 114569.0118 | AG120: 0 | AH120: 0 | AI120: 1.506516397 | AJ120: 285.5703513 | AK120: 285.5703513 | AL120: 0 | AM120: 0.02264327985 | AN120: 1.652658084 | AO120: 58.11393007 | AP120: 58.11393007 | AT120: 2.352941176 | AU120: 2.299900382 | AV120: 1.506516397 | AW120: 1.652658084 | AX120: 2.299900382 | AY120: 2.299900382 | BE120: 2.299900382
W121: 0 | X121: 0 | Y121: 0 | Z121: 0 | AA121: 2.352941176 | AB121: 0 | AC121: 1.047442285e-07 | AD121: 2.299900382 | AE121: 114569.0118 | AF121: 114569.0118 | AG121: 0 | AH121: 0 | AI121: 1.506516397 | AJ121: 285.5703513 | AK121: 285.5703513 | AL121: 0 | AM121: 0.02264327985 | AN121: 1.652658084 | AO121: 58.11393007 | AP121: 58.11393007 | AT121: 2.352941176 | AU121: 2.299900382 | AV121: 1.506516397 | AW121: 1.652658084 | AX121: 2.299900382 | AY121: 2.299900382 | BE121: 2.299900382
W122: 0 | X122: 0 | Y122: 0 | Z122: 0 | AA122: 2.352941176 | AB122: 0 | AC122: 1.047442285e-07 | AD122: 2.299900382 | AE122: 114569.0118 | AF122: 114569.0118 | AG122: 0 | AH122: 0 | AI122: 1.506516397 | AJ122: 285.5703513 | AK122: 285.5703513 | AL122: 0 | AM122: 0.02264327985 | AN122: 1.652658084 | AO122: 58.11393007 | AP122: 58.11393007 | AT122: 2.352941176 | AU122: 2.299900382 | AV122: 1.506516397 | AW122: 1.652658084 | AX122: 2.299900382 | AY122: 2.299900382 | BE122: 2.299900382
W123: 0 | X123: 0 | Y123: 0 | Z123: 0 | AA123: 2.352941176 | AB123: 0 | AC123: 1.047442285e-07 | AD123: 2.299900382 | AE123: 114569.0118 | AF123: 114569.0118 | AG123: 0 | AH123: 0 | AI123: 1.506516397 | AJ123: 285.5703513 | AK123: 285.5703513 | AL123: 0 | AM123: 0.02264327985 | AN123: 1.652658084 | AO123: 58.11393007 | AP123: 58.11393007 | AT123: 2.352941176 | AU123: 2.299900382 | AV123: 1.506516397 | AW123: 1.652658084 | AX123: 2.299900382 | AY123: 2.299900382 | BE123: 2.299900382
W124: 0 | X124: 0 | Y124: 0 | Z124: 0 | AA124: 2.352941176 | AB124: 0 | AC124: 1.047442285e-07 | AD124: 2.299900382 | AE124: 114569.0118 | AF124: 114569.0118 | AG124: 0 | AH124: 0 | AI124: =(Y124*AG124)+AI123 -> 1.506516397 | AJ124: 285.5703513 | AK124: 285.5703513 | AL124: 0 | AM124: 0.02264327985 | AN124: =(Y124*AL124)+AN123 -> 1.652658084 | AO124: 58.11393007 | AP124: 58.11393007 | AT124: 2.352941176 | AU124: 2.299900382 | AV124: 1.506516397 | AW124: 1.652658084 | AX124: 2.299900382 | AY124: 2.299900382 | BE124: 2.299900382
V125: storage1 | X125: =C22 -> 5 | Y125: =Z125 -> 9.647058824 | Z125: =D22 -> 9.647058824 | AA125: =Y125+AA124 -> 12 | AB125: =IF(X125>$E$9,(0.00033*(((X125+X125)/2)-5.6)*((6.5-2.8)*(1-EXP(0.5*(6.5-9.8)))*(36.7-0.9324)*(1-EXP(0.42*(-5-0.9324)))))^2,0) -> 0 | AC125: 1.047442285e-07 | AD125: =(Y125*AC125)+AD124 -> 2.299901393 | AE125: 114569.0118 | AF125: 114569.0118 | AG125: 0.0009986412889 | AH125: 0.01223335541 | AI125: =(Y125*AH125)+AI124 -> 1.624532296 | AJ125: 275.9232925 | AK125: 275.9232925 | AL125: =IF(AND(X125>$E$11,OR(X125>0,X125<0)),((0.1709*(((X125+X125)/2)+6.1)*SQRT(0.995-0.947)*(1-EXP(0.1723*(((X125+X125)/2)-41.2))))^2)/2.3,0) -> 0.07480722627 | AM125: 0.07480722627 | AN125: =(Y125*AM125)+AN124 -> 2.374327797 | AO125: 48.46687124 | AP125: 48.46687124 | AT125: 12 | AU125: 2.299901393 | AV125: 1.624532296 | AW125: 2.374327797 | AX125: 2.374327797 | AY125: 2.299901393 | BE125: 2.299901393
X126: =C23 -> 15 | Y126: =D23 -> 0 | Z126: =Y126 -> 0 | AA126: 12 | AB126: =IF(X126>$E$9,(0.00033*(((X126+X126)/2)-5.6)*((6.5-2.8)*(1-EXP(0.5*(6.5-9.8)))*(36.7-0.9324)*(1-EXP(0.42*(-5-0.9324)))))^2,0) -> 0.09255200027 | AC126: 0.09255200027 | AD126: =(Y126*AC126)+AD125 -> 2.299901393 | AE126: 29.17385469 | AF126: 29.17385469 | AG126: 0.07215180413 | AH126: 0.1820016939 | AI126: =(Y126*AH126)+AI125 -> 1.624532296 | AJ126: 18.54635323 | AK126: 18.54635323 | AL126: =IF(AND(X126>$E$11,OR(X126>0,X126<0)),((0.1709*(((X126+X126)/2)+6.1)*SQRT(0.995-0.947)*(1-EXP(0.1723*(((X126+X126)/2)-41.2))))^2)/2.3,0) -> 0.2654589874 | AM126: 0.2654589874 | AN126: =(Y126*AM126)+AN125 -> 2.374327797 | AO126: 13.65812565 | AP126: 13.65812565 | AT126: 12 | AU126: 2.299901393 | AV126: 1.624532296 | AW126: 2.374327797 | AX126: 2.374327797 | AY126: 2.299901393 | BE126: 2.299901393
W127: =IF(X126=$C$24,0,0.25) -> 0.25 | X127: =IF(OR(X126=$C$24,X126=0),0,X126-W127) -> 14.75 | Y127: =IF(W127=0,0,$Z$128-$Z$127) -> 0.05882352941 | Z127: =IF(W127=0,0,(X127-$C$23)/-$C$16) -> 0.05882352941 | AA127: 12.05882353 | AB127: =IF(X127>$E$9,(0.00033*(((X126+X127)/2)-5.6)*((6.5-2.8)*(1-EXP(0.5*(6.5-9.8)))*(36.7-0.9324)*(1-EXP(0.42*(-5-0.9324)))))^2,0) -> 0.09010687719 | AC127: 0.08769448668 | AD127: 2.305201797 | AE127: 30.72939138 | AF127: 30.72939138 | AG127: 0.1786469318 | AH127: 0.1753233738 | AI127: =(Y127*AG127)+AI126 -> 1.635040939 | AJ127: 19.19287193 | AK127: 19.19287193 | AL127: =IF(AND(X127>$E$11,OR(X127>0,X127<0)),((0.1709*(((X127+X126)/2)+6.1)*SQRT(0.995-0.947)*(1-EXP(0.1723*(((X127+X126)/2)-41.2))))^2)/2.3,0) -> 0.2624468518 | AM127: 0.2594478286 | AN127: =(Y127*AL127)+AN126 -> 2.389765847 | AO127: 13.91506791 | AP127: 13.91506791 | AT127: 12.05882353 | AU127: 2.305201797 | AV127: 1.635040939 | AW127: 2.389765847 | AX127: 2.389765847 | AY127: 2.305201797 | BE127: 2.305201797
W128: =IF(OR(X127=$C$24,W127=0),0,0.25) -> 0.25 | X128: 14.5 | Y128: =IF(W128=0,0,$Z$128-$Z$127) -> 0.05882352941 | Z128: 0.1176470588 | AA128: 12.11764706 | AB128: 0.08531482873 | AC128: 0.08296790337 | AD128: 2.310220317 | AE128: 32.41952097 | AF128: 32.41952097 | AG128: 0.1720310203 | AH128: 0.1687698714 | AI128: 1.645160411 | AJ128: 19.87819011 | AK128: 19.87819011 | AL128: 0.2564620895 | AM128: 0.2534898019 | AN128: 2.404851852 | AO128: 14.18261453 | AP128: 14.18261453 | AT128: 12.11764706 | AU128: 2.310220317 | AV128: 1.645160411 | AW128: 2.404851852 | AX128: 2.404851852 | AY128: 2.310220317 | BE128: 2.310220317
W129: 0.25 | X129: 14.25 | Y129: 0.05882352941 | Z129: 0.1764705882 | AA129: 12.17647059 | AB129: 0.08065371057 | AC129: =IF(X129>$E$9,(0.00033*(X129-5.6)*((6.5-2.8)*(1-EXP(0.5*(6.5-9.8)))*(36.7-0.9324)*(1-EXP(0.42*(-5-0.9324)))))^2,(0.00033*(5.61-5.6)*((6.5-2.8)*(1-EXP(0.5*(6.5-9.8)))*(36.7-0.9324)*(1-EXP(0.42*(-5-0.9324)))))^2) -> 0.07837225034 | AD129: 2.314964653 | AE129: 34.26002616 | AF129: 34.26002616 | AG129: 0.1655399274 | AH129: 0.1623411884 | AI129: 1.654898054 | AJ129: 20.60538043 | AK129: 20.60538043 | AL129: 0.2505311284 | AM129: 0.2475862272 | AN129: 2.419588977 | AO129: 14.46126896 | AP129: 14.46126896 | AT129: 12.17647059 | AU129: 2.314964653 | AV129: 1.654898054 | AW129: 2.419588977 | AX129: 2.419588977 | AY129: 2.314964653 | BE129: 2.314964653
W130: 0.25 | X130: 14 | Y130: 0.05882352941 | Z130: 0.2352941176 | AA130: 12.23529412 | AB130: 0.07612352269 | AC130: =IF(X130>$E$9,(0.00033*(X130-5.6)*((6.5-2.8)*(1-EXP(0.5*(6.5-9.8)))*(36.7-0.9324)*(1-EXP(0.42*(-5-0.9324)))))^2,(0.00033*(5.61-5.6)*((6.5-2.8)*(1-EXP(0.5*(6.5-9.8)))*(36.7-0.9324)*(1-EXP(0.42*(-5-0.9324)))))^2) -> 0.0739075276 | AD130: 2.319442507 | AE130: 36.26907272 | AF130: 36.26907272 | AG130: 0.1591736545 | AH130: 0.156037326 | AI130: 1.66426121 | AJ130: 21.3778259 | AK130: 21.3778259 | AL130: 0.2446552518 | AM130: 0.241738352 | AN130: 2.433980463 | AO130: 14.75156717 | AP130: 14.75156717 | AT130: 12.23529412 | AU130: 2.319442507 | AV130: 1.66426121 | AW130: 2.433980463 | AX130: 2.433980463 | AY130: 2.319442507 | BE130: 2.319442507
W131: 0.25 | X131: 13.75 | Y131: 0.05882352941 | Z131: 0.2941176471 | AA131: 12.29411765 | AB131: 0.07172426509 | AC131: =IF(X131>$E$9,(0.00033*(X131-5.6)*((6.5-2.8)*(1-EXP(0.5*(6.5-9.8)))*(36.7-0.9324)*(1-EXP(0.42*(-5-0.9324)))))^2,(0.00033*(5.61-5.6)*((6.5-2.8)*(1-EXP(0.5*(6.5-9.8)))*(36.7-0.9324)*(1-EXP(0.42*(-5-0.9324)))))^2) -> 0.06957373515 | AD131: 2.323661581 | AE131: 38.46765468 | AF131: 38.46765468 | AG131: 0.152932203 | AH131: 0.1498582857 | AI131: 1.673257222 | AJ131: 22.1992582 | AK131: 22.1992582 | AL131: 0.2388356729 | AM131: 0.235947356 | AN131: 2.44802962 | AO131: 15.05408003 | AP131: 15.05408003 | AT131: 12.29411765 | AU131: 2.323661581 | AV131: 1.673257222 | AW131: 2.44802962 | AX131: 2.44802962 | AY131: 2.323661581 | BE131: 2.323661581
W132: 0.25 | X132: 13.5 | Y132: 0.05882352941 | Z132: 0.3529411765 | AA132: 12.35294118 | AB132: 0.06745593778 | AC132: 0.06537087298 | AD132: 2.327629578 | AE132: 40.88013974 | AF132: 40.88013974 | AG132: 0.1468155741 | AH132: 0.1438040684 | AI132: 1.681893432 | AJ132: 23.07380177 | AK132: 23.07380177 | AL132: 0.2330735386 | AM132: 0.2302143542 | AN132: 2.461739828 | AO132: 15.36941597 | AP132: 15.36941597 | AT132: 12.35294118 | AU132: 2.327629578 | AV132: 1.681893432 | AW132: 2.461739828 | AX132: =MAX(AU132:AW132) -> 2.461739828 | AY132: =MAX(AU132:AV132) -> 2.327629578 | BE132: 2.327629578
W133: 0.25 | X133: 13.25 | Y133: 0.05882352941 | Z133: 0.4117647059 | AA133: 12.41176471 | AB133: 0.06331854076 | AC133: 0.0612989411 | AD133: 2.331354198 | AE133: 43.53494129 | AF133: 43.53494129 | AG133: 0.1408237686 | AH133: 0.137874675 | AI133: 1.690177183 | AJ133: 24.00602443 | AK133: 24.00602443 | AL133: 0.2273699327 | AM133: 0.2245404003 | AN133: 2.47511453 | AO133: 15.69822386 | AP133: 15.69822386 | AT133: 12.41176471 | AU133: 2.331354198 | AV133: 1.690177183 | AW133: 2.47511453 | AX133: 2.47511453 | AY133: 2.331354198 | BE133: 2.331354198
W134: 0.25 | X134: 13 | Y134: 0.05882352941 | Z134: 0.4705882353 | AA134: 12.47058824 | AB134: 0.05931207402 | AC134: 0.05735793951 | AD134: 2.334843143 | AE134: 46.46535213 | AF134: 46.46535213 | AG134: =IF(X134>$E$10,(((0.175*(((X134+X133)/2)-1.5)*SQRT(0.995-0.92)*(1-EXP(0.4395*(((X134+X133)/2)-45))))))^2)/2.3 -> 0.1349567876 | AH134: 0.1320701065 | AI134: 1.698115818 | AJ134: 25.00099584 | AK134: 25.00099584 | AL134: 0.2217258796 | AM134: 0.2189264899 | AN134: 2.488157229 | AO134: 16.04119617 | AP134: 16.04119617 | AT134: 12.47058824 | AU134: 2.334843143 | AV134: 1.698115818 | AW134: 2.488157229 | AX134: 2.488157229 | AY134: 2.334843143 | BE134: 2.334843143
W135: 0.25 | X135: 12.75 | Y135: 0.05882352941 | Z135: 0.5294117647 | AA135: 12.52941176 | AB135: 0.05543653757 | AC135: 0.0535478682 | AD135: 2.338104116 | AE135: 49.71058557 | AF135: 49.71058557 | AG135: 0.1292146317 | AH135: 0.1263903634 | AI135: 1.705716679 | AJ135: 26.06435516 | AK135: 26.06435516 | AL135: 0.2161423471 | AM135: 0.2133735637 | AN135: 2.500871484 | AO135: 16.39907238 | AP135: 16.39907238 | AT135: 12.52941176 | AU135: 2.338104116 | AV135: 1.705716679 | AW135: 2.500871484 | AX135: 2.500871484 | AY135: 2.338104116 | BE135: 2.338104116
W136: 0.25 | X136: 12.5 | Y136: 0.05882352941 | Z136: 0.5882352941 | AA136: 12.58823529 | AB136: 0.0516919314 | AC136: 0.04986872717 | AD136: 2.341144818 | AE136: 53.31708533 | AF136: 53.31708533 | AG136: 0.1235973017 | AH136: 0.1208354465 | AI136: 1.712987108 | AJ136: 27.20238958 | AK136: 27.20238958 | AL136: 0.2106202492 | AM136: 0.2078825101 | AN136: 2.513260911 | AO136: 16.77264281 | AP136: 16.77264281 | AT136: 12.58823529 | AU136: 2.341144818 | AV136: 1.712987108 | AW136: 2.513260911 | AX136: 2.513260911 | AY136: 2.341144818 | BE136: 2.341144818
W137: 0.25 | X137: 12.25 | Y137: 0.05882352941 | Z137: 0.6470588235 | AA137: 12.64705882 | AB137: 0.04807825552 | AC137: 0.04632051643 | AD137: 2.343972951 | AE137: 57.34018647 | AF137: 57.34018647 | AG137: 0.118104798 | AH137: 0.1154053563 | AI137: 1.719934449 | AJ137: 28.42212577 | AK137: 28.42212577 | AL137: 0.2051604497 | AM137: 0.2024541685 | AN137: 2.525329173 | AO137: 17.16275271 | AP137: 17.16275271 | AT137: 12.64705882 | AU137: 2.343972951 | AV137: 1.719934449 | AW137: 2.525329173 | AX137: 2.525329173 | AY137: 2.343972951 | BE137: 2.343972951
W138: 0.25 | X138: 12 | Y138: 0.05882352941 | Z138: 0.7058823529 | AA138: 12.70588235 | AB138: 0.04459550992 | AC138: 0.04290323598 | AD138: 2.346596216 | AE138: 61.84623895 | AF138: 61.84623895 | AG138: 0.1127371213 | AH138: 0.1101000931 | AI138: 1.726566045 | AJ138: 29.73143675 | AK138: 29.73143675 | AL138: 0.199763764 | AM138: 0.1970893311 | AN138: 2.537079982 | AO138: 17.57030682 | AP138: 17.57030682 | AT138: 12.70588235 | AU138: 2.346596216 | AV138: 1.726566045 | AW138: 2.537079982 | AX138: 2.537079982 | AY138: 2.346596216 | BE138: 2.346596216
W139: 0.25 | X139: 11.75 | Y139: 0.05882352941 | Z139: 0.7647058824 | AA139: 12.76470588 | AB139: 0.04124369461 | AC139: =IF(X139>$E$9,(0.00033*(X139-5.6)*((6.5-2.8)*(1-EXP(0.5*(6.5-9.8)))*(36.7-0.9324)*(1-EXP(0.42*(-5-0.9324)))))^2,(0.00033*(5.61-5.6)*((6.5-2.8)*(1-EXP(0.5*(6.5-9.8)))*(36.7-0.9324)*(1-EXP(0.42*(-5-0.9324)))))^2) -> 0.03961688581 | AD139: 2.349022316 | AE139: 66.91534759 | AF139: 66.91534759 | AG139: 0.1074942719 | AH139: 0.1049196575 | AI139: 1.732889237 | AJ139: 31.13916724 | AK139: 31.13916724 | AL139: 0.194430962 | AM139: 0.1917887462 | AN139: 2.548517098 | AO139: 17.99627439 | AP139: 17.99627439 | AT139: 12.76470588 | AU139: 2.349022316 | AV139: 1.732889237 | AW139: 2.548517098 | AX139: 2.548517098 | AY139: 2.349022316 | BE139: 2.349022316
W140: 0.25 | X140: 11.5 | Y140: 0.05882352941 | Z140: 0.8235294118 | AA140: 12.82352941 | AB140: 0.03802280958 | AC140: =IF(X140>$E$9,(0.00033*(X140-5.6)*((6.5-2.8)*(1-EXP(0.5*(6.5-9.8)))*(36.7-0.9324)*(1-EXP(0.42*(-5-0.9324)))))^2,(0.00033*(5.61-5.6)*((6.5-2.8)*(1-EXP(0.5*(6.5-9.8)))*(36.7-0.9324)*(1-EXP(0.42*(-5-0.9324)))))^2) -> 0.03646146593 | AD140: 2.351258951 | AE140: 72.6449412 | AF140: 72.6449412 | AG140: 0.1023762502 | AH140: 0.09986404986 | AI140: 1.738911369 | AJ140: 32.65528121 | AK140: 32.65528121 | AL140: 0.1891627707 | AM140: 0.1865531201 | AN140: 2.559644319 | AO140: 18.44169467 | AP140: 18.44169467 | AT140: 12.82352941 | AU140: 2.351258951 | AV140: 1.738911369 | AW140: 2.559644319 | AX140: 2.559644319 | AY140: 2.351258951 | BE140: 2.351258951
W141: 0.25 | X141: 11.25 | Y141: 0.05882352941 | Z141: 0.8823529412 | AA141: 12.88235294 | AB141: 0.03493285484 | AC141: =IF(X141>$E$9,(0.00033*(X141-5.6)*((6.5-2.8)*(1-EXP(0.5*(6.5-9.8)))*(36.7-0.9324)*(1-EXP(0.42*(-5-0.9324)))))^2,(0.00033*(5.61-5.6)*((6.5-2.8)*(1-EXP(0.5*(6.5-9.8)))*(36.7-0.9324)*(1-EXP(0.42*(-5-0.9324)))))^2) -> 0.03343697633 | AD141: 2.353313825 | AE141: 79.15447104 | AF141: 79.15447104 | AG141: 0.09738305657 | AH141: 0.09493327037 | AI141: 1.744639785 | AJ141: 34.29103625 | AK141: 34.29103625 | AL141: 0.1839598764 | AM141: 0.1813831193 | AN141: 2.570465489 | AO141: 18.90768294 | AP141: 18.90768294 | AT141: 12.88235294 | AU141: 2.353313825 | AV141: 1.744639785 | AW141: 2.570465489 | AX141: 2.570465489 | AY141: 2.353313825 | BE141: 2.353313825
W142: 0.25 | X142: 11 | Y142: 0.05882352941 | Z142: 0.9411764706 | AA142: 12.94117647 | AB142: 0.03197383039 | AC142: 0.03054341702 | AD142: 2.355194639 | AE142: 86.59166587 | AF142: 86.59166587 | AG142: 0.09251469128 | AH142: 0.09012731934 | AI142: 1.750081825 | AJ142: 36.05919047 | AK142: 36.05919047 | AL142: 0.1788229265 | AM142: 0.176279373 | AN142: 2.580984484 | AO142: 19.39543724 | AP142: 19.39543724 | AT142: 12.94117647 | AU142: 2.355194639 | AV142: 1.750081825 | AW142: 2.580984484 | AX142: 2.580984484 | AY142: 2.355194639 | BE142: 2.355194639
W143: 0.25 | X143: 10.75 | Y143: 0.05882352941 | Z143: 1 | AA143: 13 | AB143: 0.02914573622 | AC143: 0.02778078799 | AD143: 2.356909094 | AE143: 95.1409624 | AF143: 95.1409624 | AG143: 0.08777115458 | AH143: 0.08544619702 | AI143: 1.755244834 | AJ143: 37.97424905 | AK143: 37.97424905 | AL143: 0.1737525321 | AM143: 0.1712424747 | AN143: 2.591205221 | AO143: 19.90624571 | AP143: 19.90624571 | AT143: 13 | AU143: 2.356909094 | AV143: 1.755244834 | AW143: 2.591205221 | AX143: 2.591205221 | AY143: 2.356909094 | BE143: 2.356909094
W144: 0.25 | X144: 10.5 | Y144: 0.05882352941 | Z144: 1.058823529 | AA144: 13.05882353 | AB144: 0.02644857234 | AC144: 0.02514908925 | AD144: 2.358464892 | AE144: 105.0350206 | AF144: 105.0350206 | AG144: 0.08315244668 | AH144: 0.0808899036 | AI144: 1.760136155 | AJ144: 40.05275938 | AK144: 40.05275938 | AL144: 0.1687492698 | AM144: 0.1662729844 | AN144: 2.601131649 | AO144: 20.44149483 | AP144: 20.44149483 | AT144: 13.05882353 | AU144: 2.358464892 | AV144: 1.760136155 | AW144: 2.601131649 | AX144: 2.601131649 | AY144: 2.358464892 | BE144: 2.358464892
W145: 0.25 | X145: 10.25 | Y145: 0.05882352941 | Z145: 1.117647059 | AA145: 13.11764706 | AB145: 0.02388233874 | AC145: 0.0226483208 | AD145: 2.359869736 | AE145: 116.5706848 | AF145: 116.5706848 | AG145: 0.07865856778 | AH145: 0.07645843925 | AI145: 1.764763129 | AJ145: 42.31366612 | AK145: 42.31366612 | AL145: 0.1638136835 | AM145: 0.1613714302 | AN145: 2.610767748 | AO145: 21.0026784 | AP145: 21.0026784 | AT145: 13.11764706 | AU145: 2.359869736 | AV145: 1.764763129 | AW145: 2.610767748 | AX145: 2.610767748 | AY145: 2.359869736 | BE145: 2.359869736
W146: 0.25 | X146: 10 | Y146: 0.05882352941 | Z146: 1.176470588 | AA146: 13.17647059 | AB146: 0.02144703543 | AC146: 0.02027848263 | AD146: 2.361131326 | AE146: 130.131466 | AF146: 130.131466 | AG146: 0.07428951803 | AH146: 0.07215180413 | AI146: 1.769133101 | AJ146: 44.7787403 | AK146: 44.7787403 | AL146: 0.158946286 | AM146: 0.1565383103 | AN146: 2.62011753 | AO146: 21.59140766 | AP146: 21.59140766 | AT146: 13.17647059 | AU146: 2.361131326 | AV146: 1.769133101 | AW146: 2.62011753 | AX146: 2.62011753 | AY146: 2.361131326 | BE146: 2.361131326
W147: 0.25 | X147: 9.75 | Y147: 0.05882352941 | Z147: 1.235294118 | AA147: 13.23529412 | AB147: 0.0191426624 | AC147: 0.01803957475 | AD147: 2.362257365 | AE147: 146.2197791 | AF147: 146.2197791 | AG147: 0.07004529757 | AH147: 0.06796999836 | AI147: 1.773253413 | AJ147: 47.47310086 | AK147: 47.47310086 | AL147: 0.1541475609 | AM147: 0.1517740942 | AN147: 2.629185033 | AO147: 22.2094224 | AP147: 22.2094224 | AT147: 13.23529412 | AU147: 2.362257365 | AV147: 1.773253413 | AW147: 2.629185033 | AX147: 2.629185033 | AY147: 2.362257365 | BE147: 2.362257365
W148: 0.25 | X148: 9.5 | Y148: 0.05882352941 | Z148: 1.294117647 | AA148: 13.29411765 | AB148: 0.01696921966 | AC148: 0.01593159715 | AD148: 2.363255554 | AE148: 165.5040873 | AF148: 165.5040873 | AG148: 0.06592590652 | AH148: 0.06391302207 | AI148: 1.777131407 | AJ148: 50.42585202 | AK148: 50.42585202 | AL148: 0.1494179645 | AM148: 0.1470792247 | AN148: 2.637974325 | AO148: 22.85860345 | AP148: =IF(AO148>0,AO148,0) -> 22.85860345 | AT148: 13.29411765 | AU148: 2.363255554 | AV148: 1.777131407 | AW148: 2.637974325 | AX148: 2.637974325 | AY148: 2.363255554 | BE148: 2.363255554
W149: 0.25 | X149: 9.25 | Y149: 0.05882352941 | Z149: 1.352941176 | AA149: 13.35294118 | AB149: 0.01492670721 | AC149: 0.01395454984 | AD149: 2.364133596 | AE149: 188.8893898 | AF149: 188.8893898 | AG149: 0.061931345 | AH149: 0.05998087534 | AI149: 1.780774427 | AJ149: 53.67086683 | AK149: 53.67086683 | AL149: 0.1447579264 | AM149: 0.1424541193 | AN149: 2.646489497 | AO149: 23.54098652 | AP149: =IF(AO149>0,AO149,0) -> 23.54098652 | AT149: 13.35294118 | AU149: 2.364133596 | AV149: 1.780774427 | AW149: 2.646489497 | AX149: 2.646489497 | AY149: 2.364133596 | BE149: 2.364133596
W150: 0.25 | X150: 9 | Y150: 0.05882352941 | Z150: 1.411764706 | AA150: 13.41176471 | AB150: 0.01301512504 | AC150: 0.01210843281 | AD150: 2.364899192 | AE150: 217.6252575 | AF150: 217.6252575 | AG150: 0.05806161309 | AH150: 0.05617355826 | AI150: 1.784189816 | AJ150: 57.24775647 | AK150: 57.24775647 | AL150: 0.1401678519 | AM150: 0.1378991712 | AN150: 2.654734665 | AO150: 24.25877766 | AP150: 24.25877766 | AT150: 13.41176471 | AU150: 2.364899192 | AV150: 1.784189816 | AW150: 2.654734665 | AX150: 2.654734665 | AY150: 2.364899192 | BE150: 2.364899192
W151: 0.25 | X151: 8.75 | Y151: 0.05882352941 | Z151: 1.470588235 | AA151: 13.47058824 | AB151: 0.01123447315 | AC151: 0.01039324607 | AD151: 2.365560043 | AE151: 253.4761459 | AF151: 253.4761459 | AG151: 0.05431671087 | AH151: 0.05249107091 | AI151: 1.787384917 | AJ151: 61.20307754 | AK151: 61.20307754 | AL151: 0.1356481229 | AM151: 0.1334147511 | AN151: 2.662713966 | AO151: 25.01437065 | AP151: 25.01437065 | AT151: 13.47058824 | AU151: 2.365560043 | AV151: 1.787384917 | AW151: 2.662713966 | AX151: 2.662713966 | AY151: 2.365560043 | BE151: 2.365560043
W152: 0.25 | X152: 8.5 | Y152: 0.05882352941 | Z152: 1.529411765 | AA152: 13.52941176 | AB152: 0.009584751556 | AC152: 0.008808989614 | AD152: 2.366123852 | AE152: 298.9986665 | AF152: 298.9986665 | AG152: 0.0506966384 | AH152: 0.04893341335 | AI152: 1.790367072 | AJ152: 65.59184631 | AK152: 65.59184631 | AL152: 0.1311990989 | AM152: 0.129001208 | AN152: 2.670431561 | AO152: 25.81036635 | AP152: 25.81036635 | AT152: 13.52941176 | AU152: 2.366123852 | AV152: 1.790367072 | AW152: 2.670431561 | AX152: 2.670431561 | AY152: 2.366123852 | BE152: 2.366123852
W153: 0.25 | X153: 8.25 | Y153: 0.05882352941 | Z153: 1.588235294 | AA153: 13.58823529 | AB153: 0.008065960243 | AC153: =IF(X153>$E$9,(0.00033*(X153-5.6)*((6.5-2.8)*(1-EXP(0.5*(6.5-9.8)))*(36.7-0.9324)*(1-EXP(0.42*(-5-0.9324)))))^2,(0.00033*(5.61-5.6)*((6.5-2.8)*(1-EXP(0.5*(6.5-9.8)))*(36.7-0.9324)*(1-EXP(0.42*(-5-0.9324)))))^2) -> 0.007355663444 | AD153: 2.36659832 | AE153: 358.010083 | AF153: 358.010083 | AG153: 0.04720139576 | AH153: 0.04550058563 | AI153: 1.793143625 | AJ153: 70.47945275 | AK153: 70.47945275 | AL153: 0.126821119 | AM153: 0.124658871 | AN153: 2.677891626 | AO153: 26.6495946 | AP153: 26.6495946 | AT153: 13.58823529 | AU153: 2.36659832 | AV153: 1.793143625 | AW153: 2.677891626 | AX153: 2.677891626 | AY153: 2.36659832 | BE153: 2.36659832
W154: 0.25 | X154: 8 | Y154: 0.05882352941 | Z154: 1.647058824 | AA154: 13.64705882 | AB154: 0.006678099216 | AC154: =IF(X154>$E$9,(0.00033*(X154-5.6)*((6.5-2.8)*(1-EXP(0.5*(6.5-9.8)))*(36.7-0.9324)*(1-EXP(0.42*(-5-0.9324)))))^2,(0.00033*(5.61-5.6)*((6.5-2.8)*(1-EXP(0.5*(6.5-9.8)))*(36.7-0.9324)*(1-EXP(0.42*(-5-0.9324)))))^2) -> 0.006033267559 | AD154: 2.366991149 | AE154: 436.4150644 | AF154: 436.4150644 | AG154: 0.04383098297 | AH154: 0.0421925878 | AI154: 1.795721918 | AJ154: 75.94409941 | AK154: 75.94409941 | AL154: 0.1225145022 | AM154: 0.1203880496 | AN154: 2.685098362 | AO154: 27.53513866 | AP154: 27.53513866 | AT154: 13.64705882 | AU154: 2.366991149 | AV154: 1.795721918 | AW154: 2.685098362 | AX154: 2.685098362 | AY154: 2.366991149 | BE154: 2.366991149
W155: 0.25 | X155: 7.75 | Y155: 0.05882352941 | Z155: 1.705882353 | AA155: 13.70588235 | AB155: 0.005421168474 | AC155: =IF(X155>$E$9,(0.00033*(X155-5.6)*((6.5-2.8)*(1-EXP(0.5*(6.5-9.8)))*(36.7-0.9324)*(1-EXP(0.42*(-5-0.9324)))))^2,(0.00033*(5.61-5.6)*((6.5-2.8)*(1-EXP(0.5*(6.5-9.8)))*(36.7-0.9324)*(1-EXP(0.42*(-5-0.9324)))))^2) -> 0.004841801961 | AD155: 2.367310042 | AE155: 543.741768 | AF155: 543.741768 | AG155: 0.0405854001 | AH155: 0.03900941989 | AI155: 1.798109295 | AJ155: 82.07993644 | AK155: 82.07993644 | AL155: 0.1182795491 | AM155: 0.1161890355 | AN155: 2.692055982 | AO155: 28.470363 | AP155: 28.470363 | AT155: 13.70588235 | AU155: 2.367310042 | AV155: 1.798109295 | AW155: 2.692055982 | AX155: 2.692055982 | AY155: 2.367310042 | BE155: 2.367310042
W156: 0.25 | X156: 7.5 | Y156: 0.05882352941 | Z156: 1.764705882 | AA156: 13.76470588 | AB156: 0.004295168018 | AC156: 0.003781266648 | AD156: 2.367562699 | AE156: 696.1787006 | AF156: 696.1787006 | AG156: 0.03746464718 | AH156: 0.03595108196 | AI156: 1.800313097 | AJ156: 89.00112955 | AK156: 89.00112955 | AL156: 0.1141165426 | AM156: 0.1120621033 | AN156: 2.69876872 | AO156: 29.45894449 | AP156: 29.45894449 | AT156: 13.76470588 | AU156: 2.367562699 | AV156: 1.800313097 | AW156: 2.69876872 | AX156: 2.69876872 | AY156: 2.367562699 | BE156: 2.367562699
W157: 0.25 | X157: 7.25 | Y157: 0.05882352941 | Z157: 1.823529412 | AA157: 13.82352941 | AB157: 0.003300097848 | AC157: 0.00285166162 | AD157: 2.367756822 | AE157: 923.0559333 | AF157: 923.0559333 | AG157: 0.03446872423 | AH157: 0.03301757401 | AI157: 1.802340669 | AJ157: 96.84719204 | AK157: 96.84719204 | AL157: 0.1100257492 | AM157: 0.1080075113 | AN157: 2.705240823 | AO157: 30.50490782 | AP157: 30.50490782 | AT157: 13.82352941 | AU157: 2.367756822 | AV157: 1.802340669 | AW157: 2.705240823 | AX157: 2.705240823 | AY157: 2.367756822 | BE157: 2.367756822
W158: 0.25 | X158: 7 | Y158: 0.05882352941 | Z158: 1.882352941 | AA158: 13.88235294 | AB158: 0.002435957963 | AC158: 0.002052986878 | AD158: 2.367900114 | AE158: 1282.083151 | AF158: 1282.083151 | AG158: 0.03159763129 | AH158: 0.03020889608 | AI158: 1.804199353 | AJ158: 105.7900506 | AK158: 105.7900506 | AL158: 0.1060074195 | AM158: 0.1040255028 | AN158: 2.711476554 | AO158: 31.61266572 | AP158: 31.61266572 | AT158: 13.88235294 | AU158: 2.367900114 | AV158: 1.804199353 | AW158: 2.711476554 | AX158: 2.711476554 | AY158: 2.367900114 | BE158: 2.367900114
W159: 0.25 | X159: 6.75 | Y159: 0.05882352941 | Z159: 1.941176471 | AA159: 13.94117647 | AB159: 0.001702748364 | AC159: 0.001385242421 | AD159: 2.368000275 | AE159: 1900.028243 | AF159: 1900.028243 | AG159: 0.02885136838 | AH159: 0.0275250482 | AI159: 1.805896493 | AJ159: 116.043521 | AK159: 116.043521 | AL159: 0.1020617894 | AM159: 0.1001163065 | AN159: 2.717480188 | AO159: 32.78706463 | AP159: 32.78706463 | AT159: 13.94117647 | AU159: 2.368000275 | AV159: 1.805896493 | AW159: 2.717480188 | AX159: 2.717480188 | AY159: 2.368000275 | BE159: 2.368000275
W160: 0.25 | X160: 6.5 | Y160: 0.05882352941 | Z160: 2 | AA160: 14 | AB160: 0.00110046905 | AC160: 0.0008484282506 | AD160: 2.368065009 | AE160: 3102.130309 | AF160: 3102.130309 | AG160: 0.02622993553 | AH160: 0.02496603037 | AI160: 1.80743943 | AJ160: 127.876179 | AK160: 127.876179 | AL160: 0.0981890807 | AM160: 0.09628013763 | AN160: 2.723256017 | AO160: 34.03343685 | AP160: 34.03343685 | AT160: 14 | AU160: 2.368065009 | AV160: 1.80743943 | AW160: 2.723256017 | AX160: 2.723256017 | AY160: 2.368065009 | BE160: 2.368065009
W161: 0.25 | X161: 6.25 | Y161: 0.05882352941 | Z161: 2.058823529 | AA161: 14.05882353 | AB161: 0.0006291200222 | AC161: 0.0004425443653 | AD161: 2.368102016 | AE161: 5947.195786 | AF161: 5947.195786 | AG161: 0.02373333274 | AH161: 0.02253184262 | AI161: 1.808835509 | AJ161: 141.6290956 | AK161: 141.6290956 | AL161: 0.0943895022 | AM161: 0.09251719858 | AN161: 2.72880834 | AO161: 35.35766009 | AP161: 35.35766009 | AT161: 14.05882353 | AU161: 2.368102016 | AV161: 1.808835509 | AW161: 2.72880834 | AX161: 2.72880834 | AY161: 2.368102016 | BE161: 2.368102016
W162: 0.25 | X162: 6 | Y162: 0.05882352941 | Z162: 2.117647059 | AA162: 14.11764706 | AB162: 0.0002887012797 | AC162: 0.0001675907655 | AD162: 2.368118998 | AE162: 15704.21254 | AF162: 15704.21254 | AG162: 0.02136156003 | AH162: 0.02022248496 | AI162: 1.810092071 | AJ162: 157.7406504 | AK162: 157.7406504 | AL162: 0.09066325017 | AM162: 0.08882767969 | AN162: 2.734141473 | AO162: 36.76622579 | AP162: 36.76622579 | AT162: 14.11764706 | AU162: 2.368118998 | AV162: 1.810092071 | AW162: 2.734141473 | AX162: 2.734141473 | AY162: 2.368118998 | BE162: 2.368118998
W163: 0.25 | X163: 5.75 | Y163: 0.05882352941 | Z163: 2.176470588 | AA163: 14.17647059 | AB163: 7.921282278e-05 | AC163: 2.35674514e-05 | AD163: 2.368123658 | AE163: 111674.2026 | AF163: 111674.2026 | AG163: 0.01911461741 | AH163: 0.0180379574 | AI163: 1.81121646 | AJ163: 176.7818534 | AK163: 176.7818534 | AL163: 0.08701050913 | AM163: 0.08521175986 | AN163: 2.739259738 | AO163: 38.26631756 | AP163: 38.26631756 | AT163: 14.17647059 | AU163: 2.368123658 | AV163: 1.81121646 | AW163: 2.739259738 | AX163: 2.739259738 | AY163: 2.368123658 | BE163: 2.368123658
W164: 0.25 | X164: 5.5 | Y164: 0.05882352941 | Z164: 2.235294118 | AA164: 14.23529412 | AB164: 0 | AC164: 1.047442285e-07 | AD164: 2.368123658 | AE164: 111674.2026 | AF164: 111674.2026 | AG164: 0.01699250491 | AH164: 0.01597825995 | AI164: 1.812216019 | AJ164: 199.5075804 | AK164: 199.5075804 | AL164: 0.08343145255 | AM164: 0.08166960726 | AN164: 2.74416747 | AO164: 39.86590164 | AP164: 39.86590164 | AT164: 14.23529412 | AU164: 2.368123658 | AV164: 1.812216019 | AW164: 2.74416747 | AX164: 2.74416747 | AY164: 2.368123658 | BE164: 2.368123658
W165: 0.25 | X165: 5.25 | Y165: 0.05882352941 | Z165: 2.294117647 | AA165: 14.29411765 | AB165: 0 | AC165: 1.047442285e-07 | AD165: 2.368123658 | AE165: 111674.2026 | AF165: 111674.2026 | AG165: 0.01499522252 | AH165: 0.01404339262 | AI165: 1.813098091 | AJ165: 226.9324796 | AK165: 226.9324796 | AL165: 0.07992624344 | AM165: 0.07820137991 | AN165: 2.748869014 | AO165: 41.57383143 | AP165: 41.57383143 | AT165: 14.29411765 | AU165: 2.368123658 | AV165: 1.813098091 | AW165: 2.748869014 | AX165: 2.748869014 | AY165: 2.368123658 | BE165: 2.368123658
W166: 0.25 | X166: 5 | Y166: 0.05882352941 | Z166: 2.352941176 | AA166: 14.35294118 | AB166: 0 | AC166: 1.047442285e-07 | AD166: 2.368123658 | AE166: 111674.2026 | AF166: 111674.2026 | AG166: 0.01312277025 | AH166: 0.01223335541 | AI166: 1.813870019 | AJ166: 260.4461224 | AK166: 260.4461224 | AL166: 0.07649503496 | AM166: 0.07480722627 | AN166: 2.753368722 | AO166: 43.39996869 | AP166: 43.39996869 | AT166: 14.35294118 | AU166: 2.368123658 | AV166: 1.813870019 | AW166: 2.753368722 | AX166: 2.753368722 | AY166: 2.368123658 | BE166: 2.368123658
W167: =IF(OR(X166=$C$24,W166=0),0,0.25) -> 0 | X167: =IF(OR(X166=$C$24,X166=0),0,X166-W167) -> 0 | Y167: =IF(W167=0,0,$Z$128-$Z$127) -> 0 | Z167: =IF(W167=0,0,(X167-$C$23)/-$C$16) -> 0 | AA167: =Y167+AA166 -> 14.35294118 | AB167: =IF(X167>$E$9,(0.00033*(((X166+X167)/2)-5.6)*((6.5-2.8)*(1-EXP(0.5*(6.5-9.8)))*(36.7-0.9324)*(1-EXP(0.42*(-5-0.9324)))))^2,0) -> 0 | AC167: =IF(X167>$E$9,(0.00033*(X167-5.6)*((6.5-2.8)*(1-EXP(0.5*(6.5-9.8)))*(36.7-0.9324)*(1-EXP(0.42*(-5-0.9324)))))^2,(0.00033*(5.61-5.6)*((6.5-2.8)*(1-EXP(0.5*(6.5-9.8)))*(36.7-0.9324)*(1-EXP(0.42*(-5-0.9324)))))^2) -> 1.047442285e-07 | AD167: =(Y167*AB167)+AD166 -> 2.368123658 | AE167: =IF(AB167=0,AE166,($D$9-AD167)/AC167) -> 111674.2026 | AF167: =IF(AE167>0,AE167,0) -> 111674.2026 | AG167: 0 | AH167: =IF(X167>$E$10,(((0.175*(X167-1.5)*SQRT(0.995-0.92)*(1-EXP(0.4395*(X167-45)))))^2)/2.3,0) -> 0 | AI167: =(Y167*AG167)+AI166 -> 1.813870019 | AJ167: =IF(AG167=0,AJ166,($D$10-AI167)/AH167) -> 260.4461224 | AK167: =IF(AJ167>0,AJ167,0) -> 260.4461224 | AL167: =IF(AND(X167>$E$11,OR(X167>0,X167<0)),((0.1709*(((X167+X166)/2)+6.1)*SQRT(0.995-0.947)*(1-EXP(0.1723*(((X167+X166)/2)-41.2))))^2)/2.3,0) -> 0 | AM167: =IF(X167>$E$11,((0.1709*(X167+6.1)*SQRT(0.995-0.947)*(1-EXP(0.1723*(X167-41.2))))^2)/2.3,0) -> 0.02264327985 | AN167: =(Y167*AL167)+AN166 -> 2.753368722 | AO167: =IF(AL167=0,AO166,($D$11-AN167)/AM167) -> 43.39996869 | AP167: =IF(AO167>0,AO167,0) -> 43.39996869 | AT167: =AA167 -> 14.35294118 | AU167: =AD167 -> 2.368123658 | AV167: =AI167 -> 1.813870019 | AW167: =AN167 -> 2.753368722 | AX167: 2.753368722 | AY167: 2.368123658 | BA167: =IF($BA$1=TRUE,AU167,NA()) ->  | BB167: =IF($BB$1=TRUE,AV167,NA()) ->  | BC167: =IF($BC$1=TRUE,AW167,NA()) ->  | BD167: =IF($BD$1=TRUE,AX167,NA()) ->  | BE167: =IF($BE$1=TRUE,AY167,NA()) -> 2.368123658
W168: 0 | X168: 0 | Y168: 0 | Z168: 0 | AA168: 14.35294118 | AB168: 0 | AC168: 1.047442285e-07 | AD168: 2.368123658 | AE168: 111674.2026 | AF168: 111674.2026 | AG168: 0 | AH168: 0 | AI168: 1.813870019 | AJ168: 260.4461224 | AK168: 260.4461224 | AL168: 0 | AM168: 0.02264327985 | AN168: 2.753368722 | AO168: 43.39996869 | AP168: 43.39996869 | AT168: 14.35294118 | AU168: 2.368123658 | AV168: 1.813870019 | AW168: 2.753368722 | AX168: 2.753368722 | AY168: 2.368123658 | BE168: 2.368123658
W169: 0 | X169: 0 | Y169: 0 | Z169: 0 | AA169: 14.35294118 | AB169: 0 | AC169: 1.047442285e-07 | AD169: 2.368123658 | AE169: 111674.2026 | AF169: 111674.2026 | AG169: 0 | AH169: 0 | AI169: 1.813870019 | AJ169: 260.4461224 | AK169: 260.4461224 | AL169: 0 | AM169: 0.02264327985 | AN169: 2.753368722 | AO169: 43.39996869 | AP169: 43.39996869 | AT169: 14.35294118 | AU169: 2.368123658 | AV169: 1.813870019 | AW169: 2.753368722 | AX169: 2.753368722 | AY169: 2.368123658 | BE169: 2.368123658
W170: 0 | X170: 0 | Y170: 0 | Z170: 0 | AA170: 14.35294118 | AB170: 0 | AC170: 1.047442285e-07 | AD170: 2.368123658 | AE170: 111674.2026 | AF170: 111674.2026 | AG170: 0 | AH170: 0 | AI170: 1.813870019 | AJ170: 260.4461224 | AK170: 260.4461224 | AL170: 0 | AM170: 0.02264327985 | AN170: 2.753368722 | AO170: 43.39996869 | AP170: 43.39996869 | AT170: 14.35294118 | AU170: 2.368123658 | AV170: 1.813870019 | AW170: 2.753368722 | AX170: 2.753368722 | AY170: 2.368123658 | BE170: 2.368123658
W171: 0 | X171: 0 | Y171: 0 | Z171: 0 | AA171: 14.35294118 | AB171: 0 | AC171: 1.047442285e-07 | AD171: 2.368123658 | AE171: 111674.2026 | AF171: 111674.2026 | AG171: 0 | AH171: 0 | AI171: 1.813870019 | AJ171: 260.4461224 | AK171: 260.4461224 | AL171: 0 | AM171: 0.02264327985 | AN171: 2.753368722 | AO171: 43.39996869 | AP171: 43.39996869 | AT171: 14.35294118 | AU171: 2.368123658 | AV171: 1.813870019 | AW171: 2.753368722 | AX171: 2.753368722 | AY171: 2.368123658 | BE171: 2.368123658
W172: 0 | X172: 0 | Y172: 0 | Z172: 0 | AA172: 14.35294118 | AB172: 0 | AC172: 1.047442285e-07 | AD172: 2.368123658 | AE172: 111674.2026 | AF172: 111674.2026 | AG172: 0 | AH172: 0 | AI172: 1.813870019 | AJ172: 260.4461224 | AK172: 260.4461224 | AL172: 0 | AM172: 0.02264327985 | AN172: 2.753368722 | AO172: 43.39996869 | AP172: 43.39996869 | AT172: 14.35294118 | AU172: 2.368123658 | AV172: 1.813870019 | AW172: 2.753368722 | AX172: 2.753368722 | AY172: 2.368123658 | BE172: 2.368123658
W173: 0 | X173: 0 | Y173: 0 | Z173: 0 | AA173: 14.35294118 | AB173: 0 | AC173: 1.047442285e-07 | AD173: 2.368123658 | AE173: 111674.2026 | AF173: 111674.2026 | AG173: 0 | AH173: 0 | AI173: 1.813870019 | AJ173: 260.4461224 | AK173: 260.4461224 | AL173: 0 | AM173: 0.02264327985 | AN173: 2.753368722 | AO173: 43.39996869 | AP173: 43.39996869 | AT173: 14.35294118 | AU173: 2.368123658 | AV173: 1.813870019 | AW173: 2.753368722 | AX173: 2.753368722 | AY173: 2.368123658 | BE173: 2.368123658
W174: 0 | X174: 0 | Y174: 0 | Z174: 0 | AA174: 14.35294118 | AB174: 0 | AC174: 1.047442285e-07 | AD174: 2.368123658 | AE174: 111674.2026 | AF174: 111674.2026 | AG174: 0 | AH174: 0 | AI174: 1.813870019 | AJ174: 260.4461224 | AK174: 260.4461224 | AL174: 0 | AM174: 0.02264327985 | AN174: 2.753368722 | AO174: 43.39996869 | AP174: 43.39996869 | AT174: 14.35294118 | AU174: 2.368123658 | AV174: 1.813870019 | AW174: 2.753368722 | AX174: 2.753368722 | AY174: 2.368123658 | BE174: 2.368123658
W175: 0 | X175: 0 | Y175: 0 | Z175: 0 | AA175: 14.35294118 | AB175: 0 | AC175: 1.047442285e-07 | AD175: 2.368123658 | AE175: 111674.2026 | AF175: 111674.2026 | AG175: 0 | AH175: 0 | AI175: 1.813870019 | AJ175: 260.4461224 | AK175: 260.4461224 | AL175: 0 | AM175: 0.02264327985 | AN175: 2.753368722 | AO175: 43.39996869 | AP175: 43.39996869 | AT175: 14.35294118 | AU175: 2.368123658 | AV175: 1.813870019 | AW175: 2.753368722 | AX175: 2.753368722 | AY175: 2.368123658 | BE175: 2.368123658
W176: 0 | X176: 0 | Y176: 0 | Z176: 0 | AA176: 14.35294118 | AB176: 0 | AC176: 1.047442285e-07 | AD176: 2.368123658 | AE176: 111674.2026 | AF176: 111674.2026 | AG176: 0 | AH176: 0 | AI176: 1.813870019 | AJ176: 260.4461224 | AK176: 260.4461224 | AL176: 0 | AM176: 0.02264327985 | AN176: 2.753368722 | AO176: 43.39996869 | AP176: 43.39996869 | AT176: 14.35294118 | AU176: 2.368123658 | AV176: 1.813870019 | AW176: 2.753368722 | AX176: 2.753368722 | AY176: 2.368123658 | BE176: 2.368123658
W177: 0 | X177: 0 | Y177: 0 | Z177: 0 | AA177: 14.35294118 | AB177: 0 | AC177: 1.047442285e-07 | AD177: 2.368123658 | AE177: 111674.2026 | AF177: 111674.2026 | AG177: 0 | AH177: 0 | AI177: 1.813870019 | AJ177: 260.4461224 | AK177: 260.4461224 | AL177: 0 | AM177: 0.02264327985 | AN177: 2.753368722 | AO177: 43.39996869 | AP177: 43.39996869 | AT177: 14.35294118 | AU177: 2.368123658 | AV177: 1.813870019 | AW177: 2.753368722 | AX177: 2.753368722 | AY177: 2.368123658 | BE177: 2.368123658
W178: 0 | X178: 0 | Y178: 0 | Z178: 0 | AA178: 14.35294118 | AB178: 0 | AC178: 1.047442285e-07 | AD178: 2.368123658 | AE178: 111674.2026 | AF178: 111674.2026 | AG178: 0 | AH178: 0 | AI178: 1.813870019 | AJ178: 260.4461224 | AK178: 260.4461224 | AL178: 0 | AM178: 0.02264327985 | AN178: 2.753368722 | AO178: 43.39996869 | AP178: 43.39996869 | AT178: 14.35294118 | AU178: 2.368123658 | AV178: 1.813870019 | AW178: 2.753368722 | AX178: 2.753368722 | AY178: 2.368123658 | BE178: 2.368123658
W179: 0 | X179: 0 | Y179: 0 | Z179: 0 | AA179: 14.35294118 | AB179: 0 | AC179: 1.047442285e-07 | AD179: 2.368123658 | AE179: 111674.2026 | AF179: 111674.2026 | AG179: 0 | AH179: 0 | AI179: 1.813870019 | AJ179: 260.4461224 | AK179: 260.4461224 | AL179: 0 | AM179: 0.02264327985 | AN179: 2.753368722 | AO179: 43.39996869 | AP179: 43.39996869 | AT179: 14.35294118 | AU179: 2.368123658 | AV179: 1.813870019 | AW179: 2.753368722 | AX179: 2.753368722 | AY179: 2.368123658 | BE179: 2.368123658
W180: 0 | X180: 0 | Y180: 0 | Z180: 0 | AA180: 14.35294118 | AB180: 0 | AC180: 1.047442285e-07 | AD180: 2.368123658 | AE180: 111674.2026 | AF180: 111674.2026 | AG180: 0 | AH180: 0 | AI180: 1.813870019 | AJ180: 260.4461224 | AK180: 260.4461224 | AL180: 0 | AM180: 0.02264327985 | AN180: 2.753368722 | AO180: 43.39996869 | AP180: 43.39996869 | AT180: 14.35294118 | AU180: 2.368123658 | AV180: 1.813870019 | AW180: 2.753368722 | AX180: 2.753368722 | AY180: 2.368123658 | BE180: 2.368123658
W181: 0 | X181: 0 | Y181: 0 | Z181: 0 | AA181: 14.35294118 | AB181: 0 | AC181: 1.047442285e-07 | AD181: 2.368123658 | AE181: 111674.2026 | AF181: 111674.2026 | AG181: 0 | AH181: 0 | AI181: 1.813870019 | AJ181: 260.4461224 | AK181: 260.4461224 | AL181: 0 | AM181: 0.02264327985 | AN181: 2.753368722 | AO181: 43.39996869 | AP181: 43.39996869 | AT181: 14.35294118 | AU181: 2.368123658 | AV181: 1.813870019 | AW181: 2.753368722 | AX181: 2.753368722 | AY181: 2.368123658 | BE181: 2.368123658
W182: 0 | X182: 0 | Y182: 0 | Z182: 0 | AA182: 14.35294118 | AB182: 0 | AC182: 1.047442285e-07 | AD182: 2.368123658 | AE182: 111674.2026 | AF182: 111674.2026 | AG182: 0 | AH182: 0 | AI182: 1.813870019 | AJ182: 260.4461224 | AK182: 260.4461224 | AL182: 0 | AM182: 0.02264327985 | AN182: 2.753368722 | AO182: 43.39996869 | AP182: 43.39996869 | AT182: 14.35294118 | AU182: 2.368123658 | AV182: 1.813870019 | AW182: 2.753368722 | AX182: 2.753368722 | AY182: 2.368123658 | BE182: 2.368123658
W183: 0 | X183: 0 | Y183: 0 | Z183: 0 | AA183: 14.35294118 | AB183: 0 | AC183: 1.047442285e-07 | AD183: 2.368123658 | AE183: 111674.2026 | AF183: 111674.2026 | AG183: 0 | AH183: 0 | AI183: 1.813870019 | AJ183: 260.4461224 | AK183: 260.4461224 | AL183: 0 | AM183: 0.02264327985 | AN183: 2.753368722 | AO183: 43.39996869 | AP183: 43.39996869 | AT183: 14.35294118 | AU183: 2.368123658 | AV183: 1.813870019 | AW183: 2.753368722 | AX183: 2.753368722 | AY183: 2.368123658 | BE183: 2.368123658
W184: 0 | X184: 0 | Y184: 0 | Z184: 0 | AA184: 14.35294118 | AB184: 0 | AC184: 1.047442285e-07 | AD184: 2.368123658 | AE184: 111674.2026 | AF184: 111674.2026 | AG184: 0 | AH184: 0 | AI184: 1.813870019 | AJ184: 260.4461224 | AK184: 260.4461224 | AL184: 0 | AM184: 0.02264327985 | AN184: 2.753368722 | AO184: 43.39996869 | AP184: 43.39996869 | AT184: 14.35294118 | AU184: 2.368123658 | AV184: 1.813870019 | AW184: 2.753368722 | AX184: 2.753368722 | AY184: 2.368123658 | BE184: 2.368123658
W185: 0 | X185: 0 | Y185: 0 | Z185: 0 | AA185: 14.35294118 | AB185: 0 | AC185: 1.047442285e-07 | AD185: 2.368123658 | AE185: 111674.2026 | AF185: 111674.2026 | AG185: 0 | AH185: 0 | AI185: 1.813870019 | AJ185: 260.4461224 | AK185: 260.4461224 | AL185: 0 | AM185: 0.02264327985 | AN185: 2.753368722 | AO185: 43.39996869 | AP185: 43.39996869 | AT185: 14.35294118 | AU185: 2.368123658 | AV185: 1.813870019 | AW185: 2.753368722 | AX185: 2.753368722 | AY185: 2.368123658 | BE185: 2.368123658
W186: 0 | X186: 0 | Y186: 0 | Z186: 0 | AA186: 14.35294118 | AB186: 0 | AC186: 1.047442285e-07 | AD186: 2.368123658 | AE186: 111674.2026 | AF186: 111674.2026 | AG186: 0 | AH186: 0 | AI186: 1.813870019 | AJ186: 260.4461224 | AK186: 260.4461224 | AL186: 0 | AM186: 0.02264327985 | AN186: 2.753368722 | AO186: 43.39996869 | AP186: 43.39996869 | AT186: 14.35294118 | AU186: 2.368123658 | AV186: 1.813870019 | AW186: 2.753368722 | AX186: 2.753368722 | AY186: 2.368123658 | BE186: 2.368123658
W187: 0 | X187: 0 | Y187: 0 | Z187: 0 | AA187: 14.35294118 | AB187: 0 | AC187: 1.047442285e-07 | AD187: 2.368123658 | AE187: 111674.2026 | AF187: 111674.2026 | AG187: 0 | AH187: 0 | AI187: 1.813870019 | AJ187: 260.4461224 | AK187: 260.4461224 | AL187: 0 | AM187: 0.02264327985 | AN187: 2.753368722 | AO187: 43.39996869 | AP187: 43.39996869 | AT187: 14.35294118 | AU187: 2.368123658 | AV187: 1.813870019 | AW187: 2.753368722 | AX187: 2.753368722 | AY187: 2.368123658 | BE187: 2.368123658
W188: 0 | X188: 0 | Y188: 0 | Z188: 0 | AA188: 14.35294118 | AB188: 0 | AC188: 1.047442285e-07 | AD188: 2.368123658 | AE188: 111674.2026 | AF188: 111674.2026 | AG188: 0 | AH188: 0 | AI188: 1.813870019 | AJ188: 260.4461224 | AK188: 260.4461224 | AL188: 0 | AM188: 0.02264327985 | AN188: 2.753368722 | AO188: 43.39996869 | AP188: 43.39996869 | AT188: 14.35294118 | AU188: 2.368123658 | AV188: 1.813870019 | AW188: 2.753368722 | AX188: 2.753368722 | AY188: 2.368123658 | BE188: 2.368123658
W189: 0 | X189: 0 | Y189: 0 | Z189: 0 | AA189: 14.35294118 | AB189: 0 | AC189: 1.047442285e-07 | AD189: 2.368123658 | AE189: 111674.2026 | AF189: 111674.2026 | AG189: 0 | AH189: 0 | AI189: 1.813870019 | AJ189: 260.4461224 | AK189: 260.4461224 | AL189: 0 | AM189: 0.02264327985 | AN189: 2.753368722 | AO189: 43.39996869 | AP189: 43.39996869 | AT189: 14.35294118 | AU189: 2.368123658 | AV189: 1.813870019 | AW189: 2.753368722 | AX189: 2.753368722 | AY189: 2.368123658 | BE189: 2.368123658
W190: 0 | X190: 0 | Y190: 0 | Z190: 0 | AA190: 14.35294118 | AB190: 0 | AC190: 1.047442285e-07 | AD190: 2.368123658 | AE190: 111674.2026 | AF190: 111674.2026 | AG190: 0 | AH190: 0 | AI190: 1.813870019 | AJ190: 260.4461224 | AK190: 260.4461224 | AL190: 0 | AM190: 0.02264327985 | AN190: 2.753368722 | AO190: 43.39996869 | AP190: 43.39996869 | AT190: 14.35294118 | AU190: 2.368123658 | AV190: 1.813870019 | AW190: 2.753368722 | AX190: 2.753368722 | AY190: 2.368123658 | BE190: 2.368123658
W191: 0 | X191: 0 | Y191: 0 | Z191: 0 | AA191: 14.35294118 | AB191: 0 | AC191: 1.047442285e-07 | AD191: 2.368123658 | AE191: 111674.2026 | AF191: 111674.2026 | AG191: 0 | AH191: 0 | AI191: 1.813870019 | AJ191: 260.4461224 | AK191: 260.4461224 | AL191: 0 | AM191: 0.02264327985 | AN191: 2.753368722 | AO191: 43.39996869 | AP191: 43.39996869 | AT191: 14.35294118 | AU191: 2.368123658 | AV191: 1.813870019 | AW191: 2.753368722 | AX191: 2.753368722 | AY191: 2.368123658 | BE191: 2.368123658
W192: 0 | X192: 0 | Y192: 0 | Z192: 0 | AA192: 14.35294118 | AB192: 0 | AC192: 1.047442285e-07 | AD192: 2.368123658 | AE192: 111674.2026 | AF192: 111674.2026 | AG192: 0 | AH192: 0 | AI192: 1.813870019 | AJ192: 260.4461224 | AK192: 260.4461224 | AL192: 0 | AM192: 0.02264327985 | AN192: 2.753368722 | AO192: 43.39996869 | AP192: 43.39996869 | AT192: 14.35294118 | AU192: 2.368123658 | AV192: 1.813870019 | AW192: 2.753368722 | AX192: 2.753368722 | AY192: 2.368123658 | BE192: 2.368123658
W193: 0 | X193: 0 | Y193: 0 | Z193: 0 | AA193: 14.35294118 | AB193: 0 | AC193: 1.047442285e-07 | AD193: 2.368123658 | AE193: 111674.2026 | AF193: 111674.2026 | AG193: 0 | AH193: 0 | AI193: 1.813870019 | AJ193: 260.4461224 | AK193: 260.4461224 | AL193: 0 | AM193: 0.02264327985 | AN193: 2.753368722 | AO193: 43.39996869 | AP193: 43.39996869 | AT193: 14.35294118 | AU193: 2.368123658 | AV193: 1.813870019 | AW193: 2.753368722 | AX193: 2.753368722 | AY193: 2.368123658 | BE193: 2.368123658
W194: 0 | X194: 0 | Y194: 0 | Z194: 0 | AA194: 14.35294118 | AB194: 0 | AC194: 1.047442285e-07 | AD194: 2.368123658 | AE194: 111674.2026 | AF194: 111674.2026 | AG194: 0 | AH194: 0 | AI194: 1.813870019 | AJ194: 260.4461224 | AK194: 260.4461224 | AL194: 0 | AM194: 0.02264327985 | AN194: 2.753368722 | AO194: 43.39996869 | AP194: 43.39996869 | AT194: 14.35294118 | AU194: 2.368123658 | AV194: 1.813870019 | AW194: 2.753368722 | AX194: 2.753368722 | AY194: 2.368123658 | BE194: 2.368123658
W195: 0 | X195: 0 | Y195: 0 | Z195: 0 | AA195: 14.35294118 | AB195: 0 | AC195: 1.047442285e-07 | AD195: 2.368123658 | AE195: 111674.2026 | AF195: 111674.2026 | AG195: 0 | AH195: 0 | AI195: 1.813870019 | AJ195: 260.4461224 | AK195: 260.4461224 | AL195: 0 | AM195: 0.02264327985 | AN195: 2.753368722 | AO195: 43.39996869 | AP195: 43.39996869 | AT195: 14.35294118 | AU195: 2.368123658 | AV195: 1.813870019 | AW195: 2.753368722 | AX195: 2.753368722 | AY195: 2.368123658 | BE195: 2.368123658
W196: 0 | X196: 0 | Y196: 0 | Z196: 0 | AA196: 14.35294118 | AB196: 0 | AC196: 1.047442285e-07 | AD196: 2.368123658 | AE196: 111674.2026 | AF196: 111674.2026 | AG196: 0 | AH196: 0 | AI196: 1.813870019 | AJ196: 260.4461224 | AK196: 260.4461224 | AL196: 0 | AM196: 0.02264327985 | AN196: 2.753368722 | AO196: 43.39996869 | AP196: 43.39996869 | AT196: 14.35294118 | AU196: 2.368123658 | AV196: 1.813870019 | AW196: 2.753368722 | AX196: =MAX(AU196:AW196) -> 2.753368722 | AY196: =MAX(AU196:AV196) -> 2.368123658 | BE196: 2.368123658
W197: 0 | X197: 0 | Y197: 0 | Z197: 0 | AA197: 14.35294118 | AB197: 0 | AC197: 1.047442285e-07 | AD197: 2.368123658 | AE197: 111674.2026 | AF197: 111674.2026 | AG197: 0 | AH197: 0 | AI197: 1.813870019 | AJ197: 260.4461224 | AK197: 260.4461224 | AL197: 0 | AM197: 0.02264327985 | AN197: 2.753368722 | AO197: 43.39996869 | AP197: 43.39996869 | AT197: 14.35294118 | AU197: 2.368123658 | AV197: 1.813870019 | AW197: 2.753368722 | AX197: 2.753368722 | AY197: 2.368123658 | BE197: 2.368123658
W198: 0 | X198: 0 | Y198: 0 | Z198: 0 | AA198: 14.35294118 | AB198: 0 | AC198: 1.047442285e-07 | AD198: 2.368123658 | AE198: 111674.2026 | AF198: 111674.2026 | AG198: =IF(X198>$E$10,(((0.175*(((X198+X197)/2)-1.5)*SQRT(0.995-0.92)*(1-EXP(0.4395*(((X198+X197)/2)-45))))))^2)/2.3 -> 0 | AH198: 0 | AI198: 1.813870019 | AJ198: 260.4461224 | AK198: 260.4461224 | AL198: 0 | AM198: 0.02264327985 | AN198: 2.753368722 | AO198: 43.39996869 | AP198: 43.39996869 | AT198: 14.35294118 | AU198: 2.368123658 | AV198: 1.813870019 | AW198: 2.753368722 | AX198: 2.753368722 | AY198: 2.368123658 | BE198: 2.368123658
W199: 0 | X199: 0 | Y199: 0 | Z199: 0 | AA199: 14.35294118 | AB199: 0 | AC199: 1.047442285e-07 | AD199: 2.368123658 | AE199: 111674.2026 | AF199: 111674.2026 | AG199: 0 | AH199: 0 | AI199: 1.813870019 | AJ199: 260.4461224 | AK199: 260.4461224 | AL199: 0 | AM199: 0.02264327985 | AN199: 2.753368722 | AO199: 43.39996869 | AP199: 43.39996869 | AT199: 14.35294118 | AU199: 2.368123658 | AV199: 1.813870019 | AW199: 2.753368722 | AX199: 2.753368722 | AY199: 2.368123658 | BE199: 2.368123658
W200: 0 | X200: 0 | Y200: 0 | Z200: 0 | AA200: 14.35294118 | AB200: 0 | AC200: 1.047442285e-07 | AD200: 2.368123658 | AE200: 111674.2026 | AF200: 111674.2026 | AG200: 0 | AH200: 0 | AI200: 1.813870019 | AJ200: 260.4461224 | AK200: 260.4461224 | AL200: 0 | AM200: 0.02264327985 | AN200: 2.753368722 | AO200: 43.39996869 | AP200: 43.39996869 | AT200: 14.35294118 | AU200: 2.368123658 | AV200: 1.813870019 | AW200: 2.753368722 | AX200: 2.753368722 | AY200: 2.368123658 | BE200: 2.368123658
... 291 more rows

Sheet EMCI4
W1: Temperature | Y1: Time | AB1: S.aureus | AG1: B.cereus | AL1: Pseudomonas | AT1: INTERACTIVE CHART | BA1: TRUE | BB1: TRUE | BC1: FALSE | BD1: FALSE | BE1: FALSE
B2: Early Milk Collection Index 4 | W2: Rate | X2: Accumulated | Y2: Rate | AA2: Accumulated | AB2: GR (cooling) | AC2: GR (to NMTL) | AD2: Growth (logs) | AE2: Time calc | AF2: Time to NMTL (h) | AG2: GR (cooling) | AH2: GR (to NMTL) | AI2: Growth(logs) | AJ2: Time calc | AK2: Time to NMTL (h) | AL2: GR (cooling) | AM2: GR (to NMTL) | AN2: Growth (logs) | AO2: Time calc | AP2: Time to NMTL (h) | AT2: Time | AU2: S | AV2: B | AW2: P | AX2: ALL | AY2: FS | BA2: S | BB2: B | BC2: P | BD2: ALL | BE2: FS
AA3: 0 | AB3: 0 | AC3: 0 | AD3: =C9 -> 2 | AG3: 0 | AH3: 0 | AI3: =C10 -> 1 | AL3: 0 | AM3: 0 | AN3: =C11 -> 1 | AT3: =AA3 -> 0 | AU3: =AD3 -> 2 | AV3: =AI3 -> 1 | AW3: =AN3 -> 1 | AX3: =MAX(AU3:AW3) -> 2 | AY3: =MAX(AU3:AV3) -> 2 | BA3: =IF($BA$1=TRUE,AU3,NA()) -> 2 | BB3: =IF($BB$1=TRUE,AV3,NA()) -> 1 | BC3: =IF($BC$1=TRUE,AW3,NA()) ->  | BD3: =IF($BD$1=TRUE,AX3,NA()) ->  | BE3: =IF($BE$1=TRUE,AY3,NA()) -> 
B4: DATA ENTRY | X4: =C20 -> 25 | Y4: =Z4 -> 0 | Z4: =D21 -> 0 | AA4: =Z4 -> 0 | AB4: =IF(X4>$E$9,(0.00033*(X4-5.6)*((6.5-2.8)*(1-EXP(0.5*(6.5-9.8)))*(36.7-0.9324)*(1-EXP(0.42*(-5-0.9324)))))^2,(0.00033*(5.61-5.6)*((6.5-2.8)*(1-EXP(0.5*(6.5-9.8)))*(36.7-0.9324)*(1-EXP(0.42*(-5-0.9324)))))^2) -> 0.3942153782 | AC4: =IF(X4>$E$9,(0.00033*(X4-5.6)*((6.5-2.8)*(1-EXP(0.5*(6.5-9.8)))*(36.7-0.9324)*(1-EXP(0.42*(-5-0.9324)))))^2,(0.00033*(5.61-5.6)*((6.5-2.8)*(1-EXP(0.5*(6.5-9.8)))*(36.7-0.9324)*(1-EXP(0.42*(-5-0.9324)))))^2) -> 0.3942153782 | AD4: =(Y4*AB4)+C9 -> 2 | AE4: =IF(AB4=0,AE3,($D$9-AD4)/AC4) -> 7.610053198 | AF4: =IF(AE4>0,AE4,0) -> 7.610053198 | AG4: =IF(X4>$E$10,(((0.175*(X4-1.5)*SQRT(0.995-0.92)*(1-EXP(0.4395*(X4-45)))))^2)/2.3,0) -> 0.5513317437 | AH4: =IF(X4>$E$10,(((0.175*(X4-1.5)*SQRT(0.995-0.92)*(1-EXP(0.4395*(X4-45)))))^2)/2.3,0) -> 0.5513317437 | AI4: =(Y4*AG4)+C10 -> 1 | AJ4: =IF(AG4=0,AJ3,($D$10-AI4)/AH4) -> 7.255159975 | AK4: =IF(AJ4>0,AJ4,0) -> 7.255159975 | AL4: =IF(X4>$E$11,((0.1709*(X4+6.1)*SQRT(0.995-0.947)*(1-EXP(0.1723*(X4-41.2))))^2)/2.3,0) -> 0.5194351615 | AM4: =IF(X4>$E$11,((0.1709*(X4+6.1)*SQRT(0.995-0.947)*(1-EXP(0.1723*(X4-41.2))))^2)/2.3,0) -> 0.5194351615 | AN4: =(Y4*AL4)+C11 -> 1 | AO4: =IF(AL4=0,AO3,($D$11-AN4)/AM4) -> 9.625840471 | AP4: =IF(AO4>0,AO4,0) -> 9.625840471 | AT4: 0 | AU4: =AD4 -> 2 | AV4: =AI4 -> 1 | AW4: =AN4 -> 1 | AX4: =MAX(AU4:AW4) -> 2 | AY4: =MAX(AU4:AV4) -> 2 | BA4: 2 | BB4: 1 | BC4: =IF($BC$1=TRUE,AW4,NA()) ->  | BD4: =IF($BD$1=TRUE,AX4,NA()) ->  | BE4: =IF($BE$1=TRUE,AY4,NA()) -> 
W5: =IF(X4=$C$22,0,0.25) -> 0.25 | X5: =IF(OR(X4=$C$22,X4=0),0,X4-W5) -> 24.75 | Y5: =IF(W5=0,0,$Z$6-$Z$5) -> 0.02941176471 | Z5: =IF(W5=0,0,(X5-$C$20)/-$C$15) -> 0.02941176471 | AA5: =Y5+AA4 -> 0.02941176471 | AB5: =IF(X5>$E$9,(0.00033*(((X4+X5)/2)-5.6)*((6.5-2.8)*(1-EXP(0.5*(6.5-9.8)))*(36.7-0.9324)*(1-EXP(0.42*(-5-0.9324)))))^2,0) -> 0.3891516494 | AC5: =IF(X5>$E$9,(0.00033*(X5-5.6)*((6.5-2.8)*(1-EXP(0.5*(6.5-9.8)))*(36.7-0.9324)*(1-EXP(0.42*(-5-0.9324)))))^2,(0.00033*(5.61-5.6)*((6.5-2.8)*(1-EXP(0.5*(6.5-9.8)))*(36.7-0.9324)*(1-EXP(0.42*(-5-0.9324)))))^2) -> 0.3841206532 | AD5: =(Y5*AB5)+AD4 -> 2.011445637 | AE5: =IF(AB5=0,AE4,($D$9-AD5)/AC5) -> 7.780249091 | AF5: =IF(AE5>0,AE5,0) -> 7.780249091 | AG5: =IF(X5>$E$10,(((0.175*(((X5+X4)/2)-1.5)*SQRT(0.995-0.92)*(1-EXP(0.4395*(((X5+X4)/2)-45))))))^2)/2.3 -> 0.5454909916 | AH5: =IF(X5>$E$10,(((0.175*(X5-1.5)*SQRT(0.995-0.92)*(1-EXP(0.4395*(X5-45)))))^2)/2.3,0) -> 0.5396807786 | AI5: =(Y5*AG5)+AI4 -> 1.016043853 | AJ5: =IF(AG5=0,AJ4,($D$10-AI5)/AH5) -> 7.38206048 | AK5: =IF(AJ5>0,AJ5,0) -> 7.38206048 | AL5: =IF(AND(X5>$E$11,OR(X5>0,X5<0)),((0.1709*(((X5+X4)/2)+6.1)*SQRT(0.995-0.947)*(1-EXP(0.1723*(((X5+X4)/2)-41.2))))^2)/2.3,0) -> 0.5167040375 | AM5: =IF(X5>$E$11,((0.1709*(X5+6.1)*SQRT(0.995-0.947)*(1-EXP(0.1723*(X5-41.2))))^2)/2.3,0) -> 0.5139381312 | AN5: =(Y5*AL5)+AN4 -> 1.015197178 | AO5: =IF(AL5=0,AO4,($D$11-AN5)/AM5) -> 9.699227437 | AP5: =IF(AO5>0,AO5,0) -> 9.699227437 | AT5: 0.02941176471 | AU5: =AD5 -> 2.011445637 | AV5: =AI5 -> 1.016043853 | AW5: =AN5 -> 1.015197178 | AX5: 2.011445637 | AY5: 2.011445637 | BA5: 2.011445637 | BB5: 1.016043853
B6: 1) Microorganism levels (log cfu/ml): | W6: =IF(OR(X5=$C$22,W5=0),0,0.25) -> 0.25 | X6: =IF(OR(X5=$C$22,X5=0),0,X5-W6) -> 24.5 | Y6: =IF(W6=0,0,$Z$6-$Z$5) -> 0.02941176471 | Z6: =IF(W6=0,0,(X6-$C$20)/-$C$15) -> 0.05882352941 | AA6: =Y6+AA5 -> 0.05882352941 | AB6: =IF(X6>$E$9,(0.00033*(((X5+X6)/2)-5.6)*((6.5-2.8)*(1-EXP(0.5*(6.5-9.8)))*(36.7-0.9324)*(1-EXP(0.42*(-5-0.9324)))))^2,0) -> 0.3791223896 | AC6: =IF(X6>$E$9,(0.00033*(X6-5.6)*((6.5-2.8)*(1-EXP(0.5*(6.5-9.8)))*(36.7-0.9324)*(1-EXP(0.42*(-5-0.9324)))))^2,(0.00033*(5.61-5.6)*((6.5-2.8)*(1-EXP(0.5*(6.5-9.8)))*(36.7-0.9324)*(1-EXP(0.42*(-5-0.9324)))))^2) -> 0.3741568585 | AD6: 2.022596295 | AE6: =IF(AB6=0,AE5,($D$9-AD6)/AC6) -> 7.957634979 | AF6: 7.957634979 | AG6: =IF(X6>$E$10,(((0.175*(((X6+X5)/2)-1.5)*SQRT(0.995-0.92)*(1-EXP(0.4395*(((X6+X5)/2)-45))))))^2)/2.3 -> 0.533901146 | AH6: 0.5281521328 | AI6: 1.031746828 | AJ6: 7.51346615 | AK6: 7.51346615 | AL6: 0.5111387932 | AM6: =IF(X6>$E$11,((0.1709*(X6+6.1)*SQRT(0.995-0.947)*(1-EXP(0.1723*(X6-41.2))))^2)/2.3,0) -> 0.5083073442 | AN6: 1.030230671 | AO6: =IF(AL6=0,AO5,($D$11-AN6)/AM6) -> 9.777095265 | AP6: 9.777095265 | AT6: 0.05882352941 | AU6: 2.022596295 | AV6: 1.031746828 | AW6: 1.030230671 | AX6: 2.022596295 | AY6: 2.022596295 | BA6: 2.022596295 | BB6: 1.031746828
W7: =IF(OR(X6=$C$22,W6=0),0,0.25) -> 0.25 | X7: 24.25 | Y7: 0.02941176471 | Z7: 0.08823529412 | AA7: 0.08823529412 | AB7: 0.36922406 | AC7: 0.364323994 | AD7: 2.033455826 | AE7: =IF(AB7=0,AE6,($D$9-AD7)/AC7) -> 8.142598956 | AF7: 8.142598956 | AG7: 0.5224337756 | AH7: 0.5167461085 | AI7: 1.047112527 | AJ7: 7.649573762 | AK7: 7.649573762 | AL7: 0.5054450752 | AM7: 0.502553248 | AN7: 1.045096703 | AO7: 9.859459305 | AP7: 9.859459305 | AT7: 0.08823529412 | AU7: 2.033455826 | AV7: 1.047112527 | AW7: 1.045096703 | AX7: 2.033455826 | AY7: 2.033455826 | BA7: 2.033455826 | BB7: 1.047112527
C8: Initial | D8: NMTL | E8: Tmin | W8: 0.25 | X8: 24 | Y8: 0.02941176471 | Z8: 0.1176470588 | AA8: 0.1176470588 | AB8: 0.3594566607 | AC8: 0.3546220599 | AD8: 2.044028081 | AE8: 8.335555661 | AF8: 8.335555661 | AG8: 0.5110891638 | AH8: 0.5054629716 | AI8: 1.062144561 | AJ8: 7.79059132 | AK8: 7.79059132 | AL8: 0.4996330956 | AM8: 0.4966858232 | AN8: 1.059791794 | AO8: 9.946344298 | AP8: 9.946344298 | AT8: 0.1176470588 | AU8: 2.044028081 | AV8: 1.062144561 | AW8: 1.059791794 | AX8: 2.044028081 | AY8: 2.044028081 | BA8: 2.044028081 | BB8: 1.062144561
B9: S. aureus | C9: 2 | D9: 5 | E9: 5.6 | W9: 0.25 | X9: 23.75 | Y9: 0.02941176471 | Z9: 0.1470588235 | AA9: 0.1470588235 | AB9: 0.3498201917 | AC9: 0.345051056 | AD9: 2.05431691 | AE9: 8.536948484 | AF9: 8.536948484 | AG9: 0.4998675603 | AH9: 0.4943029564 | AI9: 1.076846548 | AJ9: 7.936738798 | AK9: 7.936738798 | AL9: 0.4937126081 | AM9: 0.4907146006 | AN9: 1.074312753 | AO9: 10.03778416 | AP9: 10.03778416 | AT9: 0.1470588235 | AU9: 2.05431691 | AV9: 1.076846548 | AW9: 1.074312753 | AX9: 2.05431691 | AY9: 2.05431691 | BA9: 2.05431691 | BB9: 1.076846548
B10: B. cereus | C10: 1 | D10: 5 | E10: 1.5 | W10: 0.25 | X10: 23.5 | Y10: 0.02941176471 | Z10: 0.1764705882 | AA10: 0.1764705882 | AB10: 0.3403146529 | AC10: 0.3356109824 | AD10: 2.064326165 | AE10: 8.747251994 | AF10: 8.747251994 | AG10: 0.4887691849 | AH10: 0.4832662692 | AI10: 1.091222112 | AJ10: 8.088248935 | AK10: 8.088248935 | AL10: 0.4876929244 | AM10: 0.4846486768 | AN10: 1.088656663 | AO10: 10.13382182 | AP10: 10.13382182 | AT10: 0.1764705882 | AU10: 2.064326165 | AV10: 1.091222112 | AW10: 1.088656663 | AX10: 2.064326165 | AY10: 2.064326165 | BA10: 2.064326165 | BB10: 1.091222112
B11: Pseudomonas | C11: 1 | D11: 6 | E11: -6.1 | W11: 0.25 | X11: 23.25 | Y11: 0.02941176471 | Z11: 0.2058823529 | AA11: 0.2058823529 | AB11: 0.3309400445 | AC11: 0.3263018391 | AD11: 2.074059696 | AE11: 8.966974604 | AF11: 8.966974604 | AG11: 0.4777942313 | AH11: 0.4723530917 | AI11: 1.105274884 | AJ11: 8.245368104 | AK11: 8.245368104 | AL11: 0.4815829297 | AM11: 0.47849673 | AN11: 1.102820867 | AO11: 10.23450909 | AP11: 10.23450909 | AT11: 0.2058823529 | AU11: 2.074059696 | AV11: 1.105274884 | AW11: 1.102820867 | AX11: 2.074059696 | AY11: 2.074059696 | BA11: 2.074059696 | BB11: 1.105274884
W12: 0.25 | X12: 23 | Y12: 0.02941176471 | Z12: 0.2352941176 | AA12: 0.2352941176 | AB12: 0.3216963663 | AC12: 0.3171236261 | AD12: 2.083521353 | AE12: 9.196661512 | AF12: 9.196661512 | AG12: 0.4669428698 | AH12: 0.4615635837 | AI12: 1.119008498 | AJ12: 8.408357243 | AK12: 8.408357243 | AL12: 0.4753910995 | AM12: 0.4722670362 | AN12: 1.116802958 | AO12: 10.3399066 | AP12: 10.3399066 | AT12: 0.2352941176 | AU12: 2.083521353 | AV12: 1.119008498 | AW12: 1.116802958 | AX12: 2.083521353 | AY12: 2.083521353 | BA12: 2.083521353 | BB12: 1.119008498
B13: 2) Cooling rate (°C/h) | W13: 0.25 | X13: 22.75 | Y13: 0.02941176471 | Z13: 0.2647058824 | AA13: 0.2647058824 | AB13: 0.3125836184 | AC13: 0.3080763434 | AD13: 2.092714989 | AE13: 9.436897942 | AF13: 9.436897942 | AG13: 0.4562152505 | AH13: 0.450897886 | AI13: 1.132426593 | AJ13: 8.577492879 | AK13: 8.577492879 | AL13: 0.4691255141 | AM13: 0.4659674843 | AN13: 1.130600767 | AO13: 10.45008374 | AP13: 10.45008374 | AT13: 0.2647058824 | AU13: 2.092714989 | AV13: 1.132426593 | AW13: 1.130600767 | AX13: 2.092714989 | AY13: 2.092714989 | BA13: 2.092714989 | BB13: 1.132426593
W14: 0.25 | X14: 22.5 | Y14: 0.02941176471 | Z14: 0.2941176471 | AA14: 0.2941176471 | AB14: 0.3036018009 | AC14: 0.2991599909 | AD14: 2.101644454 | AE14: 9.688312723 | AF14: 9.688312723 | AG14: 0.4456115053 | AH14: 0.4403561224 | AI14: 1.145532814 | AJ14: 8.753068232 | AK14: 8.753068232 | AL14: 0.4627938749 | AM14: 0.4596055917 | AN14: 1.144212352 | AO14: 10.56511874 | AP14: 10.56511874 | AT14: 0.2941176471 | AU14: 2.101644454 | AV14: 1.145532814 | AW14: 1.144212352 | AX14: 2.101644454 | AY14: 2.101644454 | BA14: 2.101644454 | BB14: 1.145532814
B15: 1st milking | C15: 8.5 | D15: 3rd milking | E15: 4.25 | W15: 0.25 | X15: 22.25 | Y15: 0.02941176471 | Z15: 0.3235294118 | AA15: 0.3235294118 | AB15: 0.2947509135 | AC15: 0.2903745688 | AD15: 2.110313598 | AE15: 9.951582241 | AF15: 9.951582241 | AG15: 0.4351317505 | AH15: 0.4299384019 | AI15: 1.158330807 | AJ15: 8.935394411 | AK15: 8.935394411 | AL15: 0.4564035187 | AM15: 0.4531885186 | AN15: 1.157635984 | AO15: 10.68509862 | AP15: 10.68509862 | AT15: 0.3235294118 | AU15: 2.110313598 | AV15: 1.158330807 | AW15: 1.157635984 | AX15: 2.110313598 | AY15: 2.110313598 | BA15: 2.110313598 | BB15: 1.158330807
B16: 2nd milking | C16: 4.25 | D16: 4th milking | E16: 4.25 | W16: 0.25 | X16: 22 | Y16: 0.02941176471 | Z16: 0.3529411765 | AA16: 0.3529411765 | AB16: 0.2860309565 | AC16: 0.2817200769 | AD16: 2.118726274 | AE16: 10.22743483 | AF16: 10.22743483 | AG16: 0.4247760882 | AH16: 0.4196448202 | AI16: 1.170824221 | AJ16: 9.124801723 | AK16: 9.124801723 | AL16: 0.449961433 | AM16: 0.4467230831 | AN16: 1.170870144 | AO16: 10.81011938 | AP16: 10.81011938 | AT16: 0.3529411765 | AU16: 2.118726274 | AV16: 1.170824221 | AW16: 1.170870144 | AX16: 2.118726274 | AY16: 2.118726274 | BA16: 2.118726274 | BB16: 1.170824221
W17: 0.25 | X17: 21.75 | Y17: 0.02941176471 | Z17: 0.3823529412 | AA17: 0.3823529412 | AB17: 0.2774419298 | AC17: 0.2731965153 | AD17: 2.12688633 | AE17: 10.51665563 | AF17: 10.51665563 | AG17: 0.4145446083 | AH17: 0.4094754618 | AI17: 1.18301671 | AJ17: 9.321641091 | AK17: 9.321641091 | AL17: 0.44347427 | AM17: 0.4402157751 | AN17: 1.183913505 | AO17: 10.94028603 | AP17: 10.94028603 | AT17: 0.3823529412 | AU17: 2.12688633 | AV17: 1.18301671 | AW17: 1.183913505 | AX17: 2.12688633 | AY17: 2.12688633 | BA17: 2.12688633 | BB17: 1.18301671
B18: 3) Process | H18: Time to NMTL: | W18: 0.25 | X18: 21.5 | Y18: 0.02941176471 | Z18: 0.4117647059 | AA18: 0.4117647059 | AB18: 0.2689838333 | AC18: 0.264803884 | AD18: 2.13479762 | AE18: 10.82009198 | AF18: 10.82009198 | AG18: 0.4044373898 | AH18: 0.3994304007 | AI18: 1.194911927 | AJ18: 9.526285597 | AK18: 9.526285597 | AL18: 0.4369483608 | AM18: 0.4336727703 | AN18: 1.196764927 | AO18: 11.07571285 | AP18: 11.07571285 | AT18: 0.4117647059 | AU18: 2.13479762 | AV18: 1.194911927 | AW18: 1.196764927 | AX18: 2.13479762 | AY18: 2.13479762 | BA18: 2.13479762 | BB18: 1.194911927
C19: Temperature | D19: Time (h) | E19: Time (min) | F19: Time elapsed (h) | H19: Process | I19: S. aureus | J19: B. cereus | K19: Pseudomonas | L19: All | M19: Food Safety | W19: 0.25 | X19: 21.25 | Y19: 0.02941176471 | Z19: 0.4411764706 | AA19: 0.4411764706 | AB19: 0.2606566672 | AC19: 0.256542183 | AD19: 2.142463992 | AE19: 11.13865944 | AF19: 11.13865944 | AG19: 0.3944545023 | AH19: 0.3895097021 | AI19: 1.20651353 | AJ19: 9.739132169 | AK19: 9.739132169 | AL19: 0.4303897288 | AM19: 0.4270999432 | AN19: 1.209423449 | AO19: 11.2165235 | AP19: 11.2165235 | AT19: 0.4411764706 | AU19: 2.142463992 | AV19: 1.20651353 | AW19: 1.209423449 | AX19: 2.142463992 | AY19: 2.142463992 | BA19: 2.142463992 | BB19: 1.20651353
B20: First milk cooling start | C20: 25 | D20: 0 | E20: =D20*60 -> 0 | F20: =D20 -> 0 | H20: First milk cooling start | I20: =IF($D$21=0,AF4,"") -> 7.610053198 | J20: =IF($D$21=0,AK4,"") -> 7.255159975 | K20: =IF($D$21=0,AP4,"") -> 9.625840471 | L20: =IF($D$21=0,MIN(I20:K20),"") -> 7.255159975 | M20: =IF($D$21=0,MIN(I20:J20),"") -> 7.255159975 | W20: 0.25 | X20: 21 | Y20: 0.02941176471 | Z20: 0.4705882353 | AA20: 0.4705882353 | AB20: 0.2524604313 | AC20: 0.2484114122 | AD20: 2.149889299 | AE20: 11.47334849 | AF20: 11.47334849 | AG20: 0.384596007 | AH20: 0.3797134233 | AI20: 1.217825177 | AJ20: 9.960603419 | AK20: 9.960603419 | AL20: 0.423804103 | AM20: 0.4205028805 | AN20: 1.221888275 | AO20: 11.36285135 | AP20: 11.36285135 | AT20: 0.4705882353 | AU20: 2.149889299 | AV20: 1.217825177 | AW20: 1.221888275 | AX20: 2.149889299 | AY20: 2.149889299 | BA20: 2.149889299 | BB20: 1.217825177
B21: HOLD | C21: =C20 -> 25 | D21: 0 | E21: =D21*60 -> 0 | F21: =D21+F20 -> 0 | H21: HOLD | I21: =IF($D$21>0,AF4,"") ->  | J21: =IF($D$21>0,AK4,"") ->  | K21: =IF($D$21>0,AP4,"") ->  | L21: =IF($D$21>0,MIN(I21:K21),"") ->  | M21: =IF($D$21>0,MIN(I21:J21),"") ->  | W21: 0.25 | X21: 20.75 | Y21: 0.02941176471 | Z21: 0.5 | AA21: 0.5 | AB21: =IF(X21>$E$9,(0.00033*(((X20+X21)/2)-5.6)*((6.5-2.8)*(1-EXP(0.5*(6.5-9.8)))*(36.7-0.9324)*(1-EXP(0.42*(-5-0.9324)))))^2,0) -> 0.2443951257 | AC21: 0.2404115718 | AD21: 2.157077391 | AE21: 11.82523199 | AF21: =IF(AE21>0,AE21,0) -> 11.82523199 | AG21: 0.3748619574 | AH21: 0.3700416147 | AI21: 1.228850529 | AJ21: 10.19114965 | AK21: =IF(AJ21>0,AJ21,0) -> 10.19114965 | AL21: 0.417196931 | AM21: 0.4138868935 | AN21: 1.234158773 | AO21: 11.51483968 | AP21: =IF(AO21>0,AO21,0) -> 11.51483968 | AT21: 0.5 | AU21: =AD21 -> 2.157077391 | AV21: =AI21 -> 1.228850529 | AW21: =AN21 -> 1.234158773 | AX21: 2.157077391 | AY21: 2.157077391 | BA21: 2.157077391 | BB21: 1.228850529
B22: First milk cooling end | C22: 5 | D22: =((C21-C22)/C15) -> 2.352941176 | E22: =D22*60 -> 141.1764706 | F22: =D22+F21 -> 2.352941176 | H22: First milk cooling end | I22: =AF84 -> 114569.0118 | J22: =AK84 -> 285.5703513 | K22: =AP84 -> 58.11393007 | L22: =MIN(I22:K22) -> 58.11393007 | M22: =MIN(I22:J22) -> 285.5703513 | W22: 0.25 | X22: 20.5 | Y22: 0.02941176471 | Z22: 0.5294117647 | AA22: 0.5294117647 | AB22: 0.2364607504 | AC22: 0.2325426616 | AD22: 2.164032119 | AE22: 12.19547356 | AF22: 12.19547356 | AG22: 0.3652524008 | AH22: 0.3604943205 | AI22: 1.239593247 | AJ22: 10.43125103 | AK22: 10.43125103 | AL22: 0.4105733909 | AM22: 0.4072570303 | AN22: 1.246234461 | AO22: 11.67264205 | AP22: 11.67264205 | AT22: 0.5294117647 | AU22: 2.164032119 | AV22: 1.239593247 | AW22: 1.246234461 | AX22: 2.164032119 | AY22: 2.164032119 | BA22: 2.164032119 | BB22: 1.239593247
B23: Storage | C23: =C22 -> 5 | D23: =12-(D22+D21) -> 9.647058824 | E23: 578.8235294 | F23: =D23+F22 -> 12 | H23: Storage | I23: =AF125 -> 114569.0118 | J23: =AK125 -> 275.9232925 | K23: =AP125 -> 48.46687124 | L23: 48.46687124 | M23: 275.9232925 | W23: 0.25 | X23: 20.25 | Y23: 0.02941176471 | Z23: 0.5588235294 | AA23: 0.5588235294 | AB23: 0.2286573054 | AC23: 0.2248046817 | AD23: 2.170757334 | AE23: 12.58533694 | AF23: 12.58533694 | AG23: 0.3557673787 | AH23: 0.3510715796 | AI23: 1.250056993 | AJ23: 10.68142004 | AK23: 10.68142004 | AL23: 0.4039384036 | AM23: 0.4006180875 | AN23: 1.258115003 | AO23: 11.83642263 | AP23: 11.83642263 | AT23: 0.5588235294 | AU23: 2.170757334 | AV23: 1.250056993 | AW23: 1.258115003 | AX23: 2.170757334 | AY23: 2.170757334 | BA23: 2.170757334 | BB23: 1.250056993
B24: Second milk cooling start | C24: 15 | D24: 0 | E24: 0 | F24: 12 | H24: Second milk cooling start | I24: =IF($D$25=0,AF126,"") -> 29.17385469 | J24: =IF($D$25=0,AK126,"") -> 18.54635323 | K24: =IF($D$25=0,AP126,"") -> 13.65812565 | L24: =IF($D$25=0,MIN(I24:K24),"") -> 13.65812565 | M24: =IF($D$25=0,MIN(I24:J24),"") -> 18.54635323 | W24: 0.25 | X24: 20 | Y24: 0.02941176471 | Z24: 0.5882352941 | AA24: 0.5882352941 | AB24: 0.2209847907 | AC24: 0.2171976321 | AD24: 2.177256886 | AE24: 12.99619653 | AF24: 12.99619653 | AG24: 0.3464069275 | AH24: 0.3417734261 | AI24: 1.260245432 | AJ24: 10.94220405 | AK24: 10.94220405 | AL24: 0.3972966443 | AM24: 0.3939746217 | AN24: 1.269800198 | AO24: 12.00635661 | AP24: 12.00635661 | AT24: 0.5882352941 | AU24: 2.177256886 | AV24: 1.260245432 | AW24: 1.269800198 | AX24: 2.177256886 | AY24: 2.177256886 | BA24: 2.177256886 | BB24: 1.260245432
B25: HOLD | C25: =C24 -> 15 | D25: 0 | E25: 0 | F25: 12 | H25: HOLD | I25: =IF($D$25>0,AF126,"") ->  | J25: =IF($D$25>0,AK126,"") ->  | K25: =IF($D$25>0,AP126,"") ->  | L25: =IF($D$25>0,MIN(I25:K25),"") ->  | M25: =IF($D$25>0,MIN(I25:J25),"") ->  | W25: 0.25 | X25: 19.75 | Y25: 0.02941176471 | Z25: 0.6176470588 | AA25: 0.6176470588 | AB25: 0.2134432062 | AC25: 0.2097215128 | AD25: 2.183534628 | AE25: 13.42954919 | AF25: 13.42954919 | AG25: 0.3371710792 | AH25: 0.3325998901 | AI25: 1.270162228 | AJ25: 11.21418823 | AK25: 11.21418823 | AL25: 0.3906525536 | AM25: 0.3873309601 | AN25: 1.281289979 | AO25: 12.18263064 | AP25: 12.18263064 | AT25: 0.6176470588 | AU25: 2.183534628 | AV25: 1.270162228 | AW25: 1.281289979 | AX25: 2.183534628 | AY25: 2.183534628 | BA25: 2.183534628 | BB25: 1.270162228
B26: Second milk cooling end | C26: 5 | D26: =((C25-C26)/C16) -> 2.352941176 | E26: 141.1764706 | F26: 14.35294118 | H26: Second milk cooling end | I26: =AF166 -> 111674.2026 | J26: =AK166 -> 260.4461224 | K26: =AP166 -> 43.39996869 | L26: 43.39996869 | M26: 260.4461224 | W26: 0.25 | X26: 19.5 | Y26: 0.02941176471 | Z26: 0.6470588235 | AA26: 0.6470588235 | AB26: 0.206032552 | AC26: 0.2023763238 | AD26: 2.189594409 | AE26: 13.88702758 | AF26: 13.88702758 | AG26: 0.3280598619 | AH26: 0.3235509978 | AI26: 1.279811048 | AJ26: 11.4979987 | AK26: 11.4979987 | AL26: 0.3840103482 | AM26: 0.3806912115 | AN26: 1.292584401 | AO26: 12.36544332 | AP26: 12.36544332 | AT26: 0.6470588235 | AU26: 2.189594409 | AV26: 1.279811048 | AW26: 1.292584401 | AX26: 2.189594409 | AY26: 2.189594409 | BA26: 2.189594409 | BB26: 1.279811048
B27: Storage | C27: =C26 -> 5 | D27: =12-(D26+D25) -> 9.647058824 | E27: 578.8235294 | F27: 24 | H27: Storage | I27: =AF247 -> 111674.2026 | J27: =AK247 -> 250.7990636 | K27: =AP247 -> 33.75290987 | L27: 33.75290987 | M27: 250.7990636 | W27: 0.25 | X27: 19.25 | Y27: 0.02941176471 | Z27: 0.6764705882 | AA27: 0.6764705882 | AB27: 0.1987528282 | AC27: 0.1951620651 | AD27: 2.19544008 | AE27: 14.37041527 | AF27: 14.37041527 | AG27: 0.3190733003 | AH27: 0.3146267723 | AI27: 1.289195557 | AJ27: 11.79430605 | AK27: 11.79430605 | AL27: 0.3773740313 | AM27: 0.3740592761 | AN27: 1.303683637 | AO27: 12.55500575 | AP27: 12.55500575 | AT27: 0.6764705882 | AU27: 2.19544008 | AV27: 1.289195557 | AW27: 1.303683637 | AX27: 2.19544008 | AY27: 2.19544008 | BA27: 2.19544008 | BB27: 1.289195557
B28: Third milk cooling start | C28: 15 | D28: 0 | E28: 0 | F28: 24 | H28: Third milk cooling start | I28: =IF($D$29=0,AF248,"") -> 28.43672016 | J28: =IF($D$29=0,AK248,"") -> 16.85761278 | K28: =IF($D$29=0,AP248,"") -> 9.511682353 | L28: =IF($D$29=0,MIN(I28:K28),"") -> 9.511682353 | M28: =IF($D$29=0,MIN(I28:J28),"") -> 16.85761278 | W28: 0.25 | X28: 19 | Y28: 0.02941176471 | Z28: 0.7058823529 | AA28: 0.7058823529 | AB28: 0.1916040346 | AC28: 0.1880787366 | AD28: 2.201075493 | AE28: 14.8816637 | AF28: 14.8816637 | AG28: 0.3102114161 | AH28: 0.305827234 | AI28: 1.298319422 | AJ28: 12.10382911 | AK28: 12.10382911 | AL28: 0.3707474025 | AM28: 0.3674388551 | AN28: 1.314587973 | AO28: 12.75154209 | AP28: 12.75154209 | AT28: 0.7058823529 | AU28: 2.201075493 | AV28: 1.298319422 | AW28: 1.314587973 | AX28: 2.201075493 | AY28: 2.201075493 | BA28: 2.201075493 | BB28: 1.298319422
B29: HOLD | C29: =C28 -> 15 | D29: 0 | E29: 0 | F29: 24 | H29: HOLD | I29: =IF($D$29>0,AF248,"") ->  | J29: =IF($D$29>0,AK248,"") ->  | K29: =IF($D$29>0,AP248,"") ->  | L29: =IF($D$29>0,MIN(I29:K29),"") ->  | M29: =IF($D$29>0,MIN(I29:J29),"") ->  | W29: 0.25 | X29: 18.75 | Y29: 0.02941176471 | Z29: 0.7352941176 | AA29: 0.7352941176 | AB29: 0.1845861713 | AC29: 0.1811263385 | AD29: 2.206504498 | AE29: 15.42291158 | AF29: 15.42291158 | AG29: 0.3014742282 | AH29: 0.2971524006 | AI29: 1.307186311 | AJ29: 12.42733924 | AK29: 12.42733924 | AL29: 0.3641340672 | AM29: 0.3608334606 | AN29: 1.325297798 | AO29: 12.95529022 | AP29: 12.95529022 | AT29: 0.7352941176 | AU29: 2.206504498 | AV29: 1.307186311 | AW29: 1.325297798 | AX29: 2.206504498 | AY29: 2.206504498 | BA29: 2.206504498 | BB29: 1.307186311
B30: Third milk cooling end | C30: 5 | D30: =((C29-C30)/E15) -> 2.352941176 | E30: 141.1764706 | F30: 26.35294118 | H30: Third milk cooling end | I30: =AF288 -> 108779.3933 | J30: =AK288 -> 235.3218935 | K30: =AP288 -> 28.68600732 | L30: 28.68600732 | M30: 235.3218935 | W30: 0.25 | X30: 18.5 | Y30: 0.02941176471 | Z30: 0.7647058824 | AA30: 0.7647058824 | AB30: 0.1776992382 | AC30: 0.1743048706 | AD30: 2.211730946 | AE30: 15.99650684 | AF30: 15.99650684 | AG30: 0.2928617533 | AH30: 0.2886022878 | AI30: 1.315799892 | AJ30: 12.76566494 | AK30: 12.76566494 | AL30: 0.3575374461 | AM30: 0.354246424 | AN30: 1.335813605 | AO30: 13.16650241 | AP30: 13.16650241 | AT30: 0.7647058824 | AU30: 2.211730946 | AV30: 1.315799892 | AW30: 1.335813605 | AX30: 2.211730946 | AY30: 2.211730946 | BA30: 2.211730946 | BB30: 1.315799892
B31: Storage | C31: =C30 -> 5 | D31: =12-(D30+D29) -> 9.647058824 | E31: 578.8235294 | F31: 36 | H31: Storage | I31: =AF369 -> 108779.3933 | J31: =AK369 -> 225.6748347 | K31: =AP369 -> 19.0389485 | L31: 19.0389485 | M31: 225.6748347 | W31: 0.25 | X31: 18.25 | Y31: 0.02941176471 | Z31: 0.7941176471 | AA31: 0.7941176471 | AB31: 0.1709432355 | AC31: 0.167614333 | AD31: 2.216758688 | AE31: 16.60503169 | AF31: 16.60503169 | AG31: 0.284374006 | AH31: 0.2801769093 | AI31: 1.324163833 | AJ31: 13.11969704 | AK31: 13.11969704 | AL31: 0.3509607837 | AM31: 0.3476809048 | AN31: 1.346135981 | AO31: 13.38544612 | AP31: 13.38544612 | AT31: 0.7941176471 | AU31: 2.216758688 | AV31: 1.324163833 | AW31: 1.346135981 | AX31: 2.216758688 | AY31: 2.216758688 | BA31: 2.216758688 | BB31: 1.324163833
B32: Fourth milk cooling start | C32: 15 | D32: 0 | E32: 0 | F32: 36 | H32: Fourth milk cooling start | I32: =IF($D$33=0,AF370,"") -> 27.69958562 | J32: =IF($D$33=0,AK370,"") -> 15.16887234 | K32: =IF($D$33=0,AP370,"") -> 5.365239061 | L32: =IF($D$33=0,MIN(I32:K32),"") -> 5.365239061 | M32: =IF($D$33=0,MIN(I32:J32),"") -> 15.16887234 | W32: 0.25 | X32: 18 | Y32: 0.02941176471 | Z32: 0.8235294118 | AA32: 0.8235294118 | AB32: 0.1643181631 | AC32: 0.1610547257 | AD32: 2.221591576 | AE32: 17.25133126 | AF32: 17.25133126 | AG32: 0.2760109992 | AH32: 0.271876277 | AI32: 1.332281804 | AJ32: 13.49039437 | AK32: 13.49039437 | AL32: 0.3444071566 | AM32: 0.341139899 | AN32: 1.356265604 | AO32: 13.61240479 | AP32: 13.61240479 | AT32: 0.8235294118 | AU32: 2.221591576 | AV32: 1.332281804 | AW32: 1.356265604 | AX32: 2.221591576 | AY32: 2.221591576 | BA32: 2.221591576 | BB32: 1.332281804
B33: HOLD | C33: =C32 -> 15 | D33: 0 | E33: 0 | F33: 36 | H33: HOLD | I33: =IF($D$33>0,AF370,"") ->  | J33: =IF($D$33>0,AK370,"") ->  | K33: =IF($D$33>0,AP370,"") ->  | L33: =IF($D$33>0,MIN(I33:K33),"") ->  | M33: =IF($D$33>0,MIN(I33:J33),"") ->  | W33: 0.25 | X33: 17.75 | Y33: 0.02941176471 | Z33: 0.8529411765 | AA33: 0.8529411765 | AB33: 0.1578240209 | AC33: 0.1546260487 | AD33: 2.226233458 | AE33: 17.93854635 | AF33: 17.93854635 | AG33: 0.267772744 | AH33: 0.2637004015 | AI33: 1.340157473 | AJ33: 13.87879012 | AK33: 13.87879012 | AL33: 0.3378794821 | AM33: 0.3346262469 | AN33: 1.366203236 | AO33: 13.84767874 | AP33: 13.84767874 | AT33: 0.8529411765 | AU33: 2.226233458 | AV33: 1.340157473 | AW33: 1.366203236 | AX33: 2.226233458 | AY33: 2.226233458 | BA33: 2.226233458 | BB33: 1.340157473
B34: Fourth milk cooling end | C34: 5 | D34: =((C33-C34)/E16) -> 2.352941176 | E34: 141.1764706 | F34: 38.35294118 | H34: Fourth milk cooling end | I34: =AF410 -> 105884.5841 | J34: =AK410 -> 210.1976646 | K34: =AP410 -> 13.97204595 | L34: 13.97204595 | M34: 210.1976646 | W34: 0.25 | X34: 17.5 | Y34: 0.02941176471 | Z34: 0.8823529412 | AA34: 0.8823529412 | AB34: 0.151460809 | AC34: 0.1483283019 | AD34: 2.230688188 | AE34: 18.67015112 | AF34: 18.67015112 | AG34: 0.2596592504 | AH34: 0.255649292 | AI34: 1.34779451 | AJ34: 14.28599885 | AK34: 14.28599885 | AL34: 0.3313805253 | AM34: 0.3281426405 | AN34: 1.375949722 | AO34: 14.09158612 | AP34: 14.09158612 | AT34: 0.8823529412 | AU34: 2.230688188 | AV34: 1.34779451 | AW34: 1.375949722 | AX34: 2.230688188 | AY34: 2.230688188 | BA34: 2.230688188 | BB34: 1.34779451
B35: Storage | C35: =C34 -> 5 | D35: =12-(D34+D33) -> 9.647058824 | E35: 578.8235294 | F35: 48 | H35: Storage | I35: =AF491 -> 105884.5841 | J35: =AK491 -> 200.5506058 | K35: =AP491 -> 4.324987126 | L35: 4.324987126 | M35: 200.5506058 | W35: 0.25 | X35: 17.25 | Y35: 0.02941176471 | Z35: 0.9117647059 | AA35: 0.9117647059 | AB35: 0.1452285274 | AC35: 0.1421614855 | AD35: 2.234959615 | AE35: 19.44999643 | AF35: 19.44999643 | AG35: 0.251670527 | AH35: 0.2477229565 | AI35: 1.355196584 | AJ35: 14.71322427 | AK35: 14.71322427 | AL35: 0.324912907 | AM35: 0.321691631 | AN35: 1.385505984 | AO35: 14.34446399 | AP35: 14.34446399 | AT35: 0.9117647059 | AU35: 2.234959615 | AV35: 1.355196584 | AW35: 1.385505984 | AX35: 2.234959615 | AY35: 2.234959615 | BA35: 2.234959615 | BB35: 1.355196584
W36: 0.25 | X36: 17 | Y36: 0.02941176471 | Z36: 0.9411764706 | AA36: 0.9411764706 | AB36: 0.1391271761 | AC36: 0.1361255993 | AD36: 2.239051591 | AE36: 20.28235999 | AF36: 20.28235999 | AG36: 0.2438065814 | AH36: 0.2399214023 | AI36: 1.362367366 | AJ36: 15.16176798 | AK36: 15.16176798 | AL36: 0.3184791105 | AM36: 0.3152756356 | AN36: 1.394873016 | AO36: 14.60666942 | AP36: 14.60666942 | AT36: 0.9411764706 | AU36: 2.239051591 | AV36: 1.362367366 | AW36: 1.394873016 | AX36: 2.239051591 | AY36: 2.239051591 | BA36: 2.239051591 | BB36: 1.362367366
W37: 0.25 | X37: 16.75 | Y37: 0.02941176471 | Z37: 0.9705882353 | AA37: 0.9705882353 | AB37: 0.1331567551 | AC37: 0.1302206434 | AD37: 2.242967966 | AE37: 21.17200438 | AF37: 21.17200438 | AG37: 0.2360674201 | AH37: 0.2322446354 | AI37: 1.369310525 | AJ37: 15.63303914 | AK37: =IF(AJ37>0,AJ37,0) -> 15.63303914 | AL37: =IF(AND(X37>$E$11,OR(X37>0,X37<0)),((0.1709*(((X37+X36)/2)+6.1)*SQRT(0.995-0.947)*(1-EXP(0.1723*(((X37+X36)/2)-41.2))))^2)/2.3,0) -> 0.3120814885 | AM37: 0.308896944 | AN37: 1.404051883 | AO37: 14.87858072 | AP37: 14.87858072 | AT37: 0.9705882353 | AU37: 2.242967966 | AV37: 1.369310525 | AW37: 1.404051883 | AX37: 2.242967966 | AY37: 2.242967966 | BA37: 2.242967966 | BB37: 1.369310525
W38: 0.25 | X38: 16.5 | Y38: 0.02941176471 | Z38: 1 | AA38: 1 | AB38: 0.1273172643 | AC38: 0.1244466178 | AD38: 2.246712592 | AE38: 22.12424456 | AF38: 22.12424456 | AG38: 0.228453049 | AH38: 0.2246926613 | AI38: 1.376029733 | AJ38: 16.12856533 | AK38: 16.12856533 | AL38: 0.3057222694 | AM38: 0.3025577248 | AN38: 1.413043715 | AO38: 15.16059882 | AP38: 15.16059882 | AT38: 1 | AU38: 2.246712592 | AV38: 1.376029733 | AW38: 1.413043715 | AX38: 2.246712592 | AY38: 2.246712592 | BA38: 2.246712592 | BB38: 1.376029733
W39: 0.25 | X39: 16.25 | Y39: 0.02941176471 | Z39: 1.029411765 | AA39: 1.029411765 | AB39: 0.1216087039 | AC39: 0.1188035225 | AD39: 2.250289318 | AE39: 23.14502654 | AF39: 23.14502654 | AG39: 0.2209634731 | AH39: 0.2172654848 | AI39: 1.382528658 | AJ39: 16.65000469 | AK39: 16.65000469 | AL39: 0.2994035635 | AM39: 0.2962600318 | AN39: 1.421849702 | AO39: 15.45314861 | AP39: 15.45314861 | AT39: 1.029411765 | AU39: 2.250289318 | AV39: 1.382528658 | AW39: 1.421849702 | AX39: 2.250289318 | AY39: 2.250289318 | BA39: 2.250289318 | BB39: 1.382528658
W40: 0.25 | X40: 16 | Y40: 0.02941176471 | Z40: 1.058823529 | AA40: 1.058823529 | AB40: 0.1160310737 | AC40: 0.1132913575 | AD40: 2.253701997 | AE40: 24.24101947 | AF40: 24.24101947 | AG40: 0.2135986969 | AH40: 0.20996311 | AI40: 1.388810973 | AJ40: 17.19915955 | AK40: 17.19915955 | AL40: 0.2931273694 | AM40: 0.2900058093 | AN40: 1.430471095 | AO40: 15.75668058 | AP40: 15.75668058 | AT40: 1.058823529 | AU40: 2.253701997 | AV40: 1.388810973 | AW40: 1.430471095 | AX40: 2.253701997 | AY40: 2.253701997 | BA40: 2.253701997 | BB40: 1.388810973
W41: 0.25 | X41: 15.75 | Y41: 0.02941176471 | Z41: 1.088235294 | AA41: 1.088235294 | AB41: 0.1105843739 | AC41: 0.1079101228 | AD41: 2.256954479 | AE41: 25.41972385 | AF41: 25.41972385 | AG41: 0.2063587244 | AH41: 0.2027855405 | AI41: 1.394880347 | AJ41: 17.77799169 | AK41: 17.77799169 | AL41: 0.2868955786 | AM41: 0.2837968979 | AN41: 1.438909201 | AO41: 16.0716725 | AP41: 16.0716725 | AT41: 1.088235294 | AU41: 2.256954479 | AV41: 1.394880347 | AW41: 1.438909201 | AX41: 2.256954479 | AY41: 2.256954479 | BA41: 2.256954479 | BB41: 1.394880347
W42: 0.25 | X42: 15.5 | Y42: 0.02941176471 | Z42: 1.117647059 | AA42: 1.117647059 | AB42: 0.1052686043 | AC42: 0.1026598183 | AD42: 2.260050614 | AE42: 26.68959902 | AF42: 26.68959902 | AG42: 0.1992435588 | AH42: 0.1957327795 | AI42: 1.400740452 | AJ42: 18.38863964 | AK42: 18.38863964 | AL42: 0.280709982 | AM42: 0.2776350396 | AN42: 1.447165377 | AO42: 16.3986312 | AP42: 16.3986312 | AT42: 1.117647059 | AU42: 2.260050614 | AV42: 1.400740452 | AW42: 1.447165377 | AX42: 2.260050614 | AY42: 2.260050614 | BA42: 2.260050614 | BB42: 1.400740452
W43: 0.25 | X43: 15.25 | Y43: 0.02941176471 | Z43: 1.147058824 | AA43: 1.147058824 | AB43: 0.1000837649 | AC43: 0.09754044415 | AD43: 2.262994254 | AE43: 28.0602141 | AF43: 28.0602141 | AG43: 0.1922532031 | AH43: 0.1888048299 | AI43: 1.406394958 | AJ43: 19.0334381 | AK43: 19.0334381 | AL43: 0.274572274 | AM43: 0.2715218829 | AN43: 1.455241032 | AO43: 16.73809463 | AP43: 16.73809463 | AT43: 1.147058824 | AU43: 2.262994254 | AV43: 1.406394958 | AW43: 1.455241032 | AX43: 2.262994254 | AY43: 2.262994254 | BA43: 2.262994254 | BB43: 1.406394958
W44: 0.25 | X44: 15 | Y44: 0.02941176471 | Z44: 1.176470588 | AA44: 1.176470588 | AB44: 0.09502985592 | AC44: 0.09255200027 | AD44: 2.26578925 | AE44: 29.54242742 | AF44: 29.54242742 | AG44: 0.18538766 | AH44: 0.1820016939 | AI44: 1.411847536 | AJ44: 19.71493994 | AK44: 19.71493994 | AL44: 0.2684840583 | AM44: 0.2654589874 | AN44: 1.463137622 | AO44: 17.09063394 | AP44: 17.09063394 | AT44: 1.176470588 | AU44: 2.26578925 | AV44: 1.411847536 | AW44: 1.463137622 | AX44: 2.26578925 | AY44: 2.26578925 | BA44: 2.26578925 | BB44: 1.411847536
W45: 0.25 | X45: 14.75 | Y45: 0.02941176471 | Z45: 1.205882353 | AA45: 1.205882353 | AB45: 0.09010687719 | AC45: 0.08769448668 | AD45: 2.268439452 | AE45: 31.14860069 | AF45: 31.14860069 | AG45: 0.1786469318 | AH45: 0.1753233738 | AI45: 1.417101857 | AJ45: 20.43594111 | AK45: 20.43594111 | AL45: 0.2624468518 | AM45: 0.2594478286 | AN45: 1.470856647 | AO45: 17.45685589 | AP45: 17.45685589 | AT45: 1.205882353 | AU45: 2.268439452 | AV45: 1.417101857 | AW45: 1.470856647 | AX45: 2.268439452 | AY45: 2.268439452 | BA45: 2.268439452 | BB45: 1.417101857
W46: 0.25 | X46: 14.5 | Y46: 0.02941176471 | Z46: 1.235294118 | AA46: 1.235294118 | AB46: 0.08531482873 | AC46: 0.08296790337 | AD46: 2.270948712 | AE46: 32.89285588 | AF46: 32.89285588 | AG46: 0.1720310203 | AH46: 0.1687698714 | AI46: 1.422161593 | AJ46: 21.19950899 | AK46: 21.19950899 | AL46: 0.2564620895 | AM46: 0.2534898019 | AN46: 1.478399649 | AO46: 17.83740536 | AP46: 17.83740536 | AT46: 1.235294118 | AU46: 2.270948712 | AV46: 1.422161593 | AW46: 1.478399649 | AX46: 2.270948712 | AY46: 2.270948712 | BA46: 2.270948712 | BB46: 1.422161593
W47: 0.25 | X47: 14.25 | Y47: 0.02941176471 | Z47: 1.264705882 | AA47: 1.264705882 | AB47: 0.08065371057 | AC47: 0.07837225034 | AD47: 2.27332088 | AE47: 34.79138481 | AF47: 34.79138481 | AG47: 0.1655399274 | AH47: 0.1623411884 | AI47: 1.427030415 | AJ47: 22.0090146 | AK47: 22.0090146 | AL47: 0.2505311284 | AM47: 0.2475862272 | AN47: 1.485768212 | AO47: 18.23296813 | AP47: 18.23296813 | AT47: 1.264705882 | AU47: 2.27332088 | AV47: 1.427030415 | AW47: 1.485768212 | AX47: 2.27332088 | AY47: 2.27332088 | BA47: 2.27332088 | BB47: 1.427030415
W48: 0.25 | X48: 14 | Y48: 0.02941176471 | Z48: 1.294117647 | AA48: 1.294117647 | AB48: 0.07612352269 | AC48: 0.0739075276 | AD48: 2.275559807 | AE48: 36.86282415 | AF48: 36.86282415 | AG48: 0.1591736545 | AH48: 0.156037326 | AI48: 1.431711993 | AJ48: 22.86816942 | AK48: 22.86816942 | AL48: 0.2446552518 | AM48: 0.241738352 | AN48: 1.492963955 | AO48: 18.6442739 | AP48: 18.6442739 | AT48: 1.294117647 | AU48: 2.275559807 | AV48: 1.431711993 | AW48: 1.492963955 | AX48: 2.275559807 | AY48: 2.275559807 | BA48: 2.275559807 | BB48: 1.431711993
W49: 0.25 | X49: 13.75 | Y49: 0.02941176471 | Z49: 1.323529412 | AA49: 1.323529412 | AB49: 0.07172426509 | AC49: 0.06957373515 | AD49: 2.277669344 | AE49: 39.12871215 | AF49: 39.12871215 | AG49: 0.152932203 | AH49: 0.1498582857 | AI49: 1.436209999 | AJ49: 23.78106746 | AK49: 23.78106746 | AL49: 0.2388356729 | AM49: 0.235947356 | AN49: 1.499988533 | AO49: 19.07209957 | AP49: 19.07209957 | AT49: 1.323529412 | AU49: 2.277669344 | AV49: 1.436209999 | AW49: 1.499988533 | AX49: 2.277669344 | AY49: 2.277669344 | BA49: 2.277669344 | BB49: 1.436209999
W50: 0.25 | X50: 13.5 | Y50: 0.02941176471 | Z50: 1.352941176 | AA50: 1.352941176 | AB50: 0.06745593778 | AC50: 0.06537087298 | AD50: 2.279653342 | AE50: 41.61404818 | AF50: 41.61404818 | AG50: 0.1468155741 | AH50: 0.1438040684 | AI50: 1.440528104 | AJ50: 24.75223362 | AK50: 24.75223362 | AL50: 0.2330735386 | AM50: 0.2302143542 | AN50: 1.506843637 | AO50: 19.51727284 | AP50: 19.51727284 | AT50: 1.352941176 | AU50: 2.279653342 | AV50: 1.440528104 | AW50: 1.506843637 | AX50: 2.279653342 | AY50: 2.279653342 | BA50: 2.279653342 | BB50: 1.440528104
W51: 0.25 | X51: 13.25 | Y51: 0.02941176471 | Z51: 1.382352941 | AA51: 1.382352941 | AB51: 0.06331854076 | AC51: 0.0612989411 | AD51: 2.281515652 | AE51: 44.34798218 | AF51: 44.34798218 | AG51: 0.1408237686 | AH51: 0.137874675 | AI51: 1.444669979 | AJ51: 25.78667924 | AK51: 25.78667924 | AL51: 0.2273699327 | AM51: 0.2245404003 | AN51: 1.513530988 | AO51: 19.98067611 | AP51: 19.98067611 | AT51: 1.382352941 | AU51: 2.281515652 | AV51: 1.444669979 | AW51: 1.513530988 | AX51: 2.281515652 | AY51: 2.281515652 | BA51: 2.281515652 | BB51: 1.444669979
W52: 0.25 | X52: 13 | Y52: 0.02941176471 | Z52: 1.411764706 | AA52: 1.411764706 | AB52: 0.05931207402 | AC52: 0.05735793951 | AD52: 2.283260125 | AE52: 47.36466997 | AF52: 47.36466997 | AG52: 0.1349567876 | AH52: 0.1320701065 | AI52: 1.448639297 | AJ52: 26.88996623 | AK52: 26.88996623 | AL52: 0.2217258796 | AM52: 0.2189264899 | AN52: 1.520052338 | AO52: 20.46325076 | AP52: 20.46325076 | AT52: 1.411764706 | AU52: 2.283260125 | AV52: 1.448639297 | AW52: 1.520052338 | AX52: 2.283260125 | AY52: 2.283260125 | BA52: 2.283260125 | BB52: 1.448639297
W53: 0.25 | X53: 12.75 | Y53: 0.02941176471 | Z53: 1.441176471 | AA53: 1.441176471 | AB53: =IF(X53>$E$9,(0.00033*(((X52+X53)/2)-5.6)*((6.5-2.8)*(1-EXP(0.5*(6.5-9.8)))*(36.7-0.9324)*(1-EXP(0.42*(-5-0.9324)))))^2,0) -> 0.05543653757 | AC53: 0.0535478682 | AD53: 2.284890612 | AE53: 50.70434137 | AF53: 50.70434137 | AG53: 0.1292146317 | AH53: 0.1263903634 | AI53: 1.452439727 | AJ53: 28.06828129 | AK53: 28.06828129 | AL53: 0.2161423471 | AM53: 0.2133735637 | AN53: 1.526409465 | AO53: 20.96600187 | AP53: 20.96600187 | AT53: 1.441176471 | AU53: =AD53 -> 2.284890612 | AV53: =AI53 -> 1.452439727 | AW53: =AN53 -> 1.526409465 | AX53: 2.284890612 | AY53: 2.284890612 | BA53: 2.284890612 | BB53: 1.452439727
W54: 0.25 | X54: 12.5 | Y54: 0.02941176471 | Z54: 1.470588235 | AA54: 1.470588235 | AB54: 0.0516919314 | AC54: 0.04986872717 | AD54: 2.286410962 | AE54: 54.41464404 | AF54: 54.41464404 | AG54: 0.1235973017 | AH54: 0.1208354465 | AI54: 1.456074942 | AJ54: 29.32852206 | AK54: 29.32852206 | AL54: 0.2106202492 | AM54: 0.2078825101 | AN54: 1.532604179 | AO54: 21.49000326 | AP54: 21.49000326 | AT54: 1.470588235 | AU54: 2.286410962 | AV54: 1.456074942 | AW54: 1.532604179 | AX54: 2.286410962 | AY54: 2.286410962 | BA54: 2.286410962 | BB54: 1.456074942
W55: 0.25 | X55: 12.25 | Y55: 0.02941176471 | Z55: 1.5 | AA55: 1.5 | AB55: 0.04807825552 | AC55: 0.04632051643 | AD55: 2.287825029 | AE55: 58.55234743 | AF55: 58.55234743 | AG55: 0.118104798 | AH55: 0.1154053563 | AI55: 1.459548612 | AJ55: 30.67839745 | AK55: 30.67839745 | AL55: 0.2051604497 | AM55: 0.2024541685 | AN55: 1.53863831 | AO55: 22.03640322 | AP55: 22.03640322 | AT55: 1.5 | AU55: 2.287825029 | AV55: 1.459548612 | AW55: 1.53863831 | AX55: 2.287825029 | AY55: 2.287825029 | BA55: 2.287825029 | BB55: 1.459548612
W56: 0.25 | X56: 12 | Y56: 0.02941176471 | Z56: 1.529411765 | AA56: 1.529411765 | AB56: 0.04459550992 | AC56: 0.04290323598 | AD56: 2.289136661 | AE56: 63.18552148 | AF56: 63.18552148 | AG56: 0.1127371213 | AH56: 0.1101000931 | AI56: 1.46286441 | AJ56: 32.12654494 | AK56: 32.12654494 | AL56: 0.199763764 | AM56: 0.1970893311 | AN56: 1.544513714 | AO56: 22.6064306 | AP56: 22.6064306 | AT56: 1.529411765 | AU56: 2.289136661 | AV56: 1.46286441 | AW56: 1.544513714 | AX56: 2.289136661 | AY56: 2.289136661 | BA56: 2.289136661 | BB56: 1.46286441
W57: 0.25 | X57: 11.75 | Y57: 0.02941176471 | Z57: 1.558823529 | AA57: 1.558823529 | AB57: 0.04124369461 | AC57: 0.03961688581 | AD57: 2.290349711 | AE57: 68.3963475 | AF57: 68.3963475 | AG57: 0.1074942719 | AH57: 0.1049196575 | AI57: 1.466026006 | AJ57: 33.68266802 | AK57: 33.68266802 | AL57: 0.194430962 | AM57: 0.1917887462 | AN57: 1.550232272 | AO57: 23.20140163 | AP57: 23.20140163 | AT57: 1.558823529 | AU57: 2.290349711 | AV57: 1.466026006 | AW57: 1.550232272 | AX57: 2.290349711 | AY57: 2.290349711 | BA57: 2.290349711 | BB57: 1.466026006
W58: 0.25 | X58: 11.5 | Y58: 0.02941176471 | Z58: 1.588235294 | AA58: 1.588235294 | AB58: 0.03802280958 | AC58: 0.03646146593 | AD58: 2.291468029 | AE58: 74.28477989 | AF58: 74.28477989 | AG58: 0.1023762502 | AH58: 0.09986404986 | AI58: 1.469037072 | AJ58: 35.35769812 | AK58: 35.35769812 | AL58: 0.1891627707 | AM58: 0.1865531201 | AN58: 1.555795883 | AO58: 23.82272736 | AP58: 23.82272736 | AT58: 1.588235294 | AU58: 2.291468029 | AV58: 1.469037072 | AW58: 1.555795883 | AX58: 2.291468029 | AY58: 2.291468029 | BA58: 2.291468029 | BB58: 1.469037072
W59: 0.25 | X59: 11.25 | Y59: 0.02941176471 | Z59: 1.617647059 | AA59: 1.617647059 | AB59: 0.03493285484 | AC59: 0.03343697633 | AD59: 2.292495466 | AE59: 80.97336634 | AF59: 80.97336634 | AG59: 0.09738305657 | AH59: 0.09493327037 | AI59: 1.47190128 | AJ59: 37.16398589 | AK59: 37.16398589 | AL59: 0.1839598764 | AM59: 0.1813831193 | AN59: 1.561206468 | AO59: 24.47192191 | AP59: 24.47192191 | AT59: 1.617647059 | AU59: 2.292495466 | AV59: 1.47190128 | AW59: 1.561206468 | AX59: 2.292495466 | AY59: 2.292495466 | BA59: 2.292495466 | BB59: 1.47190128
W60: 0.25 | X60: 11 | Y60: 0.02941176471 | Z60: =IF(W60=0,0,(X60-$C$20)/-$C$15) -> 1.647058824 | AA60: 1.647058824 | AB60: 0.03197383039 | AC60: 0.03054341702 | AD60: 2.293435873 | AE60: 88.61366511 | AF60: 88.61366511 | AG60: 0.09251469128 | AH60: 0.09012731934 | AI60: 1.4746223 | AJ60: 39.11552818 | AK60: 39.11552818 | AL60: 0.1788229265 | AM60: 0.176279373 | AN60: 1.566465965 | AO60: 25.15061155 | AP60: 25.15061155 | AT60: 1.647058824 | AU60: 2.293435873 | AV60: 1.4746223 | AW60: 1.566465965 | AX60: 2.293435873 | AY60: 2.293435873 | BA60: 2.293435873 | BB60: 1.4746223
W61: 0.25 | X61: 10.75 | Y61: 0.02941176471 | Z61: 1.676470588 | AA61: 1.676470588 | AB61: 0.02914573622 | AC61: 0.02778078799 | AD61: 2.2942931 | AE61: 97.39489392 | AF61: 97.39489392 | AG61: 0.08777115458 | AH61: 0.08544619702 | AI61: 1.477203805 | AJ61: 41.22823856 | AK61: 41.22823856 | AL61: 0.1737525321 | AM61: 0.1712424747 | AN61: 1.571576334 | AO61: 25.86054466 | AP61: 25.86054466 | AT61: 1.676470588 | AU61: 2.2942931 | AV61: 1.477203805 | AW61: 1.571576334 | AX61: 2.2942931 | AY61: 2.2942931 | BA61: 2.2942931 | BB61: 1.477203805
W62: 0.25 | X62: 10.5 | Y62: 0.02941176471 | Z62: 1.705882353 | AA62: 1.705882353 | AB62: 0.02644857234 | AC62: 0.02514908925 | AD62: 2.295071 | AE62: 107.5557438 | AF62: 107.5557438 | AG62: 0.08315244668 | AH62: 0.0808899036 | AI62: 1.479649465 | AJ62: 43.52027111 | AK62: 43.52027111 | AL62: 0.1687492698 | AM62: 0.1662729844 | AN62: 1.576539548 | AO62: 26.60360291 | AP62: 26.60360291 | AT62: 1.705882353 | AU62: 2.295071 | AV62: 1.479649465 | AW62: 1.576539548 | AX62: 2.295071 | AY62: 2.295071 | BA62: 2.295071 | BB62: 1.479649465
W63: 0.25 | X63: 10.25 | Y63: 0.02941176471 | Z63: 1.735294118 | AA63: 1.735294118 | AB63: 0.02388233874 | AC63: 0.0226483208 | AD63: 2.295773421 | AE63: 119.4007539 | AF63: 119.4007539 | AG63: 0.07865856778 | AH63: 0.07645843925 | AI63: 1.481962952 | AJ63: 46.01240991 | AK63: 46.01240991 | AL63: 0.1638136835 | AM63: 0.1613714302 | AN63: 1.581357597 | AO63: 27.38181348 | AP63: 27.38181348 | AT63: 1.735294118 | AU63: 2.295773421 | AV63: 1.481962952 | AW63: 1.581357597 | AX63: 2.295773421 | AY63: 2.295773421 | BA63: 2.295773421 | BB63: 1.481962952
W64: 0.25 | X64: 10 | Y64: 0.02941176471 | Z64: 1.764705882 | AA64: 1.764705882 | AB64: 0.02144703543 | AC64: 0.02027848263 | AD64: 2.296404216 | AE64: 133.3233769 | AF64: 133.3233769 | AG64: 0.07428951803 | AH64: 0.07215180413 | AI64: 1.484147938 | AJ64: 48.72853984 | AK64: 48.72853984 | AL64: 0.158946286 | AM64: 0.1565383103 | AN64: 1.586032488 | AO64: 28.19736271 | AP64: 28.19736271 | AT64: 1.764705882 | AU64: 2.296404216 | AV64: 1.484147938 | AW64: 1.586032488 | AX64: 2.296404216 | AY64: 2.296404216 | BA64: 2.296404216 | BB64: 1.484147938
W65: 0.25 | X65: 9.75 | Y65: 0.02941176471 | Z65: 1.794117647 | AA65: 1.794117647 | AB65: 0.0191426624 | AC65: 0.01803957475 | AD65: 2.296967236 | AE65: 149.8390512 | AF65: 149.8390512 | AG65: 0.07004529757 | AH65: 0.06796999836 | AI65: 1.486208094 | AJ65: 51.69621878 | AK65: 51.69621878 | AL65: 0.1541475609 | AM65: 0.1517740942 | AN65: 1.59056624 | AO65: 29.05261128 | AP65: 29.05261128 | AT65: 1.794117647 | AU65: 2.296967236 | AV65: 1.486208094 | AW65: 1.59056624 | AX65: 2.296967236 | AY65: 2.296967236 | BA65: 2.296967236 | BB65: 1.486208094
W66: 0.25 | X66: 9.5 | Y66: 0.02941176471 | Z66: 1.823529412 | AA66: 1.823529412 | AB66: 0.01696921966 | AC66: 0.01593159715 | AD66: 2.297466331 | AE66: 169.6335681 | AF66: 169.6335681 | AG66: 0.06592590652 | AH66: 0.06391302207 | AI66: 1.488147091 | AJ66: 54.94737684 | AK66: 54.94737684 | AL66: 0.1494179645 | AM66: 0.1470792247 | AN66: 1.594960886 | AO66: 29.95011105 | AP66: 29.95011105 | AT66: 1.823529412 | AU66: 2.297466331 | AV66: 1.488147091 | AW66: 1.594960886 | AX66: 2.297466331 | AY66: 2.297466331 | BA66: 2.297466331 | BB66: 1.488147091
W67: 0.25 | X67: 9.25 | Y67: 0.02941176471 | Z67: 1.852941176 | AA67: 1.852941176 | AB67: 0.01492670721 | AC67: 0.01395454984 | AD67: 2.297905351 | AE67: 193.6353863 | AF67: 193.6353863 | AG67: 0.061931345 | AH67: 0.05998087534 | AI67: 1.489968601 | AJ67: 58.51917597 | AK67: 58.51917597 | AL67: 0.1447579264 | AM67: 0.1424541193 | AN67: 1.599218472 | AO67: 30.89262388 | AP67: 30.89262388 | AT67: =AA67 -> 1.852941176 | AU67: 2.297905351 | AV67: 1.489968601 | AW67: 1.599218472 | AX67: 2.297905351 | AY67: 2.297905351 | BA67: =IF($BA$1=TRUE,AU67,NA()) -> 2.297905351 | BB67: 1.489968601
W68: 0.25 | X68: 9 | Y68: 0.02941176471 | Z68: 1.882352941 | AA68: 1.882352941 | AB68: 0.01301512504 | AC68: 0.01210843281 | AD68: 2.298288149 | AE68: 223.1264684 | AF68: 223.1264684 | AG68: 0.05806161309 | AH68: 0.05617355826 | AI68: 1.491676296 | AJ68: 62.45507339 | AK68: 62.45507339 | AL68: 0.1401678519 | AM68: 0.1378991712 | AN68: 1.603341056 | AO68: 31.88314262 | AP68: 31.88314262 | AT68: 1.882352941 | AU68: 2.298288149 | AV68: 1.491676296 | AW68: 1.603341056 | AX68: =MAX(AU68:AW68) -> 2.298288149 | AY68: =MAX(AU68:AV68) -> 2.298288149 | BA68: 2.298288149 | BB68: =IF($BB$1=TRUE,AV68,NA()) -> 1.491676296 | BC68: =IF($BC$1=TRUE,AW68,NA()) ->  | BD68: =IF($BD$1=TRUE,AX68,NA()) ->  | BE68: =IF($BE$1=TRUE,AY68,NA()) -> 
W69: 0.25 | X69: 8.75 | Y69: 0.02941176471 | Z69: 1.911764706 | AA69: 1.911764706 | AB69: 0.01123447315 | AC69: 0.01039324607 | AD69: =(Y69*AB69)+AD68 -> 2.298618575 | AE69: 259.9170083 | AF69: =IF(AE69>0,AE69,0) -> 259.9170083 | AG69: 0.05431671087 | AH69: =IF(X69>$E$10,(((0.175*(X69-1.5)*SQRT(0.995-0.92)*(1-EXP(0.4395*(X69-45)))))^2)/2.3,0) -> 0.05249107091 | AI69: =(Y69*AG69)+AI68 -> 1.493273846 | AJ69: =IF(AG69=0,AJ68,($D$10-AI69)/AH69) -> 66.80614613 | AK69: =IF(AJ69>0,AJ69,0) -> 66.80614613 | AL69: =IF(AND(X69>$E$11,OR(X69>0,X69<0)),((0.1709*(((X69+X68)/2)+6.1)*SQRT(0.995-0.947)*(1-EXP(0.1723*(((X69+X68)/2)-41.2))))^2)/2.3,0) -> 0.1356481229 | AM69: 0.1334147511 | AN69: =(Y69*AL69)+AN68 -> 1.607330707 | AO69: 32.92491466 | AP69: =IF(AO69>0,AO69,0) -> 32.92491466 | AT69: 1.911764706 | AU69: 2.298618575 | AV69: 1.493273846 | AW69: 1.607330707 | AX69: 2.298618575 | AY69: 2.298618575 | BA69: 2.298618575 | BB69: 1.493273846
W70: 0.25 | X70: =IF(OR(X69=$C$22,X69=0),0,X69-W70) -> 8.5 | Y70: =IF(W70=0,0,$Z$6-$Z$5) -> 0.02941176471 | Z70: =IF(W70=0,0,(X70-$C$20)/-$C$15) -> 1.941176471 | AA70: =Y70+AA69 -> 1.941176471 | AB70: =IF(X70>$E$9,(0.00033*(((X69+X70)/2)-5.6)*((6.5-2.8)*(1-EXP(0.5*(6.5-9.8)))*(36.7-0.9324)*(1-EXP(0.42*(-5-0.9324)))))^2,0) -> 0.009584751556 | AC70: =IF(X70>$E$9,(0.00033*(X70-5.6)*((6.5-2.8)*(1-EXP(0.5*(6.5-9.8)))*(36.7-0.9324)*(1-EXP(0.42*(-5-0.9324)))))^2,(0.00033*(5.61-5.6)*((6.5-2.8)*(1-EXP(0.5*(6.5-9.8)))*(36.7-0.9324)*(1-EXP(0.42*(-5-0.9324)))))^2) -> 0.008808989614 | AD70: 2.298900479 | AE70: 306.6298905 | AF70: 306.6298905 | AG70: =IF(X70>$E$10,(((0.175*(((X70+X69)/2)-1.5)*SQRT(0.995-0.92)*(1-EXP(0.4395*(((X70+X69)/2)-45))))))^2)/2.3 -> 0.0506966384 | AH70: 0.04893341335 | AI70: 1.494764924 | AJ70: 71.63275227 | AK70: 71.63275227 | AL70: 0.1311990989 | AM70: =IF(X70>$E$11,((0.1709*(X70+6.1)*SQRT(0.995-0.947)*(1-EXP(0.1723*(X70-41.2))))^2)/2.3,0) -> 0.129001208 | AN70: 1.611189504 | AO70: =IF(AL70=0,AO69,($D$11-AN70)/AM70) -> 34.0214682 | AP70: 34.0214682 | AT70: 1.941176471 | AU70: 2.298900479 | AV70: 1.494764924 | AW70: 1.611189504 | AX70: 2.298900479 | AY70: 2.298900479 | BA70: 2.298900479 | BB70: 1.494764924
W71: =IF(OR(X70=$C$22,W70=0),0,0.25) -> 0.25 | X71: 8.25 | Y71: 0.02941176471 | Z71: 1.970588235 | AA71: 1.970588235 | AB71: 0.008065960243 | AC71: 0.007355663444 | AD71: 2.299137714 | AE71: =IF(AB71=0,AE70,($D$9-AD71)/AC71) -> 367.18133 | AF71: 367.18133 | AG71: 0.04720139576 | AH71: 0.04550058563 | AI71: 1.4961532 | AJ71: 77.00663082 | AK71: 77.00663082 | AL71: 0.126821119 | AM71: 0.124658871 | AN71: 1.614919537 | AO71: 35.1766419 | AP71: 35.1766419 | AT71: 1.970588235 | AU71: 2.299137714 | AV71: 1.4961532 | AW71: 1.614919537 | AX71: 2.299137714 | AY71: 2.299137714 | BA71: 2.299137714 | BB71: 1.4961532
W72: 0.25 | X72: 8 | Y72: 0.02941176471 | Z72: 2 | AA72: 2 | AB72: 0.006678099216 | AC72: 0.006033267559 | AD72: 2.299334128 | AE72: 447.6290576 | AF72: 447.6290576 | AG72: 0.04383098297 | AH72: 0.0421925878 | AI72: 1.497442347 | AJ72: 83.01357741 | AK72: 83.01357741 | AL72: 0.1225145022 | AM72: 0.1203880496 | AN72: 1.618522904 | AO72: 36.39461817 | AP72: 36.39461817 | AT72: 2 | AU72: 2.299334128 | AV72: 1.497442347 | AW72: 1.618522904 | AX72: 2.299334128 | AY72: 2.299334128 | BA72: 2.299334128 | BB72: 1.497442347
W73: 0.25 | X73: 7.75 | Y73: 0.02941176471 | Z73: 2.029411765 | AA73: 2.029411765 | AB73: 0.005421168474 | AC73: 0.004841801961 | AD73: 2.299493574 | AE73: 557.7482201 | AF73: 557.7482201 | AG73: 0.0405854001 | AH73: 0.03900941989 | AI73: 1.498636035 | AJ73: 89.75688371 | AK73: 89.75688371 | AL73: 0.1182795491 | AM73: 0.1161890355 | AN73: 1.622001714 | AO73: 37.67996065 | AP73: 37.67996065 | AT73: 2.029411765 | AU73: 2.299493574 | AV73: 1.498636035 | AW73: 1.622001714 | AX73: 2.299493574 | AY73: 2.299493574 | BA73: 2.299493574 | BB73: 1.498636035
W74: 0.25 | X74: 7.5 | Y74: 0.02941176471 | Z74: 2.058823529 | AA74: 2.058823529 | AB74: 0.004295168018 | AC74: 0.003781266648 | AD74: 2.299619903 | AE74: 714.1469642 | AF74: 714.1469642 | AG74: 0.03746464718 | AH74: 0.03595108196 | AI74: 1.499737936 | AJ74: 97.36180035 | AK74: 97.36180035 | AL74: 0.1141165426 | AM74: 0.1120621033 | AN74: 1.625358083 | AO74: 39.03765669 | AP74: 39.03765669 | AT74: 2.058823529 | AU74: 2.299619903 | AV74: 1.499737936 | AW74: 1.625358083 | AX74: 2.299619903 | AY74: 2.299619903 | BA74: 2.299619903 | BB74: 1.499737936
W75: 0.25 | X75: 7.25 | Y75: 0.02941176471 | Z75: 2.088235294 | AA75: 2.088235294 | AB75: 0.003300097848 | AC75: 0.00285166162 | AD75: 2.299716964 | AE75: 946.9156567 | AF75: 946.9156567 | AG75: 0.03446872423 | AH75: 0.03301757401 | AI75: 1.500751722 | AJ75: 105.9813867 | AK75: 105.9813867 | AL75: 0.1100257492 | AM75: 0.1080075113 | AN75: 1.628594135 | AO75: 40.47316535 | AP75: 40.47316535 | AT75: 2.088235294 | AU75: 2.299716964 | AV75: 1.500751722 | AW75: 1.628594135 | AX75: 2.299716964 | AY75: 2.299716964 | BA75: 2.299716964 | BB75: 1.500751722
W76: 0.25 | X76: 7 | Y76: 0.02941176471 | Z76: 2.117647059 | AA76: 2.117647059 | AB76: 0.002435957963 | AC76: 0.002052986878 | AD76: 2.29978861 | AE76: 1315.259936 | AF76: 1315.259936 | AG76: 0.03159763129 | AH76: 0.03020889608 | AI76: 1.501681064 | AJ76: 115.8042626 | AK76: 115.8042626 | AL76: 0.1060074195 | AM76: 0.1040255028 | AN76: 1.631712 | AO76: 41.99247186 | AP76: 41.99247186 | AT76: 2.117647059 | AU76: 2.29978861 | AV76: 1.501681064 | AW76: 1.631712 | AX76: 2.29978861 | AY76: 2.29978861 | BA76: 2.29978861 | BB76: 1.501681064
W77: 0.25 | X77: 6.75 | Y77: 0.02941176471 | Z77: 2.147058824 | AA77: 2.147058824 | AB77: 0.001702748364 | AC77: 0.001385242421 | AD77: 2.299838691 | AE77: 1949.233771 | AF77: 1949.233771 | AG77: 0.02885136838 | AH77: 0.0275250482 | AI77: 1.502529634 | AJ77: 127.0650042 | AK77: 127.0650042 | AL77: 0.1020617894 | AM77: 0.1001163065 | AN77: 1.634713817 | AO77: 43.60214969 | AP77: 43.60214969 | AT77: 2.147058824 | AU77: 2.299838691 | AV77: 1.502529634 | AW77: 1.634713817 | AX77: 2.299838691 | AY77: 2.299838691 | BA77: 2.299838691 | BB77: 1.502529634
W78: 0.25 | X78: 6.5 | Y78: 0.02941176471 | Z78: 2.176470588 | AA78: 2.176470588 | AB78: 0.00110046905 | AC78: 0.0008484282506 | AD78: 2.299871058 | AE78: 3182.507113 | AF78: 3182.507113 | AG78: 0.02622993553 | AH78: 0.02496603037 | AI78: 1.503301103 | AJ78: 140.058265 | AK78: 140.058265 | AL78: 0.0981890807 | AM78: 0.09628013763 | AN78: 1.637601732 | AO78: 45.30943117 | AP78: 45.30943117 | AT78: 2.176470588 | AU78: 2.299871058 | AV78: 1.503301103 | AW78: 1.637601732 | AX78: 2.299871058 | AY78: 2.299871058 | BA78: 2.299871058 | BB78: 1.503301103
W79: 0.25 | X79: 6.25 | Y79: 0.02941176471 | Z79: 2.205882353 | AA79: 2.205882353 | AB79: 0.0006291200222 | AC79: 0.0004425443653 | AD79: 2.299889561 | AE79: 6101.332771 | AF79: 6101.332771 | AG79: 0.02373333274 | AH79: 0.02253184262 | AI79: 1.503999142 | AJ79: 155.1582317 | AK79: 155.1582317 | AL79: 0.0943895022 | AM79: 0.09251719858 | AN79: 1.640377893 | AO79: 47.12228833 | AP79: 47.12228833 | AT79: 2.205882353 | AU79: 2.299889561 | AV79: 1.503999142 | AW79: 1.640377893 | AX79: 2.299889561 | AY79: 2.299889561 | BA79: 2.299889561 | BB79: 1.503999142
W80: 0.25 | X80: 6 | Y80: 0.02941176471 | Z80: 2.235294118 | AA80: 2.235294118 | AB80: 0.0002887012797 | AC80: 0.0001675907655 | AD80: 2.299898053 | AE80: 16111.28118 | AF80: 16111.28118 | AG80: 0.02136156003 | AH80: 0.02022248496 | AI80: 1.504627423 | AJ80: 172.8458488 | AK80: 172.8458488 | AL80: 0.09066325017 | AM80: 0.08882767969 | AN80: 1.64304446 | AO80: 49.04952551 | AP80: 49.04952551 | AT80: 2.235294118 | AU80: 2.299898053 | AV80: 1.504627423 | AW80: 1.64304446 | AX80: 2.299898053 | AY80: 2.299898053 | BA80: 2.299898053 | BB80: 1.504627423
W81: 0.25 | X81: 5.75 | Y81: 0.02941176471 | Z81: 2.264705882 | AA81: 2.264705882 | AB81: 7.921282278e-05 | AC81: 2.35674514e-05 | AD81: 2.299900382 | AE81: 114569.0118 | AF81: 114569.0118 | AG81: 0.01911461741 | AH81: 0.0180379574 | AI81: 1.505189618 | AJ81: 193.7475683 | AK81: 193.7475683 | AL81: 0.08701050913 | AM81: 0.08521175986 | AN81: 1.645603592 | AO81: 51.10088578 | AP81: =IF(AO81>0,AO81,0) -> 51.10088578 | AT81: 2.264705882 | AU81: 2.299900382 | AV81: 1.505189618 | AW81: 1.645603592 | AX81: 2.299900382 | AY81: 2.299900382 | BA81: 2.299900382 | BB81: 1.505189618
W82: 0.25 | X82: 5.5 | Y82: 0.02941176471 | Z82: =IF(W82=0,0,(X82-$C$20)/-$C$15) -> 2.294117647 | AA82: 2.294117647 | AB82: 0 | AC82: 1.047442285e-07 | AD82: 2.299900382 | AE82: 114569.0118 | AF82: 114569.0118 | AG82: 0.01699250491 | AH82: 0.01597825995 | AI82: 1.505689397 | AJ82: 218.6915605 | AK82: 218.6915605 | AL82: 0.08343145255 | AM82: 0.08166960726 | AN82: 1.648057458 | AO82: 53.28717362 | AP82: =IF(AO82>0,AO82,0) -> 53.28717362 | AT82: 2.294117647 | AU82: 2.299900382 | AV82: 1.505689397 | AW82: 1.648057458 | AX82: 2.299900382 | AY82: 2.299900382 | BA82: 2.299900382 | BB82: 1.505689397
W83: 0.25 | X83: 5.25 | Y83: 0.02941176471 | Z83: =IF(W83=0,0,(X83-$C$20)/-$C$15) -> 2.323529412 | AA83: 2.323529412 | AB83: 0 | AC83: 1.047442285e-07 | AD83: 2.299900382 | AE83: 114569.0118 | AF83: 114569.0118 | AG83: 0.01499522252 | AH83: 0.01404339262 | AI83: 1.506130433 | AJ83: 248.7909911 | AK83: 248.7909911 | AL83: 0.07992624344 | AM83: 0.07820137991 | AN83: 1.65040823 | AO83: 55.62039665 | AP83: 55.62039665 | AT83: 2.323529412 | AU83: 2.299900382 | AV83: 1.506130433 | AW83: 1.65040823 | AX83: 2.299900382 | AY83: 2.299900382 | BA83: 2.299900382 | BB83: 1.506130433
W84: 0.25 | X84: 5 | Y84: 0.02941176471 | Z84: 2.352941176 | AA84: 2.352941176 | AB84: 0 | AC84: 1.047442285e-07 | AD84: 2.299900382 | AE84: 114569.0118 | AF84: 114569.0118 | AG84: 0.01312277025 | AH84: 0.01223335541 | AI84: 1.506516397 | AJ84: 285.5703513 | AK84: 285.5703513 | AL84: 0.07649503496 | AM84: 0.07480722627 | AN84: 1.652658084 | AO84: 58.11393007 | AP84: 58.11393007 | AT84: 2.352941176 | AU84: 2.299900382 | AV84: 1.506516397 | AW84: 1.652658084 | AX84: 2.299900382 | AY84: 2.299900382 | BA84: 2.299900382 | BB84: 1.506516397
W85: =IF(OR(X84=$C$22,W84=0),0,0.25) -> 0 | X85: =IF(OR(X84=$C$22,X84=0),0,X84-W85) -> 0 | Y85: =IF(W85=0,0,$Z$6-$Z$5) -> 0 | Z85: =IF(W85=0,0,(X85-$C$20)/-$C$15) -> 0 | AA85: =Y85+AA84 -> 2.352941176 | AB85: =IF(X85>$E$9,(0.00033*(((X84+X85)/2)-5.6)*((6.5-2.8)*(1-EXP(0.5*(6.5-9.8)))*(36.7-0.9324)*(1-EXP(0.42*(-5-0.9324)))))^2,0) -> 0 | AC85: =IF(X85>$E$9,(0.00033*(X85-5.6)*((6.5-2.8)*(1-EXP(0.5*(6.5-9.8)))*(36.7-0.9324)*(1-EXP(0.42*(-5-0.9324)))))^2,(0.00033*(5.61-5.6)*((6.5-2.8)*(1-EXP(0.5*(6.5-9.8)))*(36.7-0.9324)*(1-EXP(0.42*(-5-0.9324)))))^2) -> 1.047442285e-07 | AD85: =(Y85*AB85)+AD84 -> 2.299900382 | AE85: =IF(AB85=0,AE84,($D$9-AD85)/AC85) -> 114569.0118 | AF85: =IF(AE85>0,AE85,0) -> 114569.0118 | AG85: 0 | AH85: =IF(X85>$E$10,(((0.175*(X85-1.5)*SQRT(0.995-0.92)*(1-EXP(0.4395*(X85-45)))))^2)/2.3,0) -> 0 | AI85: =(Y85*AG85)+AI84 -> 1.506516397 | AJ85: =IF(AG85=0,AJ84,($D$10-AI85)/AH85) -> 285.5703513 | AK85: =IF(AJ85>0,AJ85,0) -> 285.5703513 | AL85: =IF(AND(X85>$E$11,OR(X85>0,X85<0)),((0.1709*(((X85+X84)/2)+6.1)*SQRT(0.995-0.947)*(1-EXP(0.1723*(((X85+X84)/2)-41.2))))^2)/2.3,0) -> 0 | AM85: =IF(X85>$E$11,((0.1709*(X85+6.1)*SQRT(0.995-0.947)*(1-EXP(0.1723*(X85-41.2))))^2)/2.3,0) -> 0.02264327985 | AN85: =(Y85*AL85)+AN84 -> 1.652658084 | AO85: =IF(AL85=0,AO84,($D$11-AN85)/AM85) -> 58.11393007 | AP85: =IF(AO85>0,AO85,0) -> 58.11393007 | AT85: =AA85 -> 2.352941176 | AU85: =AD85 -> 2.299900382 | AV85: =AI85 -> 1.506516397 | AW85: =AN85 -> 1.652658084 | AX85: =MAX(AU85:AW85) -> 2.299900382 | AY85: =MAX(AU85:AV85) -> 2.299900382 | BA85: =IF($BA$1=TRUE,AU85,NA()) -> 2.299900382 | BB85: =IF($BB$1=TRUE,AV85,NA()) -> 1.506516397 | BC85: =IF($BC$1=TRUE,AW85,NA()) ->  | BD85: =IF($BD$1=TRUE,AX85,NA()) ->  | BE85: =IF($BE$1=TRUE,AY85,NA()) -> 
W86: 0 | X86: 0 | Y86: 0 | Z86: 0 | AA86: 2.352941176 | AB86: 0 | AC86: 1.047442285e-07 | AD86: 2.299900382 | AE86: 114569.0118 | AF86: 114569.0118 | AG86: 0 | AH86: 0 | AI86: 1.506516397 | AJ86: 285.5703513 | AK86: 285.5703513 | AL86: 0 | AM86: 0.02264327985 | AN86: 1.652658084 | AO86: 58.11393007 | AP86: 58.11393007 | AT86: 2.352941176 | AU86: 2.299900382 | AV86: 1.506516397 | AW86: 1.652658084 | AX86: 2.299900382 | AY86: 2.299900382 | BA86: 2.299900382 | BB86: 1.506516397
W87: 0 | X87: 0 | Y87: 0 | Z87: 0 | AA87: 2.352941176 | AB87: 0 | AC87: 1.047442285e-07 | AD87: 2.299900382 | AE87: 114569.0118 | AF87: 114569.0118 | AG87: 0 | AH87: 0 | AI87: 1.506516397 | AJ87: 285.5703513 | AK87: 285.5703513 | AL87: 0 | AM87: 0.02264327985 | AN87: 1.652658084 | AO87: 58.11393007 | AP87: 58.11393007 | AT87: 2.352941176 | AU87: 2.299900382 | AV87: 1.506516397 | AW87: 1.652658084 | AX87: 2.299900382 | AY87: 2.299900382 | BA87: 2.299900382 | BB87: 1.506516397
W88: 0 | X88: 0 | Y88: 0 | Z88: 0 | AA88: 2.352941176 | AB88: 0 | AC88: 1.047442285e-07 | AD88: 2.299900382 | AE88: 114569.0118 | AF88: 114569.0118 | AG88: 0 | AH88: 0 | AI88: 1.506516397 | AJ88: 285.5703513 | AK88: 285.5703513 | AL88: 0 | AM88: 0.02264327985 | AN88: 1.652658084 | AO88: 58.11393007 | AP88: 58.11393007 | AT88: 2.352941176 | AU88: 2.299900382 | AV88: 1.506516397 | AW88: 1.652658084 | AX88: 2.299900382 | AY88: 2.299900382 | BA88: 2.299900382 | BB88: 1.506516397
W89: 0 | X89: 0 | Y89: 0 | Z89: 0 | AA89: 2.352941176 | AB89: 0 | AC89: 1.047442285e-07 | AD89: 2.299900382 | AE89: 114569.0118 | AF89: 114569.0118 | AG89: 0 | AH89: 0 | AI89: 1.506516397 | AJ89: 285.5703513 | AK89: 285.5703513 | AL89: 0 | AM89: 0.02264327985 | AN89: 1.652658084 | AO89: 58.11393007 | AP89: 58.11393007 | AT89: 2.352941176 | AU89: 2.299900382 | AV89: 1.506516397 | AW89: 1.652658084 | AX89: 2.299900382 | AY89: 2.299900382 | BA89: 2.299900382 | BB89: 1.506516397
W90: 0 | X90: 0 | Y90: 0 | Z90: 0 | AA90: 2.352941176 | AB90: 0 | AC90: 1.047442285e-07 | AD90: 2.299900382 | AE90: 114569.0118 | AF90: 114569.0118 | AG90: 0 | AH90: 0 | AI90: 1.506516397 | AJ90: 285.5703513 | AK90: 285.5703513 | AL90: 0 | AM90: 0.02264327985 | AN90: 1.652658084 | AO90: 58.11393007 | AP90: 58.11393007 | AT90: 2.352941176 | AU90: 2.299900382 | AV90: 1.506516397 | AW90: 1.652658084 | AX90: 2.299900382 | AY90: 2.299900382 | BA90: 2.299900382 | BB90: 1.506516397
W91: 0 | X91: 0 | Y91: 0 | Z91: 0 | AA91: 2.352941176 | AB91: 0 | AC91: 1.047442285e-07 | AD91: 2.299900382 | AE91: 114569.0118 | AF91: 114569.0118 | AG91: 0 | AH91: 0 | AI91: 1.506516397 | AJ91: 285.5703513 | AK91: 285.5703513 | AL91: 0 | AM91: 0.02264327985 | AN91: 1.652658084 | AO91: 58.11393007 | AP91: 58.11393007 | AT91: 2.352941176 | AU91: 2.299900382 | AV91: 1.506516397 | AW91: 1.652658084 | AX91: 2.299900382 | AY91: 2.299900382 | BA91: 2.299900382 | BB91: 1.506516397
W92: 0 | X92: 0 | Y92: 0 | Z92: 0 | AA92: 2.352941176 | AB92: 0 | AC92: 1.047442285e-07 | AD92: 2.299900382 | AE92: 114569.0118 | AF92: 114569.0118 | AG92: 0 | AH92: 0 | AI92: 1.506516397 | AJ92: 285.5703513 | AK92: 285.5703513 | AL92: 0 | AM92: 0.02264327985 | AN92: 1.652658084 | AO92: 58.11393007 | AP92: 58.11393007 | AT92: 2.352941176 | AU92: 2.299900382 | AV92: 1.506516397 | AW92: 1.652658084 | AX92: 2.299900382 | AY92: 2.299900382 | BA92: 2.299900382 | BB92: 1.506516397
W93: 0 | X93: 0 | Y93: 0 | Z93: 0 | AA93: 2.352941176 | AB93: 0 | AC93: 1.047442285e-07 | AD93: 2.299900382 | AE93: 114569.0118 | AF93: 114569.0118 | AG93: 0 | AH93: 0 | AI93: 1.506516397 | AJ93: 285.5703513 | AK93: 285.5703513 | AL93: 0 | AM93: 0.02264327985 | AN93: 1.652658084 | AO93: 58.11393007 | AP93: 58.11393007 | AT93: 2.352941176 | AU93: 2.299900382 | AV93: 1.506516397 | AW93: 1.652658084 | AX93: 2.299900382 | AY93: 2.299900382 | BA93: 2.299900382 | BB93: 1.506516397
W94: 0 | X94: 0 | Y94: 0 | Z94: 0 | AA94: 2.352941176 | AB94: 0 | AC94: 1.047442285e-07 | AD94: 2.299900382 | AE94: 114569.0118 | AF94: 114569.0118 | AG94: 0 | AH94: 0 | AI94: 1.506516397 | AJ94: 285.5703513 | AK94: 285.5703513 | AL94: 0 | AM94: 0.02264327985 | AN94: 1.652658084 | AO94: 58.11393007 | AP94: 58.11393007 | AT94: 2.352941176 | AU94: 2.299900382 | AV94: 1.506516397 | AW94: 1.652658084 | AX94: 2.299900382 | AY94: 2.299900382 | BA94: 2.299900382 | BB94: 1.506516397
W95: 0 | X95: 0 | Y95: 0 | Z95: 0 | AA95: 2.352941176 | AB95: 0 | AC95: 1.047442285e-07 | AD95: 2.299900382 | AE95: 114569.0118 | AF95: 114569.0118 | AG95: 0 | AH95: 0 | AI95: 1.506516397 | AJ95: 285.5703513 | AK95: 285.5703513 | AL95: 0 | AM95: 0.02264327985 | AN95: 1.652658084 | AO95: 58.11393007 | AP95: 58.11393007 | AT95: 2.352941176 | AU95: 2.299900382 | AV95: 1.506516397 | AW95: 1.652658084 | AX95: 2.299900382 | AY95: 2.299900382 | BA95: 2.299900382 | BB95: 1.506516397
W96: 0 | X96: 0 | Y96: 0 | Z96: 0 | AA96: 2.352941176 | AB96: 0 | AC96: 1.047442285e-07 | AD96: 2.299900382 | AE96: 114569.0118 | AF96: 114569.0118 | AG96: 0 | AH96: 0 | AI96: 1.506516397 | AJ96: 285.5703513 | AK96: 285.5703513 | AL96: 0 | AM96: 0.02264327985 | AN96: 1.652658084 | AO96: 58.11393007 | AP96: 58.11393007 | AT96: 2.352941176 | AU96: 2.299900382 | AV96: 1.506516397 | AW96: 1.652658084 | AX96: 2.299900382 | AY96: 2.299900382 | BA96: 2.299900382 | BB96: 1.506516397
W97: 0 | X97: 0 | Y97: 0 | Z97: 0 | AA97: 2.352941176 | AB97: 0 | AC97: 1.047442285e-07 | AD97: 2.299900382 | AE97: 114569.0118 | AF97: 114569.0118 | AG97: 0 | AH97: 0 | AI97: 1.506516397 | AJ97: 285.5703513 | AK97: 285.5703513 | AL97: 0 | AM97: 0.02264327985 | AN97: 1.652658084 | AO97: 58.11393007 | AP97: 58.11393007 | AT97: 2.352941176 | AU97: 2.299900382 | AV97: 1.506516397 | AW97: 1.652658084 | AX97: 2.299900382 | AY97: 2.299900382 | BA97: 2.299900382 | BB97: 1.506516397
W98: 0 | X98: 0 | Y98: 0 | Z98: 0 | AA98: 2.352941176 | AB98: 0 | AC98: 1.047442285e-07 | AD98: 2.299900382 | AE98: 114569.0118 | AF98: 114569.0118 | AG98: 0 | AH98: 0 | AI98: 1.506516397 | AJ98: 285.5703513 | AK98: 285.5703513 | AL98: 0 | AM98: 0.02264327985 | AN98: 1.652658084 | AO98: 58.11393007 | AP98: 58.11393007 | AT98: 2.352941176 | AU98: 2.299900382 | AV98: 1.506516397 | AW98: 1.652658084 | AX98: 2.299900382 | AY98: 2.299900382 | BA98: 2.299900382 | BB98: 1.506516397
W99: 0 | X99: 0 | Y99: 0 | Z99: 0 | AA99: 2.352941176 | AB99: 0 | AC99: 1.047442285e-07 | AD99: 2.299900382 | AE99: 114569.0118 | AF99: 114569.0118 | AG99: 0 | AH99: 0 | AI99: 1.506516397 | AJ99: 285.5703513 | AK99: 285.5703513 | AL99: 0 | AM99: 0.02264327985 | AN99: 1.652658084 | AO99: 58.11393007 | AP99: 58.11393007 | AT99: 2.352941176 | AU99: 2.299900382 | AV99: 1.506516397 | AW99: 1.652658084 | AX99: 2.299900382 | AY99: 2.299900382 | BA99: 2.299900382 | BB99: 1.506516397
W100: 0 | X100: 0 | Y100: 0 | Z100: 0 | AA100: 2.352941176 | AB100: 0 | AC100: 1.047442285e-07 | AD100: 2.299900382 | AE100: 114569.0118 | AF100: 114569.0118 | AG100: 0 | AH100: 0 | AI100: 1.506516397 | AJ100: 285.5703513 | AK100: 285.5703513 | AL100: 0 | AM100: 0.02264327985 | AN100: 1.652658084 | AO100: 58.11393007 | AP100: 58.11393007 | AT100: 2.352941176 | AU100: 2.299900382 | AV100: 1.506516397 | AW100: 1.652658084 | AX100: 2.299900382 | AY100: 2.299900382 | BA100: 2.299900382 | BB100: 1.506516397
W101: 0 | X101: 0 | Y101: 0 | Z101: 0 | AA101: 2.352941176 | AB101: 0 | AC101: 1.047442285e-07 | AD101: 2.299900382 | AE101: 114569.0118 | AF101: 114569.0118 | AG101: 0 | AH101: 0 | AI101: 1.506516397 | AJ101: 285.5703513 | AK101: 285.5703513 | AL101: 0 | AM101: 0.02264327985 | AN101: 1.652658084 | AO101: 58.11393007 | AP101: 58.11393007 | AT101: 2.352941176 | AU101: 2.299900382 | AV101: 1.506516397 | AW101: 1.652658084 | AX101: 2.299900382 | AY101: 2.299900382 | BA101: 2.299900382 | BB101: 1.506516397
W102: 0 | X102: 0 | Y102: 0 | Z102: 0 | AA102: 2.352941176 | AB102: 0 | AC102: 1.047442285e-07 | AD102: 2.299900382 | AE102: 114569.0118 | AF102: 114569.0118 | AG102: 0 | AH102: 0 | AI102: 1.506516397 | AJ102: 285.5703513 | AK102: 285.5703513 | AL102: 0 | AM102: 0.02264327985 | AN102: 1.652658084 | AO102: 58.11393007 | AP102: 58.11393007 | AT102: 2.352941176 | AU102: 2.299900382 | AV102: 1.506516397 | AW102: 1.652658084 | AX102: 2.299900382 | AY102: 2.299900382 | BA102: 2.299900382 | BB102: 1.506516397
W103: 0 | X103: 0 | Y103: 0 | Z103: 0 | AA103: 2.352941176 | AB103: 0 | AC103: 1.047442285e-07 | AD103: 2.299900382 | AE103: 114569.0118 | AF103: 114569.0118 | AG103: 0 | AH103: 0 | AI103: 1.506516397 | AJ103: 285.5703513 | AK103: 285.5703513 | AL103: 0 | AM103: 0.02264327985 | AN103: 1.652658084 | AO103: 58.11393007 | AP103: 58.11393007 | AT103: 2.352941176 | AU103: 2.299900382 | AV103: 1.506516397 | AW103: 1.652658084 | AX103: 2.299900382 | AY103: 2.299900382 | BA103: 2.299900382 | BB103: 1.506516397
W104: 0 | X104: 0 | Y104: 0 | Z104: 0 | AA104: 2.352941176 | AB104: 0 | AC104: 1.047442285e-07 | AD104: 2.299900382 | AE104: 114569.0118 | AF104: 114569.0118 | AG104: 0 | AH104: 0 | AI104: 1.506516397 | AJ104: 285.5703513 | AK104: 285.5703513 | AL104: 0 | AM104: 0.02264327985 | AN104: 1.652658084 | AO104: 58.11393007 | AP104: 58.11393007 | AT104: 2.352941176 | AU104: 2.299900382 | AV104: 1.506516397 | AW104: 1.652658084 | AX104: 2.299900382 | AY104: 2.299900382 | BA104: 2.299900382 | BB104: 1.506516397
W105: 0 | X105: 0 | Y105: 0 | Z105: 0 | AA105: 2.352941176 | AB105: 0 | AC105: 1.047442285e-07 | AD105: 2.299900382 | AE105: 114569.0118 | AF105: 114569.0118 | AG105: 0 | AH105: 0 | AI105: 1.506516397 | AJ105: 285.5703513 | AK105: 285.5703513 | AL105: 0 | AM105: 0.02264327985 | AN105: 1.652658084 | AO105: 58.11393007 | AP105: 58.11393007 | AT105: 2.352941176 | AU105: 2.299900382 | AV105: 1.506516397 | AW105: 1.652658084 | AX105: 2.299900382 | AY105: 2.299900382 | BA105: 2.299900382 | BB105: 1.506516397
W106: 0 | X106: 0 | Y106: 0 | Z106: 0 | AA106: 2.352941176 | AB106: 0 | AC106: 1.047442285e-07 | AD106: 2.299900382 | AE106: 114569.0118 | AF106: 114569.0118 | AG106: 0 | AH106: 0 | AI106: 1.506516397 | AJ106: 285.5703513 | AK106: 285.5703513 | AL106: 0 | AM106: 0.02264327985 | AN106: 1.652658084 | AO106: 58.11393007 | AP106: 58.11393007 | AT106: 2.352941176 | AU106: 2.299900382 | AV106: 1.506516397 | AW106: 1.652658084 | AX106: 2.299900382 | AY106: 2.299900382 | BA106: 2.299900382 | BB106: 1.506516397
W107: 0 | X107: 0 | Y107: 0 | Z107: 0 | AA107: 2.352941176 | AB107: 0 | AC107: 1.047442285e-07 | AD107: 2.299900382 | AE107: 114569.0118 | AF107: 114569.0118 | AG107: 0 | AH107: 0 | AI107: 1.506516397 | AJ107: 285.5703513 | AK107: 285.5703513 | AL107: 0 | AM107: 0.02264327985 | AN107: 1.652658084 | AO107: 58.11393007 | AP107: 58.11393007 | AT107: 2.352941176 | AU107: 2.299900382 | AV107: 1.506516397 | AW107: 1.652658084 | AX107: 2.299900382 | AY107: 2.299900382 | BA107: 2.299900382 | BB107: 1.506516397
W108: 0 | X108: 0 | Y108: 0 | Z108: 0 | AA108: 2.352941176 | AB108: 0 | AC108: 1.047442285e-07 | AD108: 2.299900382 | AE108: 114569.0118 | AF108: 114569.0118 | AG108: 0 | AH108: 0 | AI108: 1.506516397 | AJ108: 285.5703513 | AK108: 285.5703513 | AL108: 0 | AM108: 0.02264327985 | AN108: 1.652658084 | AO108: 58.11393007 | AP108: 58.11393007 | AT108: 2.352941176 | AU108: 2.299900382 | AV108: 1.506516397 | AW108: 1.652658084 | AX108: 2.299900382 | AY108: 2.299900382 | BA108: 2.299900382 | BB108: 1.506516397
W109: 0 | X109: 0 | Y109: 0 | Z109: 0 | AA109: 2.352941176 | AB109: 0 | AC109: 1.047442285e-07 | AD109: 2.299900382 | AE109: 114569.0118 | AF109: 114569.0118 | AG109: 0 | AH109: 0 | AI109: 1.506516397 | AJ109: 285.5703513 | AK109: 285.5703513 | AL109: 0 | AM109: 0.02264327985 | AN109: 1.652658084 | AO109: 58.11393007 | AP109: 58.11393007 | AT109: 2.352941176 | AU109: 2.299900382 | AV109: 1.506516397 | AW109: 1.652658084 | AX109: 2.299900382 | AY109: 2.299900382 | BA109: 2.299900382 | BB109: 1.506516397
W110: 0 | X110: 0 | Y110: 0 | Z110: 0 | AA110: 2.352941176 | AB110: 0 | AC110: 1.047442285e-07 | AD110: 2.299900382 | AE110: 114569.0118 | AF110: 114569.0118 | AG110: 0 | AH110: 0 | AI110: 1.506516397 | AJ110: 285.5703513 | AK110: 285.5703513 | AL110: 0 | AM110: 0.02264327985 | AN110: 1.652658084 | AO110: 58.11393007 | AP110: 58.11393007 | AT110: 2.352941176 | AU110: 2.299900382 | AV110: 1.506516397 | AW110: 1.652658084 | AX110: 2.299900382 | AY110: 2.299900382 | BA110: 2.299900382 | BB110: 1.506516397
W111: 0 | X111: 0 | Y111: 0 | Z111: 0 | AA111: 2.352941176 | AB111: 0 | AC111: 1.047442285e-07 | AD111: 2.299900382 | AE111: 114569.0118 | AF111: 114569.0118 | AG111: 0 | AH111: 0 | AI111: 1.506516397 | AJ111: 285.5703513 | AK111: 285.5703513 | AL111: 0 | AM111: 0.02264327985 | AN111: 1.652658084 | AO111: 58.11393007 | AP111: 58.11393007 | AT111: 2.352941176 | AU111: 2.299900382 | AV111: 1.506516397 | AW111: 1.652658084 | AX111: 2.299900382 | AY111: 2.299900382 | BA111: 2.299900382 | BB111: 1.506516397
W112: 0 | X112: 0 | Y112: 0 | Z112: 0 | AA112: 2.352941176 | AB112: 0 | AC112: 1.047442285e-07 | AD112: 2.299900382 | AE112: 114569.0118 | AF112: 114569.0118 | AG112: 0 | AH112: 0 | AI112: 1.506516397 | AJ112: 285.5703513 | AK112: 285.5703513 | AL112: 0 | AM112: 0.02264327985 | AN112: 1.652658084 | AO112: 58.11393007 | AP112: 58.11393007 | AT112: 2.352941176 | AU112: 2.299900382 | AV112: 1.506516397 | AW112: 1.652658084 | AX112: 2.299900382 | AY112: 2.299900382 | BA112: 2.299900382 | BB112: 1.506516397
W113: 0 | X113: 0 | Y113: 0 | Z113: 0 | AA113: 2.352941176 | AB113: 0 | AC113: 1.047442285e-07 | AD113: 2.299900382 | AE113: 114569.0118 | AF113: 114569.0118 | AG113: 0 | AH113: 0 | AI113: 1.506516397 | AJ113: 285.5703513 | AK113: 285.5703513 | AL113: 0 | AM113: 0.02264327985 | AN113: 1.652658084 | AO113: 58.11393007 | AP113: 58.11393007 | AT113: 2.352941176 | AU113: 2.299900382 | AV113: 1.506516397 | AW113: 1.652658084 | AX113: 2.299900382 | AY113: 2.299900382 | BA113: 2.299900382 | BB113: 1.506516397
W114: 0 | X114: 0 | Y114: 0 | Z114: 0 | AA114: 2.352941176 | AB114: 0 | AC114: 1.047442285e-07 | AD114: 2.299900382 | AE114: 114569.0118 | AF114: 114569.0118 | AG114: 0 | AH114: 0 | AI114: 1.506516397 | AJ114: 285.5703513 | AK114: 285.5703513 | AL114: 0 | AM114: 0.02264327985 | AN114: 1.652658084 | AO114: 58.11393007 | AP114: 58.11393007 | AT114: 2.352941176 | AU114: 2.299900382 | AV114: 1.506516397 | AW114: 1.652658084 | AX114: 2.299900382 | AY114: 2.299900382 | BA114: 2.299900382 | BB114: 1.506516397
W115: 0 | X115: 0 | Y115: 0 | Z115: 0 | AA115: 2.352941176 | AB115: 0 | AC115: 1.047442285e-07 | AD115: 2.299900382 | AE115: 114569.0118 | AF115: 114569.0118 | AG115: 0 | AH115: 0 | AI115: 1.506516397 | AJ115: 285.5703513 | AK115: 285.5703513 | AL115: 0 | AM115: 0.02264327985 | AN115: 1.652658084 | AO115: 58.11393007 | AP115: 58.11393007 | AT115: 2.352941176 | AU115: 2.299900382 | AV115: 1.506516397 | AW115: 1.652658084 | AX115: 2.299900382 | AY115: 2.299900382 | BA115: 2.299900382 | BB115: 1.506516397
W116: 0 | X116: 0 | Y116: 0 | Z116: 0 | AA116: 2.352941176 | AB116: 0 | AC116: 1.047442285e-07 | AD116: 2.299900382 | AE116: 114569.0118 | AF116: 114569.0118 | AG116: 0 | AH116: 0 | AI116: 1.506516397 | AJ116: 285.5703513 | AK116: 285.5703513 | AL116: 0 | AM116: 0.02264327985 | AN116: 1.652658084 | AO116: 58.11393007 | AP116: 58.11393007 | AT116: 2.352941176 | AU116: 2.299900382 | AV116: 1.506516397 | AW116: 1.652658084 | AX116: 2.299900382 | AY116: 2.299900382 | BA116: 2.299900382 | BB116: 1.506516397
W117: 0 | X117: 0 | Y117: 0 | Z117: 0 | AA117: 2.352941176 | AB117: 0 | AC117: 1.047442285e-07 | AD117: 2.299900382 | AE117: 114569.0118 | AF117: 114569.0118 | AG117: 0 | AH117: 0 | AI117: 1.506516397 | AJ117: 285.5703513 | AK117: 285.5703513 | AL117: 0 | AM117: 0.02264327985 | AN117: 1.652658084 | AO117: 58.11393007 | AP117: 58.11393007 | AT117: 2.352941176 | AU117: 2.299900382 | AV117: 1.506516397 | AW117: 1.652658084 | AX117: 2.299900382 | AY117: 2.299900382 | BA117: 2.299900382 | BB117: 1.506516397
W118: 0 | X118: 0 | Y118: 0 | Z118: 0 | AA118: 2.352941176 | AB118: 0 | AC118: 1.047442285e-07 | AD118: 2.299900382 | AE118: 114569.0118 | AF118: 114569.0118 | AG118: 0 | AH118: 0 | AI118: 1.506516397 | AJ118: 285.5703513 | AK118: 285.5703513 | AL118: 0 | AM118: 0.02264327985 | AN118: 1.652658084 | AO118: 58.11393007 | AP118: 58.11393007 | AT118: 2.352941176 | AU118: 2.299900382 | AV118: 1.506516397 | AW118: 1.652658084 | AX118: 2.299900382 | AY118: 2.299900382 | BA118: 2.299900382 | BB118: 1.506516397
W119: 0 | X119: 0 | Y119: 0 | Z119: 0 | AA119: 2.352941176 | AB119: 0 | AC119: 1.047442285e-07 | AD119: 2.299900382 | AE119: 114569.0118 | AF119: 114569.0118 | AG119: 0 | AH119: 0 | AI119: 1.506516397 | AJ119: 285.5703513 | AK119: 285.5703513 | AL119: 0 | AM119: 0.02264327985 | AN119: 1.652658084 | AO119: 58.11393007 | AP119: 58.11393007 | AT119: 2.352941176 | AU119: 2.299900382 | AV119: 1.506516397 | AW119: 1.652658084 | AX119: 2.299900382 | AY119: 2.299900382 | BA119: 2.299900382 | BB119: 1.506516397
W120: 0 | X120: 0 | Y120: 0 | Z120: 0 | AA120: 2.352941176 | AB120: 0 | AC120: 1.047442285e-07 | AD120: 2.299900382 | AE120: 114569.0118 | AF120: 114569.0118 | AG120: 0 | AH120: 0 | AI120: 1.506516397 | AJ120: 285.5703513 | AK120: 285.5703513 | AL120: 0 | AM120: 0.02264327985 | AN120: 1.652658084 | AO120: 58.11393007 | AP120: 58.11393007 | AT120: 2.352941176 | AU120: 2.299900382 | AV120: 1.506516397 | AW120: 1.652658084 | AX120: 2.299900382 | AY120: 2.299900382 | BA120: 2.299900382 | BB120: 1.506516397
W121: 0 | X121: 0 | Y121: 0 | Z121: 0 | AA121: 2.352941176 | AB121: 0 | AC121: 1.047442285e-07 | AD121: 2.299900382 | AE121: 114569.0118 | AF121: 114569.0118 | AG121: 0 | AH121: 0 | AI121: 1.506516397 | AJ121: 285.5703513 | AK121: 285.5703513 | AL121: 0 | AM121: 0.02264327985 | AN121: 1.652658084 | AO121: 58.11393007 | AP121: 58.11393007 | AT121: 2.352941176 | AU121: 2.299900382 | AV121: 1.506516397 | AW121: 1.652658084 | AX121: 2.299900382 | AY121: 2.299900382 | BA121: 2.299900382 | BB121: 1.506516397
W122: 0 | X122: 0 | Y122: 0 | Z122: 0 | AA122: 2.352941176 | AB122: 0 | AC122: 1.047442285e-07 | AD122: 2.299900382 | AE122: 114569.0118 | AF122: 114569.0118 | AG122: 0 | AH122: 0 | AI122: 1.506516397 | AJ122: 285.5703513 | AK122: 285.5703513 | AL122: 0 | AM122: 0.02264327985 | AN122: 1.652658084 | AO122: 58.11393007 | AP122: 58.11393007 | AT122: 2.352941176 | AU122: 2.299900382 | AV122: 1.506516397 | AW122: 1.652658084 | AX122: 2.299900382 | AY122: 2.299900382 | BA122: 2.299900382 | BB122: 1.506516397
W123: 0 | X123: 0 | Y123: 0 | Z123: 0 | AA123: 2.352941176 | AB123: 0 | AC123: 1.047442285e-07 | AD123: 2.299900382 | AE123: 114569.0118 | AF123: 114569.0118 | AG123: 0 | AH123: 0 | AI123: 1.506516397 | AJ123: 285.5703513 | AK123: 285.5703513 | AL123: 0 | AM123: 0.02264327985 | AN123: 1.652658084 | AO123: 58.11393007 | AP123: 58.11393007 | AT123: 2.352941176 | AU123: 2.299900382 | AV123: 1.506516397 | AW123: 1.652658084 | AX123: 2.299900382 | AY123: 2.299900382 | BA123: 2.299900382 | BB123: 1.506516397
W124: 0 | X124: 0 | Y124: 0 | Z124: 0 | AA124: 2.352941176 | AB124: 0 | AC124: 1.047442285e-07 | AD124: =(Y124*AB124)+AD123 -> 2.299900382 | AE124: 114569.0118 | AF124: 114569.0118 | AG124: 0 | AH124: 0 | AI124: =(Y124*AG124)+AI123 -> 1.506516397 | AJ124: 285.5703513 | AK124: 285.5703513 | AL124: 0 | AM124: 0.02264327985 | AN124: =(Y124*AL124)+AN123 -> 1.652658084 | AO124: 58.11393007 | AP124: 58.11393007 | AT124: 2.352941176 | AU124: 2.299900382 | AV124: 1.506516397 | AW124: 1.652658084 | AX124: 2.299900382 | AY124: 2.299900382 | BA124: 2.299900382 | BB124: 1.506516397
V125: storage1 | X125: =C23 -> 5 | Y125: =Z125 -> 9.647058824 | Z125: =D23 -> 9.647058824 | AA125: =Y125+AA124 -> 12 | AB125: =IF(X125>$E$9,(0.00033*(((X125+X125)/2)-5.6)*((6.5-2.8)*(1-EXP(0.5*(6.5-9.8)))*(36.7-0.9324)*(1-EXP(0.42*(-5-0.9324)))))^2,0) -> 0 | AC125: 1.047442285e-07 | AD125: =(Y125*AC125)+AD124 -> 2.299901393 | AE125: 114569.0118 | AF125: 114569.0118 | AG125: 0.0009986412889 | AH125: 0.01223335541 | AI125: =(Y125*AH125)+AI124 -> 1.624532296 | AJ125: 275.9232925 | AK125: 275.9232925 | AL125: =IF(AND(X125>$E$11,OR(X125>0,X125<0)),((0.1709*(((X125+X125)/2)+6.1)*SQRT(0.995-0.947)*(1-EXP(0.1723*(((X125+X125)/2)-41.2))))^2)/2.3,0) -> 0.07480722627 | AM125: 0.07480722627 | AN125: =(Y125*AM125)+AN124 -> 2.374327797 | AO125: 48.46687124 | AP125: 48.46687124 | AT125: 12 | AU125: =AD125 -> 2.299901393 | AV125: =AI125 -> 1.624532296 | AW125: =AN125 -> 2.374327797 | AX125: 2.374327797 | AY125: 2.299901393 | BA125: 2.299901393 | BB125: 1.624532296
X126: =C24 -> 15 | Y126: =Z126 -> 0 | Z126: =D25 -> 0 | AA126: 12 | AB126: =IF(X126>$E$9,(0.00033*(((X126+X126)/2)-5.6)*((6.5-2.8)*(1-EXP(0.5*(6.5-9.8)))*(36.7-0.9324)*(1-EXP(0.42*(-5-0.9324)))))^2,0) -> 0.09255200027 | AC126: 0.09255200027 | AD126: =(Y126*AC126)+AD125 -> 2.299901393 | AE126: 29.17385469 | AF126: 29.17385469 | AG126: =IF(X126>$E$10,(((0.175*(((X126+X125)/2)-1.5)*SQRT(0.995-0.92)*(1-EXP(0.4395*(((X126+X125)/2)-45))))))^2)/2.3 -> 0.07215180413 | AH126: 0.1820016939 | AI126: =(Y126*AH126)+AI125 -> 1.624532296 | AJ126: 18.54635323 | AK126: 18.54635323 | AL126: =IF(AND(X126>$E$11,OR(X126>0,X126<0)),((0.1709*(((X126+X126)/2)+6.1)*SQRT(0.995-0.947)*(1-EXP(0.1723*(((X126+X126)/2)-41.2))))^2)/2.3,0) -> 0.2654589874 | AM126: 0.2654589874 | AN126: =(Y126*AM126)+AN125 -> 2.374327797 | AO126: 13.65812565 | AP126: 13.65812565 | AT126: 12 | AU126: 2.299901393 | AV126: 1.624532296 | AW126: 2.374327797 | AX126: 2.374327797 | AY126: 2.299901393 | BA126: 2.299901393 | BB126: 1.624532296
W127: =IF(X126=$C$26,0,0.25) -> 0.25 | X127: =IF(OR(X126=$C$26,X126=0),0,X126-W127) -> 14.75 | Y127: =IF(W127=0,0,$Z$128-$Z$127) -> 0.05882352941 | Z127: =IF(W127=0,0,(X127-$C$24)/-$C$16) -> 0.05882352941 | AA127: 12.05882353 | AB127: =IF(X127>$E$9,(0.00033*(((X126+X127)/2)-5.6)*((6.5-2.8)*(1-EXP(0.5*(6.5-9.8)))*(36.7-0.9324)*(1-EXP(0.42*(-5-0.9324)))))^2,0) -> 0.09010687719 | AC127: 0.08769448668 | AD127: =(Y127*AB127)+AD126 -> 2.305201797 | AE127: 30.72939138 | AF127: 30.72939138 | AG127: 0.1786469318 | AH127: 0.1753233738 | AI127: 1.635040939 | AJ127: 19.19287193 | AK127: 19.19287193 | AL127: =IF(AND(X127>$E$11,OR(X127>0,X127<0)),((0.1709*(((X127+X126)/2)+6.1)*SQRT(0.995-0.947)*(1-EXP(0.1723*(((X127+X126)/2)-41.2))))^2)/2.3,0) -> 0.2624468518 | AM127: 0.2594478286 | AN127: 2.389765847 | AO127: 13.91506791 | AP127: 13.91506791 | AT127: 12.05882353 | AU127: 2.305201797 | AV127: 1.635040939 | AW127: 2.389765847 | AX127: 2.389765847 | AY127: 2.305201797 | BA127: 2.305201797 | BB127: 1.635040939
W128: =IF(OR(X127=$C$26,W127=0),0,0.25) -> 0.25 | X128: =IF(OR(X127=$C$26,X127=0),0,X127-W128) -> 14.5 | Y128: =IF(W128=0,0,$Z$128-$Z$127) -> 0.05882352941 | Z128: =IF(W128=0,0,(X128-$C$24)/-$C$16) -> 0.1176470588 | AA128: 12.11764706 | AB128: 0.08531482873 | AC128: 0.08296790337 | AD128: =(Y128*AB128)+AD127 -> 2.310220317 | AE128: 32.41952097 | AF128: 32.41952097 | AG128: 0.1720310203 | AH128: 0.1687698714 | AI128: 1.645160411 | AJ128: 19.87819011 | AK128: 19.87819011 | AL128: 0.2564620895 | AM128: 0.2534898019 | AN128: 2.404851852 | AO128: 14.18261453 | AP128: 14.18261453 | AT128: 12.11764706 | AU128: 2.310220317 | AV128: 1.645160411 | AW128: 2.404851852 | AX128: 2.404851852 | AY128: 2.310220317 | BA128: 2.310220317 | BB128: 1.645160411
W129: =IF(OR(X128=$C$26,W128=0),0,0.25) -> 0.25 | X129: 14.25 | Y129: 0.05882352941 | Z129: 0.1764705882 | AA129: 12.17647059 | AB129: 0.08065371057 | AC129: 0.07837225034 | AD129: 2.314964653 | AE129: 34.26002616 | AF129: 34.26002616 | AG129: 0.1655399274 | AH129: 0.1623411884 | AI129: 1.654898054 | AJ129: 20.60538043 | AK129: 20.60538043 | AL129: 0.2505311284 | AM129: 0.2475862272 | AN129: 2.419588977 | AO129: 14.46126896 | AP129: 14.46126896 | AT129: 12.17647059 | AU129: 2.314964653 | AV129: 1.654898054 | AW129: 2.419588977 | AX129: 2.419588977 | AY129: 2.314964653 | BA129: 2.314964653 | BB129: 1.654898054
W130: 0.25 | X130: 14 | Y130: 0.05882352941 | Z130: 0.2352941176 | AA130: 12.23529412 | AB130: 0.07612352269 | AC130: 0.0739075276 | AD130: 2.319442507 | AE130: 36.26907272 | AF130: 36.26907272 | AG130: 0.1591736545 | AH130: 0.156037326 | AI130: 1.66426121 | AJ130: 21.3778259 | AK130: 21.3778259 | AL130: 0.2446552518 | AM130: 0.241738352 | AN130: 2.433980463 | AO130: 14.75156717 | AP130: 14.75156717 | AT130: 12.23529412 | AU130: 2.319442507 | AV130: 1.66426121 | AW130: 2.433980463 | AX130: 2.433980463 | AY130: 2.319442507 | BA130: 2.319442507 | BB130: 1.66426121
W131: 0.25 | X131: 13.75 | Y131: 0.05882352941 | Z131: 0.2941176471 | AA131: 12.29411765 | AB131: 0.07172426509 | AC131: 0.06957373515 | AD131: 2.323661581 | AE131: 38.46765468 | AF131: 38.46765468 | AG131: 0.152932203 | AH131: 0.1498582857 | AI131: 1.673257222 | AJ131: 22.1992582 | AK131: 22.1992582 | AL131: 0.2388356729 | AM131: 0.235947356 | AN131: 2.44802962 | AO131: 15.05408003 | AP131: 15.05408003 | AT131: 12.29411765 | AU131: 2.323661581 | AV131: 1.673257222 | AW131: 2.44802962 | AX131: 2.44802962 | AY131: 2.323661581 | BA131: 2.323661581 | BB131: 1.673257222
W132: 0.25 | X132: 13.5 | Y132: 0.05882352941 | Z132: 0.3529411765 | AA132: 12.35294118 | AB132: 0.06745593778 | AC132: 0.06537087298 | AD132: 2.327629578 | AE132: 40.88013974 | AF132: 40.88013974 | AG132: 0.1468155741 | AH132: 0.1438040684 | AI132: 1.681893432 | AJ132: 23.07380177 | AK132: 23.07380177 | AL132: 0.2330735386 | AM132: 0.2302143542 | AN132: 2.461739828 | AO132: 15.36941597 | AP132: 15.36941597 | AT132: 12.35294118 | AU132: 2.327629578 | AV132: 1.681893432 | AW132: 2.461739828 | AX132: 2.461739828 | AY132: 2.327629578 | BA132: 2.327629578 | BB132: 1.681893432
W133: 0.25 | X133: 13.25 | Y133: 0.05882352941 | Z133: 0.4117647059 | AA133: 12.41176471 | AB133: 0.06331854076 | AC133: 0.0612989411 | AD133: 2.331354198 | AE133: 43.53494129 | AF133: 43.53494129 | AG133: 0.1408237686 | AH133: 0.137874675 | AI133: 1.690177183 | AJ133: 24.00602443 | AK133: 24.00602443 | AL133: 0.2273699327 | AM133: 0.2245404003 | AN133: 2.47511453 | AO133: 15.69822386 | AP133: 15.69822386 | AT133: 12.41176471 | AU133: 2.331354198 | AV133: 1.690177183 | AW133: 2.47511453 | AX133: 2.47511453 | AY133: 2.331354198 | BA133: 2.331354198 | BB133: 1.690177183
W134: 0.25 | X134: 13 | Y134: 0.05882352941 | Z134: 0.4705882353 | AA134: 12.47058824 | AB134: 0.05931207402 | AC134: 0.05735793951 | AD134: 2.334843143 | AE134: 46.46535213 | AF134: 46.46535213 | AG134: =IF(X134>$E$10,(((0.175*(((X134+X133)/2)-1.5)*SQRT(0.995-0.92)*(1-EXP(0.4395*(((X134+X133)/2)-45))))))^2)/2.3 -> 0.1349567876 | AH134: 0.1320701065 | AI134: 1.698115818 | AJ134: 25.00099584 | AK134: 25.00099584 | AL134: 0.2217258796 | AM134: 0.2189264899 | AN134: 2.488157229 | AO134: 16.04119617 | AP134: 16.04119617 | AT134: 12.47058824 | AU134: 2.334843143 | AV134: 1.698115818 | AW134: 2.488157229 | AX134: 2.488157229 | AY134: 2.334843143 | BA134: 2.334843143 | BB134: 1.698115818
W135: 0.25 | X135: 12.75 | Y135: 0.05882352941 | Z135: 0.5294117647 | AA135: 12.52941176 | AB135: 0.05543653757 | AC135: 0.0535478682 | AD135: 2.338104116 | AE135: 49.71058557 | AF135: 49.71058557 | AG135: 0.1292146317 | AH135: 0.1263903634 | AI135: 1.705716679 | AJ135: 26.06435516 | AK135: 26.06435516 | AL135: 0.2161423471 | AM135: 0.2133735637 | AN135: 2.500871484 | AO135: 16.39907238 | AP135: 16.39907238 | AT135: 12.52941176 | AU135: 2.338104116 | AV135: 1.705716679 | AW135: 2.500871484 | AX135: 2.500871484 | AY135: 2.338104116 | BA135: 2.338104116 | BB135: 1.705716679
W136: 0.25 | X136: 12.5 | Y136: 0.05882352941 | Z136: 0.5882352941 | AA136: 12.58823529 | AB136: 0.0516919314 | AC136: 0.04986872717 | AD136: 2.341144818 | AE136: 53.31708533 | AF136: 53.31708533 | AG136: 0.1235973017 | AH136: 0.1208354465 | AI136: 1.712987108 | AJ136: 27.20238958 | AK136: 27.20238958 | AL136: 0.2106202492 | AM136: 0.2078825101 | AN136: 2.513260911 | AO136: 16.77264281 | AP136: 16.77264281 | AT136: 12.58823529 | AU136: 2.341144818 | AV136: 1.712987108 | AW136: 2.513260911 | AX136: 2.513260911 | AY136: 2.341144818 | BA136: 2.341144818 | BB136: 1.712987108
W137: 0.25 | X137: 12.25 | Y137: 0.05882352941 | Z137: 0.6470588235 | AA137: 12.64705882 | AB137: 0.04807825552 | AC137: 0.04632051643 | AD137: 2.343972951 | AE137: 57.34018647 | AF137: 57.34018647 | AG137: 0.118104798 | AH137: 0.1154053563 | AI137: 1.719934449 | AJ137: 28.42212577 | AK137: 28.42212577 | AL137: 0.2051604497 | AM137: 0.2024541685 | AN137: 2.525329173 | AO137: 17.16275271 | AP137: 17.16275271 | AT137: 12.64705882 | AU137: 2.343972951 | AV137: 1.719934449 | AW137: 2.525329173 | AX137: 2.525329173 | AY137: 2.343972951 | BA137: 2.343972951 | BB137: 1.719934449
W138: 0.25 | X138: 12 | Y138: 0.05882352941 | Z138: 0.7058823529 | AA138: 12.70588235 | AB138: 0.04459550992 | AC138: 0.04290323598 | AD138: 2.346596216 | AE138: 61.84623895 | AF138: 61.84623895 | AG138: 0.1127371213 | AH138: 0.1101000931 | AI138: 1.726566045 | AJ138: 29.73143675 | AK138: 29.73143675 | AL138: 0.199763764 | AM138: 0.1970893311 | AN138: 2.537079982 | AO138: 17.57030682 | AP138: 17.57030682 | AT138: 12.70588235 | AU138: 2.346596216 | AV138: 1.726566045 | AW138: 2.537079982 | AX138: 2.537079982 | AY138: 2.346596216 | BA138: 2.346596216 | BB138: 1.726566045
W139: 0.25 | X139: 11.75 | Y139: 0.05882352941 | Z139: 0.7647058824 | AA139: 12.76470588 | AB139: 0.04124369461 | AC139: 0.03961688581 | AD139: 2.349022316 | AE139: 66.91534759 | AF139: 66.91534759 | AG139: 0.1074942719 | AH139: 0.1049196575 | AI139: 1.732889237 | AJ139: 31.13916724 | AK139: 31.13916724 | AL139: 0.194430962 | AM139: 0.1917887462 | AN139: 2.548517098 | AO139: 17.99627439 | AP139: 17.99627439 | AT139: 12.76470588 | AU139: 2.349022316 | AV139: 1.732889237 | AW139: 2.548517098 | AX139: 2.548517098 | AY139: 2.349022316 | BA139: 2.349022316 | BB139: 1.732889237
W140: 0.25 | X140: 11.5 | Y140: 0.05882352941 | Z140: 0.8235294118 | AA140: 12.82352941 | AB140: =IF(X140>$E$9,(0.00033*(((X139+X140)/2)-5.6)*((6.5-2.8)*(1-EXP(0.5*(6.5-9.8)))*(36.7-0.9324)*(1-EXP(0.42*(-5-0.9324)))))^2,0) -> 0.03802280958 | AC140: 0.03646146593 | AD140: 2.351258951 | AE140: 72.6449412 | AF140: 72.6449412 | AG140: 0.1023762502 | AH140: 0.09986404986 | AI140: 1.738911369 | AJ140: 32.65528121 | AK140: 32.65528121 | AL140: 0.1891627707 | AM140: 0.1865531201 | AN140: 2.559644319 | AO140: 18.44169467 | AP140: 18.44169467 | AT140: 12.82352941 | AU140: 2.351258951 | AV140: 1.738911369 | AW140: 2.559644319 | AX140: 2.559644319 | AY140: 2.351258951 | BA140: 2.351258951 | BB140: 1.738911369
W141: 0.25 | X141: 11.25 | Y141: 0.05882352941 | Z141: 0.8823529412 | AA141: 12.88235294 | AB141: 0.03493285484 | AC141: 0.03343697633 | AD141: 2.353313825 | AE141: 79.15447104 | AF141: 79.15447104 | AG141: 0.09738305657 | AH141: 0.09493327037 | AI141: 1.744639785 | AJ141: 34.29103625 | AK141: 34.29103625 | AL141: 0.1839598764 | AM141: 0.1813831193 | AN141: 2.570465489 | AO141: 18.90768294 | AP141: 18.90768294 | AT141: 12.88235294 | AU141: 2.353313825 | AV141: 1.744639785 | AW141: 2.570465489 | AX141: 2.570465489 | AY141: 2.353313825 | BA141: 2.353313825 | BB141: 1.744639785
W142: 0.25 | X142: 11 | Y142: 0.05882352941 | Z142: 0.9411764706 | AA142: 12.94117647 | AB142: 0.03197383039 | AC142: 0.03054341702 | AD142: 2.355194639 | AE142: 86.59166587 | AF142: 86.59166587 | AG142: 0.09251469128 | AH142: 0.09012731934 | AI142: 1.750081825 | AJ142: 36.05919047 | AK142: 36.05919047 | AL142: 0.1788229265 | AM142: 0.176279373 | AN142: 2.580984484 | AO142: 19.39543724 | AP142: 19.39543724 | AT142: 12.94117647 | AU142: 2.355194639 | AV142: 1.750081825 | AW142: 2.580984484 | AX142: 2.580984484 | AY142: 2.355194639 | BA142: 2.355194639 | BB142: 1.750081825
W143: 0.25 | X143: 10.75 | Y143: 0.05882352941 | Z143: 1 | AA143: 13 | AB143: 0.02914573622 | AC143: 0.02778078799 | AD143: 2.356909094 | AE143: 95.1409624 | AF143: 95.1409624 | AG143: 0.08777115458 | AH143: 0.08544619702 | AI143: 1.755244834 | AJ143: 37.97424905 | AK143: 37.97424905 | AL143: 0.1737525321 | AM143: 0.1712424747 | AN143: 2.591205221 | AO143: 19.90624571 | AP143: 19.90624571 | AT143: 13 | AU143: 2.356909094 | AV143: 1.755244834 | AW143: 2.591205221 | AX143: 2.591205221 | AY143: 2.356909094 | BA143: 2.356909094 | BB143: 1.755244834
W144: 0.25 | X144: 10.5 | Y144: 0.05882352941 | Z144: 1.058823529 | AA144: 13.05882353 | AB144: 0.02644857234 | AC144: 0.02514908925 | AD144: 2.358464892 | AE144: 105.0350206 | AF144: 105.0350206 | AG144: 0.08315244668 | AH144: 0.0808899036 | AI144: 1.760136155 | AJ144: 40.05275938 | AK144: 40.05275938 | AL144: 0.1687492698 | AM144: 0.1662729844 | AN144: 2.601131649 | AO144: 20.44149483 | AP144: 20.44149483 | AT144: 13.05882353 | AU144: 2.358464892 | AV144: 1.760136155 | AW144: 2.601131649 | AX144: 2.601131649 | AY144: 2.358464892 | BA144: 2.358464892 | BB144: 1.760136155
W145: 0.25 | X145: 10.25 | Y145: 0.05882352941 | Z145: 1.117647059 | AA145: 13.11764706 | AB145: 0.02388233874 | AC145: 0.0226483208 | AD145: 2.359869736 | AE145: 116.5706848 | AF145: 116.5706848 | AG145: 0.07865856778 | AH145: 0.07645843925 | AI145: 1.764763129 | AJ145: 42.31366612 | AK145: 42.31366612 | AL145: 0.1638136835 | AM145: 0.1613714302 | AN145: 2.610767748 | AO145: 21.0026784 | AP145: 21.0026784 | AT145: 13.11764706 | AU145: 2.359869736 | AV145: 1.764763129 | AW145: 2.610767748 | AX145: 2.610767748 | AY145: 2.359869736 | BA145: 2.359869736 | BB145: 1.764763129
W146: 0.25 | X146: 10 | Y146: 0.05882352941 | Z146: 1.176470588 | AA146: 13.17647059 | AB146: 0.02144703543 | AC146: 0.02027848263 | AD146: 2.361131326 | AE146: 130.131466 | AF146: 130.131466 | AG146: 0.07428951803 | AH146: 0.07215180413 | AI146: 1.769133101 | AJ146: 44.7787403 | AK146: 44.7787403 | AL146: 0.158946286 | AM146: 0.1565383103 | AN146: 2.62011753 | AO146: 21.59140766 | AP146: 21.59140766 | AT146: 13.17647059 | AU146: 2.361131326 | AV146: 1.769133101 | AW146: 2.62011753 | AX146: 2.62011753 | AY146: 2.361131326 | BA146: 2.361131326 | BB146: 1.769133101
W147: 0.25 | X147: 9.75 | Y147: 0.05882352941 | Z147: 1.235294118 | AA147: 13.23529412 | AB147: 0.0191426624 | AC147: 0.01803957475 | AD147: 2.362257365 | AE147: 146.2197791 | AF147: 146.2197791 | AG147: 0.07004529757 | AH147: 0.06796999836 | AI147: 1.773253413 | AJ147: 47.47310086 | AK147: 47.47310086 | AL147: 0.1541475609 | AM147: 0.1517740942 | AN147: 2.629185033 | AO147: 22.2094224 | AP147: 22.2094224 | AT147: 13.23529412 | AU147: 2.362257365 | AV147: 1.773253413 | AW147: 2.629185033 | AX147: 2.629185033 | AY147: 2.362257365 | BA147: 2.362257365 | BB147: 1.773253413
W148: 0.25 | X148: 9.5 | Y148: 0.05882352941 | Z148: 1.294117647 | AA148: 13.29411765 | AB148: 0.01696921966 | AC148: 0.01593159715 | AD148: 2.363255554 | AE148: 165.5040873 | AF148: 165.5040873 | AG148: 0.06592590652 | AH148: 0.06391302207 | AI148: 1.777131407 | AJ148: 50.42585202 | AK148: 50.42585202 | AL148: 0.1494179645 | AM148: 0.1470792247 | AN148: 2.637974325 | AO148: 22.85860345 | AP148: =IF(AO148>0,AO148,0) -> 22.85860345 | AT148: 13.29411765 | AU148: 2.363255554 | AV148: 1.777131407 | AW148: 2.637974325 | AX148: 2.637974325 | AY148: 2.363255554 | BA148: 2.363255554 | BB148: 1.777131407
W149: 0.25 | X149: 9.25 | Y149: 0.05882352941 | Z149: 1.352941176 | AA149: 13.35294118 | AB149: 0.01492670721 | AC149: 0.01395454984 | AD149: 2.364133596 | AE149: 188.8893898 | AF149: 188.8893898 | AG149: 0.061931345 | AH149: 0.05998087534 | AI149: 1.780774427 | AJ149: 53.67086683 | AK149: 53.67086683 | AL149: 0.1447579264 | AM149: 0.1424541193 | AN149: 2.646489497 | AO149: 23.54098652 | AP149: =IF(AO149>0,AO149,0) -> 23.54098652 | AT149: 13.35294118 | AU149: 2.364133596 | AV149: 1.780774427 | AW149: 2.646489497 | AX149: 2.646489497 | AY149: 2.364133596 | BA149: 2.364133596 | BB149: 1.780774427
W150: 0.25 | X150: 9 | Y150: 0.05882352941 | Z150: 1.411764706 | AA150: 13.41176471 | AB150: 0.01301512504 | AC150: 0.01210843281 | AD150: 2.364899192 | AE150: 217.6252575 | AF150: 217.6252575 | AG150: 0.05806161309 | AH150: 0.05617355826 | AI150: 1.784189816 | AJ150: 57.24775647 | AK150: 57.24775647 | AL150: 0.1401678519 | AM150: 0.1378991712 | AN150: 2.654734665 | AO150: 24.25877766 | AP150: 24.25877766 | AT150: 13.41176471 | AU150: 2.364899192 | AV150: 1.784189816 | AW150: 2.654734665 | AX150: 2.654734665 | AY150: 2.364899192 | BA150: 2.364899192 | BB150: 1.784189816
W151: 0.25 | X151: 8.75 | Y151: 0.05882352941 | Z151: 1.470588235 | AA151: 13.47058824 | AB151: 0.01123447315 | AC151: 0.01039324607 | AD151: 2.365560043 | AE151: 253.4761459 | AF151: 253.4761459 | AG151: 0.05431671087 | AH151: 0.05249107091 | AI151: 1.787384917 | AJ151: 61.20307754 | AK151: 61.20307754 | AL151: 0.1356481229 | AM151: 0.1334147511 | AN151: 2.662713966 | AO151: 25.01437065 | AP151: 25.01437065 | AT151: 13.47058824 | AU151: 2.365560043 | AV151: 1.787384917 | AW151: 2.662713966 | AX151: 2.662713966 | AY151: 2.365560043 | BA151: 2.365560043 | BB151: 1.787384917
W152: 0.25 | X152: 8.5 | Y152: 0.05882352941 | Z152: 1.529411765 | AA152: 13.52941176 | AB152: 0.009584751556 | AC152: 0.008808989614 | AD152: 2.366123852 | AE152: 298.9986665 | AF152: 298.9986665 | AG152: 0.0506966384 | AH152: 0.04893341335 | AI152: 1.790367072 | AJ152: 65.59184631 | AK152: 65.59184631 | AL152: 0.1311990989 | AM152: 0.129001208 | AN152: 2.670431561 | AO152: 25.81036635 | AP152: 25.81036635 | AT152: 13.52941176 | AU152: 2.366123852 | AV152: 1.790367072 | AW152: 2.670431561 | AX152: 2.670431561 | AY152: 2.366123852 | BA152: 2.366123852 | BB152: 1.790367072
W153: 0.25 | X153: 8.25 | Y153: 0.05882352941 | Z153: 1.588235294 | AA153: 13.58823529 | AB153: 0.008065960243 | AC153: 0.007355663444 | AD153: 2.36659832 | AE153: 358.010083 | AF153: 358.010083 | AG153: 0.04720139576 | AH153: 0.04550058563 | AI153: 1.793143625 | AJ153: 70.47945275 | AK153: 70.47945275 | AL153: 0.126821119 | AM153: 0.124658871 | AN153: 2.677891626 | AO153: 26.6495946 | AP153: 26.6495946 | AT153: 13.58823529 | AU153: 2.36659832 | AV153: 1.793143625 | AW153: 2.677891626 | AX153: 2.677891626 | AY153: 2.36659832 | BA153: 2.36659832 | BB153: 1.793143625
W154: 0.25 | X154: 8 | Y154: 0.05882352941 | Z154: 1.647058824 | AA154: 13.64705882 | AB154: 0.006678099216 | AC154: 0.006033267559 | AD154: 2.366991149 | AE154: 436.4150644 | AF154: 436.4150644 | AG154: 0.04383098297 | AH154: 0.0421925878 | AI154: 1.795721918 | AJ154: 75.94409941 | AK154: 75.94409941 | AL154: 0.1225145022 | AM154: 0.1203880496 | AN154: 2.685098362 | AO154: 27.53513866 | AP154: 27.53513866 | AT154: 13.64705882 | AU154: 2.366991149 | AV154: 1.795721918 | AW154: 2.685098362 | AX154: 2.685098362 | AY154: 2.366991149 | BA154: 2.366991149 | BB154: 1.795721918
W155: 0.25 | X155: 7.75 | Y155: 0.05882352941 | Z155: 1.705882353 | AA155: 13.70588235 | AB155: 0.005421168474 | AC155: 0.004841801961 | AD155: 2.367310042 | AE155: 543.741768 | AF155: 543.741768 | AG155: 0.0405854001 | AH155: 0.03900941989 | AI155: 1.798109295 | AJ155: 82.07993644 | AK155: 82.07993644 | AL155: 0.1182795491 | AM155: 0.1161890355 | AN155: 2.692055982 | AO155: 28.470363 | AP155: 28.470363 | AT155: 13.70588235 | AU155: 2.367310042 | AV155: 1.798109295 | AW155: 2.692055982 | AX155: 2.692055982 | AY155: 2.367310042 | BA155: 2.367310042 | BB155: 1.798109295
W156: 0.25 | X156: 7.5 | Y156: 0.05882352941 | Z156: 1.764705882 | AA156: 13.76470588 | AB156: 0.004295168018 | AC156: 0.003781266648 | AD156: 2.367562699 | AE156: 696.1787006 | AF156: 696.1787006 | AG156: 0.03746464718 | AH156: 0.03595108196 | AI156: 1.800313097 | AJ156: 89.00112955 | AK156: 89.00112955 | AL156: 0.1141165426 | AM156: 0.1120621033 | AN156: 2.69876872 | AO156: 29.45894449 | AP156: 29.45894449 | AT156: 13.76470588 | AU156: 2.367562699 | AV156: 1.800313097 | AW156: 2.69876872 | AX156: 2.69876872 | AY156: 2.367562699 | BA156: 2.367562699 | BB156: 1.800313097
W157: 0.25 | X157: 7.25 | Y157: 0.05882352941 | Z157: 1.823529412 | AA157: 13.82352941 | AB157: 0.003300097848 | AC157: 0.00285166162 | AD157: 2.367756822 | AE157: 923.0559333 | AF157: 923.0559333 | AG157: 0.03446872423 | AH157: 0.03301757401 | AI157: 1.802340669 | AJ157: 96.84719204 | AK157: 96.84719204 | AL157: 0.1100257492 | AM157: 0.1080075113 | AN157: 2.705240823 | AO157: 30.50490782 | AP157: 30.50490782 | AT157: 13.82352941 | AU157: =AD157 -> 2.367756822 | AV157: =AI157 -> 1.802340669 | AW157: =AN157 -> 2.705240823 | AX157: 2.705240823 | AY157: 2.367756822 | BA157: 2.367756822 | BB157: 1.802340669
W158: 0.25 | X158: 7 | Y158: 0.05882352941 | Z158: 1.882352941 | AA158: 13.88235294 | AB158: 0.002435957963 | AC158: 0.002052986878 | AD158: 2.367900114 | AE158: 1282.083151 | AF158: 1282.083151 | AG158: 0.03159763129 | AH158: 0.03020889608 | AI158: 1.804199353 | AJ158: 105.7900506 | AK158: 105.7900506 | AL158: 0.1060074195 | AM158: 0.1040255028 | AN158: 2.711476554 | AO158: 31.61266572 | AP158: 31.61266572 | AT158: 13.88235294 | AU158: 2.367900114 | AV158: 1.804199353 | AW158: 2.711476554 | AX158: 2.711476554 | AY158: 2.367900114 | BA158: 2.367900114 | BB158: 1.804199353
W159: 0.25 | X159: 6.75 | Y159: 0.05882352941 | Z159: 1.941176471 | AA159: 13.94117647 | AB159: 0.001702748364 | AC159: 0.001385242421 | AD159: 2.368000275 | AE159: 1900.028243 | AF159: 1900.028243 | AG159: 0.02885136838 | AH159: 0.0275250482 | AI159: 1.805896493 | AJ159: 116.043521 | AK159: 116.043521 | AL159: 0.1020617894 | AM159: 0.1001163065 | AN159: 2.717480188 | AO159: 32.78706463 | AP159: 32.78706463 | AT159: 13.94117647 | AU159: 2.368000275 | AV159: 1.805896493 | AW159: 2.717480188 | AX159: 2.717480188 | AY159: 2.368000275 | BA159: 2.368000275 | BB159: 1.805896493
W160: 0.25 | X160: 6.5 | Y160: 0.05882352941 | Z160: 2 | AA160: 14 | AB160: 0.00110046905 | AC160: 0.0008484282506 | AD160: 2.368065009 | AE160: 3102.130309 | AF160: 3102.130309 | AG160: 0.02622993553 | AH160: 0.02496603037 | AI160: 1.80743943 | AJ160: 127.876179 | AK160: 127.876179 | AL160: 0.0981890807 | AM160: 0.09628013763 | AN160: 2.723256017 | AO160: 34.03343685 | AP160: 34.03343685 | AT160: 14 | AU160: 2.368065009 | AV160: 1.80743943 | AW160: 2.723256017 | AX160: 2.723256017 | AY160: 2.368065009 | BA160: 2.368065009 | BB160: 1.80743943
W161: 0.25 | X161: 6.25 | Y161: 0.05882352941 | Z161: 2.058823529 | AA161: 14.05882353 | AB161: 0.0006291200222 | AC161: 0.0004425443653 | AD161: 2.368102016 | AE161: 5947.195786 | AF161: 5947.195786 | AG161: 0.02373333274 | AH161: 0.02253184262 | AI161: 1.808835509 | AJ161: 141.6290956 | AK161: 141.6290956 | AL161: 0.0943895022 | AM161: 0.09251719858 | AN161: 2.72880834 | AO161: 35.35766009 | AP161: 35.35766009 | AT161: 14.05882353 | AU161: 2.368102016 | AV161: 1.808835509 | AW161: 2.72880834 | AX161: 2.72880834 | AY161: 2.368102016 | BA161: 2.368102016 | BB161: 1.808835509
W162: 0.25 | X162: 6 | Y162: 0.05882352941 | Z162: 2.117647059 | AA162: 14.11764706 | AB162: 0.0002887012797 | AC162: 0.0001675907655 | AD162: 2.368118998 | AE162: 15704.21254 | AF162: 15704.21254 | AG162: 0.02136156003 | AH162: 0.02022248496 | AI162: 1.810092071 | AJ162: 157.7406504 | AK162: 157.7406504 | AL162: 0.09066325017 | AM162: 0.08882767969 | AN162: 2.734141473 | AO162: 36.76622579 | AP162: 36.76622579 | AT162: 14.11764706 | AU162: 2.368118998 | AV162: 1.810092071 | AW162: 2.734141473 | AX162: 2.734141473 | AY162: 2.368118998 | BA162: 2.368118998 | BB162: 1.810092071
W163: 0.25 | X163: 5.75 | Y163: 0.05882352941 | Z163: 2.176470588 | AA163: 14.17647059 | AB163: 7.921282278e-05 | AC163: 2.35674514e-05 | AD163: 2.368123658 | AE163: 111674.2026 | AF163: 111674.2026 | AG163: 0.01911461741 | AH163: 0.0180379574 | AI163: 1.81121646 | AJ163: 176.7818534 | AK163: 176.7818534 | AL163: 0.08701050913 | AM163: 0.08521175986 | AN163: 2.739259738 | AO163: 38.26631756 | AP163: 38.26631756 | AT163: 14.17647059 | AU163: 2.368123658 | AV163: 1.81121646 | AW163: 2.739259738 | AX163: 2.739259738 | AY163: 2.368123658 | BA163: 2.368123658 | BB163: 1.81121646
W164: 0.25 | X164: 5.5 | Y164: 0.05882352941 | Z164: 2.235294118 | AA164: 14.23529412 | AB164: 0 | AC164: 1.047442285e-07 | AD164: 2.368123658 | AE164: 111674.2026 | AF164: 111674.2026 | AG164: 0.01699250491 | AH164: 0.01597825995 | AI164: 1.812216019 | AJ164: 199.5075804 | AK164: 199.5075804 | AL164: 0.08343145255 | AM164: 0.08166960726 | AN164: 2.74416747 | AO164: 39.86590164 | AP164: 39.86590164 | AT164: 14.23529412 | AU164: 2.368123658 | AV164: 1.812216019 | AW164: 2.74416747 | AX164: 2.74416747 | AY164: 2.368123658 | BA164: 2.368123658 | BB164: 1.812216019
W165: 0.25 | X165: 5.25 | Y165: 0.05882352941 | Z165: 2.294117647 | AA165: 14.29411765 | AB165: 0 | AC165: 1.047442285e-07 | AD165: 2.368123658 | AE165: 111674.2026 | AF165: 111674.2026 | AG165: 0.01499522252 | AH165: 0.01404339262 | AI165: 1.813098091 | AJ165: 226.9324796 | AK165: 226.9324796 | AL165: 0.07992624344 | AM165: 0.07820137991 | AN165: 2.748869014 | AO165: 41.57383143 | AP165: 41.57383143 | AT165: 14.29411765 | AU165: 2.368123658 | AV165: 1.813098091 | AW165: 2.748869014 | AX165: 2.748869014 | AY165: 2.368123658 | BA165: 2.368123658 | BB165: 1.813098091
W166: 0.25 | X166: 5 | Y166: 0.05882352941 | Z166: 2.352941176 | AA166: 14.35294118 | AB166: 0 | AC166: 1.047442285e-07 | AD166: 2.368123658 | AE166: 111674.2026 | AF166: 111674.2026 | AG166: 0.01312277025 | AH166: 0.01223335541 | AI166: 1.813870019 | AJ166: 260.4461224 | AK166: 260.4461224 | AL166: 0.07649503496 | AM166: 0.07480722627 | AN166: 2.753368722 | AO166: 43.39996869 | AP166: 43.39996869 | AT166: 14.35294118 | AU166: 2.368123658 | AV166: 1.813870019 | AW166: 2.753368722 | AX166: 2.753368722 | AY166: 2.368123658 | BA166: 2.368123658 | BB166: 1.813870019
W167: =IF(OR(X166=$C$26,W166=0),0,0.25) -> 0 | X167: =IF(OR(X166=$C$26,X166=0),0,X166-W167) -> 0 | Y167: =IF(W167=0,0,$Z$128-$Z$127) -> 0 | Z167: =IF(W167=0,0,(X167-$C$24)/-$C$16) -> 0 | AA167: =Y167+AA166 -> 14.35294118 | AB167: =IF(X167>$E$9,(0.00033*(((X166+X167)/2)-5.6)*((6.5-2.8)*(1-EXP(0.5*(6.5-9.8)))*(36.7-0.9324)*(1-EXP(0.42*(-5-0.9324)))))^2,0) -> 0 | AC167: =IF(X167>$E$9,(0.00033*(X167-5.6)*((6.5-2.8)*(1-EXP(0.5*(6.5-9.8)))*(36.7-0.9324)*(1-EXP(0.42*(-5-0.9324)))))^2,(0.00033*(5.61-5.6)*((6.5-2.8)*(1-EXP(0.5*(6.5-9.8)))*(36.7-0.9324)*(1-EXP(0.42*(-5-0.9324)))))^2) -> 1.047442285e-07 | AD167: =(Y167*AB167)+AD166 -> 2.368123658 | AE167: =IF(AB167=0,AE166,($D$9-AD167)/AC167) -> 111674.2026 | AF167: =IF(AE167>0,AE167,0) -> 111674.2026 | AG167: 0 | AH167: =IF(X167>$E$10,(((0.175*(X167-1.5)*SQRT(0.995-0.92)*(1-EXP(0.4395*(X167-45)))))^2)/2.3,0) -> 0 | AI167: =(Y167*AG167)+AI166 -> 1.813870019 | AJ167: =IF(AG167=0,AJ166,($D$10-AI167)/AH167) -> 260.4461224 | AK167: =IF(AJ167>0,AJ167,0) -> 260.4461224 | AL167: =IF(AND(X167>$E$11,OR(X167>0,X167<0)),((0.1709*(((X167+X166)/2)+6.1)*SQRT(0.995-0.947)*(1-EXP(0.1723*(((X167+X166)/2)-41.2))))^2)/2.3,0) -> 0 | AM167: =IF(X167>$E$11,((0.1709*(X167+6.1)*SQRT(0.995-0.947)*(1-EXP(0.1723*(X167-41.2))))^2)/2.3,0) -> 0.02264327985 | AN167: =(Y167*AL167)+AN166 -> 2.753368722 | AO167: =IF(AL167=0,AO166,($D$11-AN167)/AM167) -> 43.39996869 | AP167: =IF(AO167>0,AO167,0) -> 43.39996869 | AT167: =AA167 -> 14.35294118 | AU167: =AD167 -> 2.368123658 | AV167: =AI167 -> 1.813870019 | AW167: =AN167 -> 2.753368722 | AX167: =MAX(AU167:AW167) -> 2.753368722 | AY167: =MAX(AU167:AV167) -> 2.368123658 | BA167: =IF($BA$1=TRUE,AU167,NA()) -> 2.368123658 | BB167: =IF($BB$1=TRUE,AV167,NA()) -> 1.813870019 | BC167: =IF($BC$1=TRUE,AW167,NA()) ->  | BD167: =IF($BD$1=TRUE,AX167,NA()) ->  | BE167: =IF($BE$1=TRUE,AY167,NA()) -> 
W168: 0 | X168: 0 | Y168: 0 | Z168: 0 | AA168: 14.35294118 | AB168: 0 | AC168: 1.047442285e-07 | AD168: 2.368123658 | AE168: 111674.2026 | AF168: 111674.2026 | AG168: 0 | AH168: 0 | AI168: 1.813870019 | AJ168: 260.4461224 | AK168: 260.4461224 | AL168: 0 | AM168: 0.02264327985 | AN168: 2.753368722 | AO168: 43.39996869 | AP168: 43.39996869 | AT168: 14.35294118 | AU168: 2.368123658 | AV168: 1.813870019 | AW168: 2.753368722 | AX168: 2.753368722 | AY168: 2.368123658 | BA168: 2.368123658 | BB168: 1.813870019
W169: 0 | X169: 0 | Y169: 0 | Z169: 0 | AA169: 14.35294118 | AB169: 0 | AC169: 1.047442285e-07 | AD169: 2.368123658 | AE169: 111674.2026 | AF169: 111674.2026 | AG169: 0 | AH169: 0 | AI169: 1.813870019 | AJ169: 260.4461224 | AK169: 260.4461224 | AL169: 0 | AM169: 0.02264327985 | AN169: 2.753368722 | AO169: 43.39996869 | AP169: 43.39996869 | AT169: 14.35294118 | AU169: 2.368123658 | AV169: 1.813870019 | AW169: 2.753368722 | AX169: 2.753368722 | AY169: 2.368123658 | BA169: 2.368123658 | BB169: 1.813870019
W170: 0 | X170: 0 | Y170: 0 | Z170: 0 | AA170: 14.35294118 | AB170: 0 | AC170: 1.047442285e-07 | AD170: 2.368123658 | AE170: 111674.2026 | AF170: 111674.2026 | AG170: 0 | AH170: 0 | AI170: 1.813870019 | AJ170: 260.4461224 | AK170: 260.4461224 | AL170: 0 | AM170: 0.02264327985 | AN170: 2.753368722 | AO170: 43.39996869 | AP170: 43.39996869 | AT170: 14.35294118 | AU170: 2.368123658 | AV170: 1.813870019 | AW170: 2.753368722 | AX170: 2.753368722 | AY170: 2.368123658 | BA170: 2.368123658 | BB170: 1.813870019
W171: 0 | X171: 0 | Y171: 0 | Z171: 0 | AA171: 14.35294118 | AB171: 0 | AC171: 1.047442285e-07 | AD171: 2.368123658 | AE171: 111674.2026 | AF171: 111674.2026 | AG171: 0 | AH171: 0 | AI171: 1.813870019 | AJ171: 260.4461224 | AK171: 260.4461224 | AL171: 0 | AM171: 0.02264327985 | AN171: 2.753368722 | AO171: 43.39996869 | AP171: 43.39996869 | AT171: 14.35294118 | AU171: 2.368123658 | AV171: 1.813870019 | AW171: 2.753368722 | AX171: 2.753368722 | AY171: 2.368123658 | BA171: 2.368123658 | BB171: 1.813870019
W172: 0 | X172: 0 | Y172: 0 | Z172: 0 | AA172: 14.35294118 | AB172: 0 | AC172: 1.047442285e-07 | AD172: 2.368123658 | AE172: 111674.2026 | AF172: 111674.2026 | AG172: 0 | AH172: 0 | AI172: 1.813870019 | AJ172: 260.4461224 | AK172: 260.4461224 | AL172: 0 | AM172: 0.02264327985 | AN172: 2.753368722 | AO172: 43.39996869 | AP172: 43.39996869 | AT172: 14.35294118 | AU172: 2.368123658 | AV172: 1.813870019 | AW172: 2.753368722 | AX172: 2.753368722 | AY172: 2.368123658 | BA172: 2.368123658 | BB172: 1.813870019
W173: 0 | X173: 0 | Y173: 0 | Z173: 0 | AA173: 14.35294118 | AB173: 0 | AC173: 1.047442285e-07 | AD173: 2.368123658 | AE173: 111674.2026 | AF173: 111674.2026 | AG173: 0 | AH173: 0 | AI173: 1.813870019 | AJ173: 260.4461224 | AK173: 260.4461224 | AL173: 0 | AM173: 0.02264327985 | AN173: 2.753368722 | AO173: 43.39996869 | AP173: 43.39996869 | AT173: 14.35294118 | AU173: 2.368123658 | AV173: 1.813870019 | AW173: 2.753368722 | AX173: 2.753368722 | AY173: 2.368123658 | BA173: 2.368123658 | BB173: 1.813870019
W174: 0 | X174: 0 | Y174: 0 | Z174: 0 | AA174: 14.35294118 | AB174: 0 | AC174: 1.047442285e-07 | AD174: 2.368123658 | AE174: 111674.2026 | AF174: 111674.2026 | AG174: 0 | AH174: 0 | AI174: 1.813870019 | AJ174: 260.4461224 | AK174: 260.4461224 | AL174: 0 | AM174: 0.02264327985 | AN174: 2.753368722 | AO174: 43.39996869 | AP174: 43.39996869 | AT174: 14.35294118 | AU174: 2.368123658 | AV174: 1.813870019 | AW174: 2.753368722 | AX174: 2.753368722 | AY174: 2.368123658 | BA174: 2.368123658 | BB174: 1.813870019
W175: 0 | X175: 0 | Y175: 0 | Z175: 0 | AA175: 14.35294118 | AB175: 0 | AC175: 1.047442285e-07 | AD175: 2.368123658 | AE175: 111674.2026 | AF175: 111674.2026 | AG175: 0 | AH175: 0 | AI175: 1.813870019 | AJ175: 260.4461224 | AK175: 260.4461224 | AL175: 0 | AM175: 0.02264327985 | AN175: 2.753368722 | AO175: 43.39996869 | AP175: 43.39996869 | AT175: 14.35294118 | AU175: 2.368123658 | AV175: 1.813870019 | AW175: 2.753368722 | AX175: 2.753368722 | AY175: 2.368123658 | BA175: 2.368123658 | BB175: 1.813870019
W176: 0 | X176: 0 | Y176: 0 | Z176: 0 | AA176: 14.35294118 | AB176: 0 | AC176: 1.047442285e-07 | AD176: 2.368123658 | AE176: 111674.2026 | AF176: 111674.2026 | AG176: 0 | AH176: 0 | AI176: 1.813870019 | AJ176: 260.4461224 | AK176: 260.4461224 | AL176: 0 | AM176: 0.02264327985 | AN176: 2.753368722 | AO176: 43.39996869 | AP176: 43.39996869 | AT176: 14.35294118 | AU176: 2.368123658 | AV176: 1.813870019 | AW176: 2.753368722 | AX176: 2.753368722 | AY176: 2.368123658 | BA176: 2.368123658 | BB176: 1.813870019
W177: 0 | X177: 0 | Y177: 0 | Z177: 0 | AA177: 14.35294118 | AB177: 0 | AC177: 1.047442285e-07 | AD177: 2.368123658 | AE177: 111674.2026 | AF177: 111674.2026 | AG177: 0 | AH177: 0 | AI177: 1.813870019 | AJ177: 260.4461224 | AK177: 260.4461224 | AL177: 0 | AM177: 0.02264327985 | AN177: 2.753368722 | AO177: 43.39996869 | AP177: 43.39996869 | AT177: 14.35294118 | AU177: 2.368123658 | AV177: 1.813870019 | AW177: 2.753368722 | AX177: 2.753368722 | AY177: 2.368123658 | BA177: 2.368123658 | BB177: 1.813870019
W178: 0 | X178: 0 | Y178: 0 | Z178: 0 | AA178: 14.35294118 | AB178: 0 | AC178: 1.047442285e-07 | AD178: 2.368123658 | AE178: 111674.2026 | AF178: 111674.2026 | AG178: 0 | AH178: 0 | AI178: 1.813870019 | AJ178: 260.4461224 | AK178: 260.4461224 | AL178: 0 | AM178: 0.02264327985 | AN178: 2.753368722 | AO178: 43.39996869 | AP178: 43.39996869 | AT178: 14.35294118 | AU178: 2.368123658 | AV178: 1.813870019 | AW178: 2.753368722 | AX178: 2.753368722 | AY178: 2.368123658 | BA178: 2.368123658 | BB178: 1.813870019
W179: 0 | X179: 0 | Y179: 0 | Z179: 0 | AA179: 14.35294118 | AB179: 0 | AC179: 1.047442285e-07 | AD179: 2.368123658 | AE179: 111674.2026 | AF179: 111674.2026 | AG179: 0 | AH179: 0 | AI179: 1.813870019 | AJ179: 260.4461224 | AK179: 260.4461224 | AL179: 0 | AM179: 0.02264327985 | AN179: 2.753368722 | AO179: 43.39996869 | AP179: 43.39996869 | AT179: 14.35294118 | AU179: 2.368123658 | AV179: 1.813870019 | AW179: 2.753368722 | AX179: 2.753368722 | AY179: 2.368123658 | BA179: 2.368123658 | BB179: 1.813870019
W180: 0 | X180: 0 | Y180: 0 | Z180: 0 | AA180: 14.35294118 | AB180: 0 | AC180: 1.047442285e-07 | AD180: 2.368123658 | AE180: 111674.2026 | AF180: 111674.2026 | AG180: 0 | AH180: 0 | AI180: 1.813870019 | AJ180: 260.4461224 | AK180: 260.4461224 | AL180: 0 | AM180: 0.02264327985 | AN180: 2.753368722 | AO180: 43.39996869 | AP180: 43.39996869 | AT180: 14.35294118 | AU180: 2.368123658 | AV180: 1.813870019 | AW180: 2.753368722 | AX180: 2.753368722 | AY180: 2.368123658 | BA180: 2.368123658 | BB180: 1.813870019
W181: 0 | X181: 0 | Y181: 0 | Z181: 0 | AA181: 14.35294118 | AB181: 0 | AC181: 1.047442285e-07 | AD181: 2.368123658 | AE181: 111674.2026 | AF181: 111674.2026 | AG181: 0 | AH181: 0 | AI181: 1.813870019 | AJ181: 260.4461224 | AK181: 260.4461224 | AL181: 0 | AM181: 0.02264327985 | AN181: 2.753368722 | AO181: 43.39996869 | AP181: 43.39996869 | AT181: 14.35294118 | AU181: 2.368123658 | AV181: 1.813870019 | AW181: 2.753368722 | AX181: 2.753368722 | AY181: 2.368123658 | BA181: 2.368123658 | BB181: 1.813870019
W182: 0 | X182: 0 | Y182: 0 | Z182: 0 | AA182: 14.35294118 | AB182: 0 | AC182: 1.047442285e-07 | AD182: 2.368123658 | AE182: 111674.2026 | AF182: 111674.2026 | AG182: 0 | AH182: 0 | AI182: 1.813870019 | AJ182: 260.4461224 | AK182: 260.4461224 | AL182: 0 | AM182: 0.02264327985 | AN182: 2.753368722 | AO182: 43.39996869 | AP182: 43.39996869 | AT182: 14.35294118 | AU182: 2.368123658 | AV182: 1.813870019 | AW182: 2.753368722 | AX182: 2.753368722 | AY182: 2.368123658 | BA182: 2.368123658 | BB182: 1.813870019
W183: 0 | X183: 0 | Y183: 0 | Z183: 0 | AA183: 14.35294118 | AB183: 0 | AC183: 1.047442285e-07 | AD183: 2.368123658 | AE183: 111674.2026 | AF183: 111674.2026 | AG183: 0 | AH183: 0 | AI183: 1.813870019 | AJ183: 260.4461224 | AK183: 260.4461224 | AL183: 0 | AM183: 0.02264327985 | AN183: 2.753368722 | AO183: 43.39996869 | AP183: 43.39996869 | AT183: 14.35294118 | AU183: 2.368123658 | AV183: 1.813870019 | AW183: 2.753368722 | AX183: 2.753368722 | AY183: 2.368123658 | BA183: 2.368123658 | BB183: 1.813870019
W184: 0 | X184: 0 | Y184: 0 | Z184: 0 | AA184: 14.35294118 | AB184: 0 | AC184: 1.047442285e-07 | AD184: 2.368123658 | AE184: 111674.2026 | AF184: 111674.2026 | AG184: 0 | AH184: 0 | AI184: 1.813870019 | AJ184: 260.4461224 | AK184: 260.4461224 | AL184: 0 | AM184: 0.02264327985 | AN184: 2.753368722 | AO184: 43.39996869 | AP184: 43.39996869 | AT184: 14.35294118 | AU184: 2.368123658 | AV184: 1.813870019 | AW184: 2.753368722 | AX184: 2.753368722 | AY184: 2.368123658 | BA184: 2.368123658 | BB184: 1.813870019
W185: 0 | X185: 0 | Y185: 0 | Z185: 0 | AA185: 14.35294118 | AB185: 0 | AC185: 1.047442285e-07 | AD185: 2.368123658 | AE185: 111674.2026 | AF185: 111674.2026 | AG185: 0 | AH185: 0 | AI185: 1.813870019 | AJ185: 260.4461224 | AK185: 260.4461224 | AL185: 0 | AM185: 0.02264327985 | AN185: 2.753368722 | AO185: 43.39996869 | AP185: 43.39996869 | AT185: 14.35294118 | AU185: 2.368123658 | AV185: 1.813870019 | AW185: 2.753368722 | AX185: 2.753368722 | AY185: 2.368123658 | BA185: 2.368123658 | BB185: 1.813870019
W186: 0 | X186: 0 | Y186: 0 | Z186: 0 | AA186: 14.35294118 | AB186: 0 | AC186: 1.047442285e-07 | AD186: 2.368123658 | AE186: 111674.2026 | AF186: 111674.2026 | AG186: 0 | AH186: 0 | AI186: 1.813870019 | AJ186: 260.4461224 | AK186: 260.4461224 | AL186: 0 | AM186: 0.02264327985 | AN186: 2.753368722 | AO186: 43.39996869 | AP186: 43.39996869 | AT186: 14.35294118 | AU186: 2.368123658 | AV186: 1.813870019 | AW186: 2.753368722 | AX186: 2.753368722 | AY186: 2.368123658 | BA186: 2.368123658 | BB186: 1.813870019
W187: 0 | X187: 0 | Y187: 0 | Z187: 0 | AA187: 14.35294118 | AB187: 0 | AC187: 1.047442285e-07 | AD187: 2.368123658 | AE187: 111674.2026 | AF187: 111674.2026 | AG187: 0 | AH187: 0 | AI187: 1.813870019 | AJ187: 260.4461224 | AK187: 260.4461224 | AL187: 0 | AM187: 0.02264327985 | AN187: 2.753368722 | AO187: 43.39996869 | AP187: 43.39996869 | AT187: 14.35294118 | AU187: 2.368123658 | AV187: 1.813870019 | AW187: 2.753368722 | AX187: 2.753368722 | AY187: 2.368123658 | BA187: 2.368123658 | BB187: 1.813870019
W188: 0 | X188: 0 | Y188: 0 | Z188: 0 | AA188: 14.35294118 | AB188: 0 | AC188: 1.047442285e-07 | AD188: 2.368123658 | AE188: 111674.2026 | AF188: 111674.2026 | AG188: 0 | AH188: 0 | AI188: 1.813870019 | AJ188: 260.4461224 | AK188: 260.4461224 | AL188: 0 | AM188: 0.02264327985 | AN188: 2.753368722 | AO188: 43.39996869 | AP188: 43.39996869 | AT188: 14.35294118 | AU188: 2.368123658 | AV188: 1.813870019 | AW188: 2.753368722 | AX188: 2.753368722 | AY188: 2.368123658 | BA188: 2.368123658 | BB188: 1.813870019
W189: 0 | X189: 0 | Y189: 0 | Z189: 0 | AA189: 14.35294118 | AB189: 0 | AC189: 1.047442285e-07 | AD189: 2.368123658 | AE189: 111674.2026 | AF189: 111674.2026 | AG189: 0 | AH189: 0 | AI189: 1.813870019 | AJ189: 260.4461224 | AK189: 260.4461224 | AL189: 0 | AM189: 0.02264327985 | AN189: 2.753368722 | AO189: 43.39996869 | AP189: 43.39996869 | AT189: 14.35294118 | AU189: 2.368123658 | AV189: 1.813870019 | AW189: 2.753368722 | AX189: 2.753368722 | AY189: 2.368123658 | BA189: 2.368123658 | BB189: 1.813870019
W190: 0 | X190: 0 | Y190: 0 | Z190: 0 | AA190: 14.35294118 | AB190: 0 | AC190: 1.047442285e-07 | AD190: 2.368123658 | AE190: 111674.2026 | AF190: 111674.2026 | AG190: 0 | AH190: 0 | AI190: 1.813870019 | AJ190: 260.4461224 | AK190: 260.4461224 | AL190: 0 | AM190: 0.02264327985 | AN190: 2.753368722 | AO190: 43.39996869 | AP190: 43.39996869 | AT190: 14.35294118 | AU190: 2.368123658 | AV190: 1.813870019 | AW190: 2.753368722 | AX190: 2.753368722 | AY190: 2.368123658 | BA190: 2.368123658 | BB190: 1.813870019
W191: 0 | X191: 0 | Y191: 0 | Z191: 0 | AA191: 14.35294118 | AB191: 0 | AC191: 1.047442285e-07 | AD191: 2.368123658 | AE191: 111674.2026 | AF191: 111674.2026 | AG191: 0 | AH191: 0 | AI191: 1.813870019 | AJ191: 260.4461224 | AK191: 260.4461224 | AL191: 0 | AM191: 0.02264327985 | AN191: 2.753368722 | AO191: 43.39996869 | AP191: 43.39996869 | AT191: 14.35294118 | AU191: 2.368123658 | AV191: 1.813870019 | AW191: 2.753368722 | AX191: 2.753368722 | AY191: 2.368123658 | BA191: 2.368123658 | BB191: 1.813870019
W192: 0 | X192: 0 | Y192: 0 | Z192: 0 | AA192: 14.35294118 | AB192: 0 | AC192: 1.047442285e-07 | AD192: 2.368123658 | AE192: 111674.2026 | AF192: 111674.2026 | AG192: 0 | AH192: 0 | AI192: 1.813870019 | AJ192: 260.4461224 | AK192: 260.4461224 | AL192: 0 | AM192: 0.02264327985 | AN192: 2.753368722 | AO192: 43.39996869 | AP192: 43.39996869 | AT192: 14.35294118 | AU192: 2.368123658 | AV192: 1.813870019 | AW192: 2.753368722 | AX192: 2.753368722 | AY192: 2.368123658 | BA192: 2.368123658 | BB192: 1.813870019
W193: 0 | X193: 0 | Y193: 0 | Z193: 0 | AA193: 14.35294118 | AB193: 0 | AC193: 1.047442285e-07 | AD193: 2.368123658 | AE193: 111674.2026 | AF193: 111674.2026 | AG193: 0 | AH193: 0 | AI193: 1.813870019 | AJ193: 260.4461224 | AK193: 260.4461224 | AL193: 0 | AM193: 0.02264327985 | AN193: 2.753368722 | AO193: 43.39996869 | AP193: 43.39996869 | AT193: 14.35294118 | AU193: 2.368123658 | AV193: 1.813870019 | AW193: 2.753368722 | AX193: 2.753368722 | AY193: 2.368123658 | BA193: 2.368123658 | BB193: 1.813870019
W194: 0 | X194: 0 | Y194: 0 | Z194: 0 | AA194: 14.35294118 | AB194: 0 | AC194: 1.047442285e-07 | AD194: 2.368123658 | AE194: 111674.2026 | AF194: 111674.2026 | AG194: 0 | AH194: 0 | AI194: 1.813870019 | AJ194: 260.4461224 | AK194: 260.4461224 | AL194: 0 | AM194: 0.02264327985 | AN194: 2.753368722 | AO194: 43.39996869 | AP194: 43.39996869 | AT194: 14.35294118 | AU194: 2.368123658 | AV194: 1.813870019 | AW194: 2.753368722 | AX194: 2.753368722 | AY194: 2.368123658 | BA194: 2.368123658 | BB194: 1.813870019
W195: 0 | X195: 0 | Y195: 0 | Z195: 0 | AA195: 14.35294118 | AB195: 0 | AC195: 1.047442285e-07 | AD195: 2.368123658 | AE195: 111674.2026 | AF195: 111674.2026 | AG195: 0 | AH195: 0 | AI195: 1.813870019 | AJ195: 260.4461224 | AK195: 260.4461224 | AL195: 0 | AM195: 0.02264327985 | AN195: 2.753368722 | AO195: 43.39996869 | AP195: 43.39996869 | AT195: 14.35294118 | AU195: 2.368123658 | AV195: 1.813870019 | AW195: 2.753368722 | AX195: 2.753368722 | AY195: 2.368123658 | BA195: 2.368123658 | BB195: 1.813870019
W196: 0 | X196: 0 | Y196: 0 | Z196: 0 | AA196: 14.35294118 | AB196: 0 | AC196: 1.047442285e-07 | AD196: 2.368123658 | AE196: 111674.2026 | AF196: 111674.2026 | AG196: 0 | AH196: 0 | AI196: 1.813870019 | AJ196: 260.4461224 | AK196: 260.4461224 | AL196: 0 | AM196: 0.02264327985 | AN196: 2.753368722 | AO196: 43.39996869 | AP196: 43.39996869 | AT196: 14.35294118 | AU196: 2.368123658 | AV196: 1.813870019 | AW196: 2.753368722 | AX196: 2.753368722 | AY196: 2.368123658 | BA196: 2.368123658 | BB196: 1.813870019
W197: 0 | X197: 0 | Y197: 0 | Z197: 0 | AA197: 14.35294118 | AB197: 0 | AC197: 1.047442285e-07 | AD197: 2.368123658 | AE197: 111674.2026 | AF197: 111674.2026 | AG197: 0 | AH197: 0 | AI197: 1.813870019 | AJ197: 260.4461224 | AK197: 260.4461224 | AL197: 0 | AM197: 0.02264327985 | AN197: 2.753368722 | AO197: 43.39996869 | AP197: 43.39996869 | AT197: 14.35294118 | AU197: 2.368123658 | AV197: 1.813870019 | AW197: 2.753368722 | AX197: 2.753368722 | AY197: 2.368123658 | BA197: 2.368123658 | BB197: 1.813870019
W198: 0 | X198: 0 | Y198: 0 | Z198: 0 | AA198: 14.35294118 | AB198: 0 | AC198: 1.047442285e-07 | AD198: 2.368123658 | AE198: 111674.2026 | AF198: 111674.2026 | AG198: =IF(X198>$E$10,(((0.175*(((X198+X197)/2)-1.5)*SQRT(0.995-0.92)*(1-EXP(0.4395*(((X198+X197)/2)-45))))))^2)/2.3 -> 0 | AH198: 0 | AI198: 1.813870019 | AJ198: 260.4461224 | AK198: 260.4461224 | AL198: 0 | AM198: 0.02264327985 | AN198: 2.753368722 | AO198: 43.39996869 | AP198: 43.39996869 | AT198: 14.35294118 | AU198: 2.368123658 | AV198: 1.813870019 | AW198: 2.753368722 | AX198: 2.753368722 | AY198: 2.368123658 | BA198: 2.368123658 | BB198: 1.813870019
W199: 0 | X199: 0 | Y199: 0 | Z199: 0 | AA199: 14.35294118 | AB199: 0 | AC199: 1.047442285e-07 | AD199: 2.368123658 | AE199: 111674.2026 | AF199: 111674.2026 | AG199: 0 | AH199: 0 | AI199: 1.813870019 | AJ199: 260.4461224 | AK199: 260.4461224 | AL199: 0 | AM199: 0.02264327985 | AN199: 2.753368722 | AO199: 43.39996869 | AP199: 43.39996869 | AT199: 14.35294118 | AU199: 2.368123658 | AV199: 1.813870019 | AW199: 2.753368722 | AX199: 2.753368722 | AY199: 2.368123658 | BA199: 2.368123658 | BB199: 1.813870019
W200: 0 | X200: 0 | Y200: 0 | Z200: 0 | AA200: 14.35294118 | AB200: 0 | AC200: 1.047442285e-07 | AD200: 2.368123658 | AE200: 111674.2026 | AF200: 111674.2026 | AG200: 0 | AH200: 0 | AI200: 1.813870019 | AJ200: 260.4461224 | AK200: 260.4461224 | AL200: 0 | AM200: 0.02264327985 | AN200: 2.753368722 | AO200: 43.39996869 | AP200: 43.39996869 | AT200: 14.35294118 | AU200: 2.368123658 | AV200: 1.813870019 | AW200: 2.753368722 | AX200: 2.753368722 | AY200: 2.368123658 | BA200: 2.368123658 | BB200: 1.813870019
... 291 more rows
